Workbook

Sheet 金宏亚
A1: lbs. | B1: 2 | C1: 3 | D1: 4 | E1: 5 | F1: 6 | G1: 7 | H1: 8
A2: 1 | B2: 6.97 | C2: 6.97 | D2: 6.97 | E2: 6.97 | F2: 6.97 | G2: 6.97 | H2: 6.97
A3: 2 | B3: 6.97 | C3: 6.97 | D3: 6.97 | E3: 6.97 | F3: 6.97 | G3: 6.97 | H3: 6.97
A4: 3 | B4: 6.97 | C4: 6.97 | D4: 6.97 | E4: 6.97 | F4: 6.97 | G4: 6.97 | H4: 6.97
A5: 4 | B5: 6.97 | C5: 6.97 | D5: 6.97 | E5: 6.97 | F5: 6.97 | G5: 7.07 | H5: 7.41
A6: 5 | B6: 6.97 | C6: 6.97 | D6: 6.97 | E6: 6.97 | F6: 7.02 | G6: 7.40 | H6: 7.92
A7: 6 | B7: 6.97 | C7: 6.97 | D7: 6.97 | E7: 6.97 | F7: 6.97 | G7: 6.97 | H7: 7.11
A8: 7 | B8: 6.97 | C8: 6.97 | D8: 6.97 | E8: 6.97 | F8: 6.97 | G8: 6.97 | H8: 7.38
A9: 8 | B9: 6.97 | C9: 6.97 | D9: 6.97 | E9: 6.97 | F9: 6.97 | G9: 7.17 | H9: 7.70
A10: 9 | B10: 6.97 | C10: 6.97 | D10: 6.97 | E10: 6.97 | F10: 6.97 | G10: 7.40 | H10: 8.03
A11: 10 | B11: 6.97 | C11: 6.97 | D11: 6.97 | E11: 6.97 | F11: 6.97 | G11: 7.75 | H11: 8.64
A12: 11 | B12: 6.97 | C12: 6.97 | D12: 6.97 | E12: 6.97 | F12: 6.97 | G12: 7.45 | H12: 8.16
A13: 12 | B13: 6.97 | C13: 6.97 | D13: 6.97 | E13: 6.97 | F13: 6.97 | G13: 7.81 | H13: 8.47
A14: 13 | B14: 6.97 | C14: 6.97 | D14: 6.97 | E14: 6.97 | F14: 6.97 | G14: 8.22 | H14: 8.86
A15: 14 | B15: 6.97 | C15: 6.97 | D15: 6.97 | E15: 6.97 | F15: 7.15 | G15: 8.88 | H15: 9.63
A16: 15 | B16: 6.97 | C16: 6.97 | D16: 6.97 | E16: 6.97 | F16: 7.54 | G16: 9.09 | H16: 10.03
A17: 16 | B17: 6.97 | C17: 6.97 | D17: 6.97 | E17: 6.97 | F17: 7.85 | G17: 9.64 | H17: 10.52
A18: 17 | B18: 6.97 | C18: 6.97 | D18: 6.97 | E18: 6.97 | F18: 8.12 | G18: 10.06 | H18: 10.53
A19: 18 | B19: 6.97 | C19: 6.97 | D19: 6.97 | E19: 7.22 | F19: 8.54 | G19: 10.44 | H19: 11.35
A20: 19 | B20: 6.97 | C20: 6.97 | D20: 6.97 | E20: 7.57 | F20: 8.80 | G20: 10.67 | H20: 11.98
A21: 20 | B21: 6.97 | C21: 6.97 | D21: 6.97 | E21: 7.81 | F21: 9.09 | G21: 11.06 | H21: 12.33
A22: 21 | B22: 6.97 | C22: 6.97 | D22: 6.97 | E22: 7.45 | F22: 8.77 | G22: 10.64 | H22: 11.88
A23: 22 | B23: 6.97 | C23: 6.97 | D23: 6.97 | E23: 7.65 | F23: 9.13 | G23: 11.03 | H23: 12.40
A24: 23 | B24: 6.97 | C24: 6.97 | D24: 6.97 | E24: 7.73 | F24: 9.48 | G24: 11.30 | H24: 12.90
A25: 24 | B25: 6.97 | C25: 6.97 | D25: 6.97 | E25: 8.21 | F25: 10.00 | G25: 11.68 | H25: 13.64
A26: 25 | B26: 6.97 | C26: 6.97 | D26: 6.99 | E26: 8.37 | F26: 10.22 | G26: 12.32 | H26: 14.05
A27: 26 | B27: 6.97 | C27: 6.97 | D27: 7.28 | E27: 8.71 | F27: 10.59 | G27: 12.82 | H27: 14.64
A28: 27 | B28: 6.97 | C28: 6.97 | D28: 7.42 | E28: 8.85 | F28: 11.01 | G28: 13.06 | H28: 14.88
A29: 28 | B29: 6.97 | C29: 7.09 | D29: 7.71 | E29: 9.30 | F29: 11.55 | G29: 13.65 | H29: 15.45
A30: 29 | B30: 6.97 | C30: 7.23 | D30: 7.78 | E30: 9.30 | F30: 11.88 | G30: 13.96 | H30: 15.86
A31: 30 | B31: 6.97 | C31: 7.40 | D31: 8.07 | E31: 9.67 | F31: 12.07 | G31: 14.03 | H31: 16.52
A32: 31 | B32: 6.97 | C32: 6.97 | D32: 6.97 | E32: 8.17 | F32: 10.28 | G32: 12.04 | H32: 14.11
A33: 32 | B33: 6.97 | C33: 6.97 | D33: 6.97 | E33: 8.17 | F33: 10.28 | G33: 12.04 | H33: 14.26
A34: 33 | B34: 6.97 | C34: 6.97 | D34: 7.18 | E34: 8.55 | F34: 10.93 | G34: 12.44 | H34: 14.65
A35: 34 | B35: 6.97 | C35: 6.97 | D35: 7.41 | E35: 8.85 | F35: 10.93 | G35: 12.81 | H35: 15.35
A36: 35 | B36: 6.97 | C36: 6.97 | D36: 7.60 | E36: 9.00 | F36: 11.12 | G36: 13.14 | H36: 15.46
A37: 36 | B37: 6.97 | C37: 6.97 | D37: 7.72 | E37: 9.29 | F37: 11.59 | G37: 13.59 | H37: 16.07
A38: 37 | B38: 6.97 | C38: 6.97 | D38: 7.80 | E38: 9.42 | F38: 11.64 | G38: 14.03 | H38: 16.23
A39: 38 | B39: 6.97 | C39: 7.04 | D39: 8.04 | E39: 9.65 | F39: 11.90 | G39: 14.08 | H39: 16.53
A40: 39 | B40: 6.97 | C40: 7.32 | D40: 8.39 | E40: 10.02 | F40: 12.44 | G40: 14.64 | H40: 16.87
A41: 40 | B41: 6.97 | C41: 7.35 | D41: 8.39 | E41: 10.03 | F41: 12.46 | G41: 14.64 | H41: 16.87
A42: 41 | B42: 6.97 | C42: 7.66 | D42: 8.63 | E42: 10.38 | F42: 13.03 | G42: 15.09 | H42: 17.60
A43: 42 | B43: 6.97 | C43: 7.69 | D43: 8.97 | E43: 10.39 | F43: 13.04 | G43: 15.35 | H43: 17.60
A44: 43 | B44: 6.97 | C44: 7.80 | D44: 8.98 | E44: 10.95 | F44: 13.82 | G44: 15.90 | H44: 18.08
A45: 44 | B45: 6.97 | C45: 7.92 | D45: 9.21 | E45: 11.14 | F45: 13.82 | G45: 16.40 | H45: 18.27
A46: 45 | B46: 6.97 | C46: 7.92 | D46: 9.22 | E46: 11.15 | F46: 13.83 | G46: 16.72 | H46: 18.39
A47: 46 | B47: 6.97 | C47: 8.00 | D47: 9.51 | E47: 11.36 | F47: 14.19 | G47: 16.90 | H47: 18.88
A48: 47 | B48: 6.97 | C48: 8.18 | D48: 9.66 | E48: 11.44 | F48: 14.39 | G48: 17.23 | H48: 19.19
A49: 48 | B49: 6.97 | C49: 8.20 | D49: 9.77 | E49: 11.85 | F49: 14.60 | G49: 17.51 | H49: 19.64
A50: 49 | B50: 6.97 | C50: 8.20 | D50: 9.77 | E50: 11.86 | F50: 14.82 | G50: 17.87 | H50: 19.75
A51: 50 | B51: 6.97 | C51: 8.20 | D51: 9.78 | E51: 11.86 | F51: 14.84 | G51: 17.89 | H51: 19.88
A52: 51 | B52: 6.97 | C52: 8.21 | D52: 9.78 | E52: 11.87 | F52: 14.95 | G52: 18.03 | H52: 20.43
A53: 52 | B53: 6.97 | C53: 8.21 | D53: 9.79 | E53: 11.87 | F53: 14.95 | G53: 18.03 | H53: 20.44
A54: 53 | B54: 6.97 | C54: 8.21 | D54: 9.79 | E54: 11.99 | F54: 14.96 | G54: 18.03 | H54: 20.64
A55: 54 | B55: 6.97 | C55: 8.21 | D55: 9.81 | E55: 12.01 | F55: 14.96 | G55: 18.04 | H55: 20.64
A56: 55 | B56: 6.97 | C56: 8.22 | D56: 9.81 | E56: 12.01 | F56: 14.96 | G56: 18.04 | H56: 20.64
A57: 56 | B57: 6.97 | C57: 8.22 | D57: 9.81 | E57: 12.02 | F57: 14.97 | G57: 18.04 | H57: 20.71
A58: 57 | B58: 6.97 | C58: 8.26 | D58: 9.81 | E58: 12.38 | F58: 14.97 | G58: 18.05 | H58: 21.10
A59: 58 | B59: 6.97 | C59: 8.27 | D59: 9.82 | E59: 12.38 | F59: 14.97 | G59: 18.05 | H59: 21.10
A60: 59 | B60: 6.97 | C60: 8.27 | D60: 9.89 | E60: 12.39 | F60: 15.08 | G60: 18.05 | H60: 21.45
A61: 60 | B61: 6.97 | C61: 8.59 | D61: 10.05 | E61: 12.82 | F61: 15.36 | G61: 18.12 | H61: 21.58
A62: 61 | B62: 6.97 | C62: 8.62 | D62: 10.15 | E62: 12.83 | F62: 15.36 | G62: 18.12 | H62: 21.58
A63: 62 | B63: 7.17 | C63: 9.23 | D63: 10.32 | E63: 13.12 | F63: 15.60 | G63: 18.40 | H63: 22.05
A64: 63 | B64: 7.18 | C64: 9.23 | D64: 10.42 | E64: 13.12 | F64: 15.70 | G64: 18.55 | H64: 22.05
A65: 64 | B65: 7.37 | C65: 9.24 | D65: 10.51 | E65: 13.13 | F65: 15.81 | G65: 18.55 | H65: 22.15
A66: 65 | B66: 7.45 | C66: 9.39 | D66: 10.51 | E66: 13.13 | F66: 15.95 | G66: 18.60 | H66: 22.15
A67: 66 | B67: 7.48 | C67: 9.58 | D67: 10.59 | E67: 13.23 | F67: 15.96 | G67: 18.65 | H67: 22.45
A68: 67 | B68: 7.49 | C68: 9.58 | D68: 10.60 | E68: 13.26 | F68: 16.09 | G68: 18.74 | H68: 22.45
A69: 68 | B69: 7.57 | C69: 9.76 | D69: 11.24 | E69: 13.56 | F69: 16.33 | G69: 19.03 | H69: 22.46
A70: 69 | B70: 7.73 | C70: 9.85 | D70: 11.35 | E70: 13.65 | F70: 16.57 | G70: 19.03 | H70: 22.77
A71: 70 | B71: 7.73 | C71: 9.99 | D71: 11.51 | E71: 14.20 | F71: 16.74 | G71: 19.03 | H71: 22.77
A72: 71 | B72: 7.77 | C72: 9.99 | D72: 11.77 | E72: 14.21 | F72: 16.85 | G72: 19.34 | H72: 22.78
A73: 72 | B73: 7.99 | C73: 9.99 | D73: 12.02 | E73: 14.32 | F73: 17.13 | G73: 20.17 | H73: 22.81
A74: 73 | B74: 8.04 | C74: 10.09 | D74: 12.02 | E74: 14.42 | F74: 17.31 | G74: 20.20 | H74: 22.81
A75: 74 | B75: 8.25 | C75: 10.09 | D75: 12.03 | E75: 14.53 | F75: 17.58 | G75: 20.20 | H75: 22.82
A76: 75 | B76: 8.48 | C76: 10.10 | D76: 12.03 | E76: 14.54 | F76: 17.58 | G76: 20.41 | H76: 22.82
A77: 76 | B77: 9.22 | C77: 10.66 | D77: 12.11 | E77: 14.87 | F77: 17.97 | G77: 20.74 | H77: 23.03
A78: 77 | B78: 9.58 | C78: 10.82 | D78: 12.24 | E78: 14.94 | F78: 18.07 | G78: 21.33 | H78: 23.04
A79: 78 | B79: 9.59 | C79: 11.22 | D79: 12.60 | E79: 15.10 | F79: 18.19 | G79: 21.49 | H79: 23.04
A80: 79 | B80: 9.93 | C80: 11.58 | D80: 12.92 | E80: 15.22 | F80: 18.57 | G80: 21.82 | H80: 23.41
A81: 80 | B81: 10.30 | C81: 11.91 | D81: 12.98 | E81: 15.70 | F81: 19.05 | G81: 22.25 | H81: 23.67
A82: 81 | B82: 10.45 | C82: 12.01 | D82: 13.29 | E82: 15.70 | F82: 19.12 | G82: 22.25 | H82: 23.67
A83: 82 | B83: 10.79 | C83: 12.19 | D83: 13.89 | E83: 16.21 | F83: 19.23 | G83: 22.83 | H83: 23.68
A84: 83 | B84: 10.79 | C84: 12.19 | D84: 13.90 | E84: 16.21 | F84: 19.23 | G84: 22.83 | H84: 23.68
A85: 84 | B85: 11.33 | C85: 12.79 | D85: 14.30 | E85: 16.37 | F85: 19.70 | G85: 23.11 | H85: 23.86
A86: 85 | B86: 11.52 | C86: 12.79 | D86: 14.31 | E86: 16.51 | F86: 19.82 | G86: 23.36 | H86: 24.12
A87: 86 | B87: 12.06 | C87: 13.51 | D87: 14.87 | E87: 16.95 | F87: 20.25 | G87: 24.01 | H87: 24.86
A88: 87 | B88: 12.30 | C88: 13.51 | D88: 14.87 | E88: 16.95 | F88: 20.51 | G88: 24.03 | H88: 24.90
A89: 88 | B89: 12.69 | C89: 13.68 | D89: 15.22 | E89: 17.36 | F89: 20.59 | G89: 24.06 | H89: 25.17
A90: 89 | B90: 13.39 | C90: 14.20 | D90: 15.64 | E90: 17.55 | F90: 21.03 | G90: 24.31 | H90: 25.70
A91: 90 | B91: 14.20 | C91: 14.81 | D91: 16.32 | E91: 18.07 | F91: 21.33 | G91: 24.87 | H91: 26.45
A92: 91 | B92: 14.21 | C92: 14.82 | D92: 16.32 | E92: 18.07 | F92: 21.34 | G92: 24.87 | H92: 26.46
A93: 92 | B93: 14.52 | C93: 14.95 | D93: 16.40 | E93: 18.24 | F93: 21.60 | G93: 24.88 | H93: 26.46
A94: 93 | B94: 14.71 | C94: 15.10 | D94: 16.72 | E94: 18.25 | F94: 21.60 | G94: 24.88 | H94: 26.53
A95: 94 | B95: 14.79 | C95: 15.50 | D95: 16.80 | E95: 18.48 | F95: 22.12 | G95: 24.88 | H95: 26.81
A96: 95 | B96: 14.99 | C96: 15.63 | D96: 16.91 | E96: 18.73 | F96: 22.12 | G96: 24.97 | H96: 27.10
A97: 96 | B97: 15.32 | C97: 15.74 | D97: 17.53 | E97: 18.80 | F97: 22.12 | G97: 24.97 | H97: 27.37
A98: 97 | B98: 15.98 | C98: 16.35 | D98: 17.78 | E98: 19.24 | F98: 22.81 | G98: 25.33 | H98: 28.17
A99: 98 | B99: 16.19 | C99: 16.46 | D99: 17.79 | E99: 19.47 | F99: 23.07 | G99: 25.33 | H99: 28.17
A100: 99 | B100: 16.39 | C100: 16.46 | D100: 18.15 | E100: 19.57 | F100: 23.07 | G100: 25.59 | H100: 28.19
A101: 100 | B101: 16.53 | C101: 16.68 | D101: 18.15 | E101: 19.67 | F101: 23.16 | G101: 25.60 | H101: 28.21
A102: 101 | B102: 16.96 | C102: 17.00 | D102: 18.46 | E102: 20.01 | F102: 23.38 | G102: 25.85 | H102: 28.74
A103: 102 | B103: 16.97 | C103: 17.00 | D103: 18.47 | E103: 20.01 | F103: 23.38 | G103: 25.85 | H103: 28.74
A104: 103 | B104: 17.02 | C104: 17.26 | D104: 18.85 | E104: 20.01 | F104: 23.44 | G104: 25.85 | H104: 28.74
A105: 104 | B105: 17.03 | C105: 17.26 | D105: 18.85 | E105: 20.02 | F105: 23.44 | G105: 25.85 | H105: 28.74
A106: 105 | B106: 17.80 | C106: 17.94 | D106: 19.29 | E106: 20.76 | F106: 24.02 | G106: 26.65 | H106: 29.41
A107: 106 | B107: 17.93 | C107: 18.04 | D107: 19.33 | E107: 20.77 | F107: 24.02 | G107: 26.65 | H107: 29.41
A108: 107 | B108: 18.10 | C108: 18.19 | D108: 19.59 | E108: 20.83 | F108: 24.02 | G108: 26.65 | H108: 29.41
A109: 108 | B109: 18.10 | C109: 18.22 | D109: 19.59 | E109: 20.83 | F109: 24.24 | G109: 26.66 | H109: 29.41
A110: 109 | B110: 18.83 | C110: 18.83 | D110: 19.99 | E110: 21.40 | F110: 24.45 | G110: 27.13 | H110: 29.95
A111: 110 | B111: 19.15 | C111: 19.29 | D111: 20.41 | E111: 21.81 | F111: 25.13 | G111: 27.84 | H111: 30.79
A112: 111 | B112: 19.16 | C112: 19.31 | D112: 20.86 | E112: 21.85 | F112: 25.13 | G112: 27.84 | H112: 30.86
A113: 112 | B113: 19.20 | C113: 19.53 | D113: 20.86 | E113: 21.86 | F113: 25.33 | G113: 27.84 | H113: 30.87
A114: 113 | B114: 19.20 | C114: 19.53 | D114: 21.09 | E114: 22.06 | F114: 25.33 | G114: 27.85 | H114: 31.13
A115: 114 | B115: 19.59 | C115: 19.95 | D115: 21.37 | E115: 22.49 | F115: 26.00 | G115: 28.54 | H115: 31.92
A116: 115 | B116: 19.99 | C116: 20.56 | D116: 21.74 | E116: 22.94 | F116: 26.01 | G116: 29.08 | H116: 31.94
A117: 116 | B117: 20.21 | C117: 20.64 | D117: 22.01 | E117: 23.04 | F117: 26.39 | G117: 29.45 | H117: 32.43
A118: 117 | B118: 20.21 | C118: 20.64 | D118: 22.01 | E118: 23.25 | F118: 26.39 | G118: 29.45 | H118: 32.65
A119: 118 | B119: 20.61 | C119: 20.88 | D119: 22.03 | E119: 23.31 | F119: 26.83 | G119: 29.45 | H119: 32.89
A120: 119 | B120: 21.03 | C120: 21.11 | D120: 22.69 | E120: 23.65 | F120: 26.83 | G120: 29.68 | H120: 32.90
A121: 120 | B121: 21.40 | C121: 21.41 | D121: 22.69 | E121: 23.65 | F121: 27.05 | G121: 29.79 | H121: 32.90
A122: 121 | B122: 21.40 | C122: 21.42 | D122: 22.69 | E122: 23.65 | F122: 27.22 | G122: 29.80 | H122: 32.90
A123: 122 | B123: 21.60 | C123: 22.03 | D123: 22.94 | E123: 24.05 | F123: 27.65 | G123: 30.55 | H123: 33.79
A124: 123 | B124: 21.80 | C124: 22.27 | D124: 23.85 | E124: 24.52 | F124: 27.65 | G124: 30.82 | H124: 33.94
A125: 124 | B125: 21.80 | C125: 22.27 | D125: 23.88 | E125: 24.52 | F125: 27.83 | G125: 30.83 | H125: 33.94
A126: 125 | B126: 21.80 | C126: 22.28 | D126: 23.88 | E126: 24.52 | F126: 27.83 | G126: 30.83 | H126: 33.94
A127: 126 | B127: 22.45 | C127: 22.50 | D127: 24.13 | E127: 24.52 | F127: 28.00 | G127: 30.83 | H127: 35.14
A128: 127 | B128: 22.45 | C128: 22.89 | D128: 24.59 | E128: 25.08 | F128: 28.84 | G128: 31.39 | H128: 35.14
A129: 128 | B129: 22.66 | C129: 22.89 | D129: 24.60 | E129: 25.25 | F129: 28.84 | G129: 31.39 | H129: 35.66
A130: 129 | B130: 22.88 | C130: 22.96 | D130: 24.60 | E130: 25.26 | F130: 28.85 | G130: 31.39 | H130: 35.67
A131: 130 | B131: 22.96 | C131: 22.97 | D131: 24.64 | E131: 25.26 | F131: 28.85 | G131: 31.80 | H131: 36.49
A132: 131 | B132: 23.31 | C132: 23.55 | D132: 25.38 | E132: 25.84 | F132: 29.27 | G132: 32.10 | H132: 36.65
A133: 132 | B133: 23.53 | C133: 23.56 | D133: 25.38 | E133: 25.84 | F133: 29.28 | G133: 32.10 | H133: 36.66
A134: 133 | B134: 23.53 | C134: 24.05 | D134: 25.38 | E134: 25.84 | F134: 29.43 | G134: 32.11 | H134: 36.66
A135: 134 | B135: 23.97 | C135: 24.23 | D135: 25.80 | E135: 26.51 | F135: 30.21 | G135: 32.94 | H135: 37.01
A136: 135 | B136: 24.39 | C136: 24.71 | D136: 26.27 | E136: 26.98 | F136: 30.30 | G136: 33.11 | H136: 37.01
A137: 136 | B137: 24.57 | C137: 24.77 | D137: 26.70 | E137: 27.21 | F137: 30.31 | G137: 33.59 | H137: 37.44
A138: 137 | B138: 24.57 | C138: 24.77 | D138: 27.15 | E138: 27.41 | F138: 30.59 | G138: 33.60 | H138: 37.44
A139: 138 | B139: 25.02 | C139: 25.40 | D139: 27.28 | E139: 27.43 | F139: 30.93 | G139: 33.60 | H139: 38.11
A140: 139 | B140: 25.25 | C140: 25.40 | D140: 27.29 | E140: 27.44 | F140: 30.93 | G140: 34.23 | H140: 38.48
A141: 140 | B141: 25.46 | C141: 25.65 | D141: 27.35 | E141: 27.87 | F141: 31.26 | G141: 34.23 | H141: 38.48
A142: 141 | B142: 25.70 | C142: 25.90 | D142: 27.80 | E142: 28.08 | F142: 31.56 | G142: 34.55 | H142: 38.85
A143: 142 | B143: 26.03 | C143: 26.04 | D143: 28.05 | E143: 28.31 | F143: 31.73 | G143: 35.03 | H143: 38.94
A144: 143 | B144: 26.04 | C144: 26.04 | D144: 28.05 | E144: 28.53 | F144: 31.74 | G144: 35.03 | H144: 38.94
A145: 144 | B145: 26.77 | C145: 27.13 | D145: 29.14 | E145: 29.42 | F145: 32.58 | G145: 35.94 | H145: 40.08
A146: 145 | B146: 26.77 | C146: 27.40 | D146: 29.15 | E146: 29.49 | F146: 33.07 | G146: 36.02 | H146: 40.09
A147: 146 | B147: 26.77 | C147: 27.57 | D147: 29.15 | E147: 29.49 | F147: 33.07 | G147: 36.02 | H147: 40.09
A148: 147 | B148: 26.84 | C148: 27.57 | D148: 29.38 | E148: 29.50 | F148: 33.31 | G148: 36.03 | H148: 40.58
A149: 148 | B149: 26.84 | C149: 27.58 | D149: 29.60 | E149: 29.98 | F149: 33.42 | G149: 36.03 | H149: 40.59
A150: 149 | B150: 26.85 | C150: 27.58 | D150: 29.60 | E150: 30.19 | F150: 33.42 | G150: 36.03 | H150: 40.59
A151: 150 | B151: 26.85 | C151: 27.58 | D151: 29.60 | E151: 30.39 | F151: 33.42 | G151: 36.03 | H151: 40.59

Sheet 金宏亚-2025
A1: lbs. | B1: 2 | C1: 3 | D1: 4 | E1: 5 | F1: 6 | G1: 7 | H1: 8 | J1: g | K1: 2 | L1: 3 | M1: 4 | N1: 5 | O1: 6 | P1: 7 | Q1: 8
A2: 1 | B2: 7.62 | C2: 7.62 | D2: 7.62 | E2: 7.62 | F2: 7.62 | G2: 7.62 | H2: 7.62 | J2: =ROUND(A2*0.453592*1000,0) -> 454 | K2: =_xlfn.CONCAT($J2,"|",B2) -> 454|7.6228 | L2: =_xlfn.CONCAT($J2,"|",C2) -> 454|7.6228 | M2: 454|7.6228 | N2: 454|7.6228 | O2: 454|7.6228 | P2: 454|7.6228 | Q2: 454|7.6228
A3: 2 | B3: 7.62 | C3: 7.62 | D3: 7.62 | E3: 7.62 | F3: 7.62 | G3: 7.62 | H3: 7.62 | J3: =ROUND(A3*0.453592*1000,0) -> 907 | K3: =_xlfn.CONCAT($J3,"|",B3) -> 907|7.6228 | L3: =_xlfn.CONCAT($J3,"|",C3) -> 907|7.6228 | M3: =_xlfn.CONCAT($J3,"|",D3) -> 907|7.6228 | N3: =_xlfn.CONCAT($J3,"|",E3) -> 907|7.6228 | O3: =_xlfn.CONCAT($J3,"|",F3) -> 907|7.6228 | P3: =_xlfn.CONCAT($J3,"|",G3) -> 907|7.6228 | Q3: =_xlfn.CONCAT($J3,"|",H3) -> 907|7.6228
A4: 3 | B4: 7.62 | C4: 7.62 | D4: 7.62 | E4: 7.62 | F4: 7.62 | G4: 7.62 | H4: 7.62 | J4: 1361 | K4: 1361|7.6228 | L4: 1361|7.6228 | M4: 1361|7.6228 | N4: 1361|7.6228 | O4: 1361|7.6228 | P4: 1361|7.6228 | Q4: 1361|7.6228
A5: 4 | B5: 7.62 | C5: 7.62 | D5: 7.62 | E5: 7.62 | F5: 7.62 | G5: 7.62 | H5: 7.85 | J5: 1814 | K5: 1814|7.6228 | L5: 1814|7.6228 | M5: 1814|7.6228 | N5: 1814|7.6228 | O5: 1814|7.6228 | P5: 1814|7.6228 | Q5: 1814|7.854304
A6: 5 | B6: 7.62 | C6: 7.62 | D6: 7.62 | E6: 7.62 | F6: 7.62 | G6: 7.85 | H6: 8.32 | J6: 2268 | K6: 2268|7.6228 | L6: 2268|7.6228 | M6: 2268|7.6228 | N6: 2268|7.6228 | O6: 2268|7.6228 | P6: 2268|7.850248 | Q6: 2268|8.316688
A7: 6 | B7: 7.62 | C7: 7.62 | D7: 7.62 | E7: 7.62 | F7: 7.62 | G7: 7.62 | H7: 7.62 | J7: 2722 | K7: 2722|7.6228 | L7: 2722|7.6228 | M7: 2722|7.6228 | N7: 2722|7.6228 | O7: 2722|7.6228 | P7: 2722|7.6228 | Q7: 2722|7.6228
A8: 7 | B8: 7.62 | C8: 7.62 | D8: 7.62 | E8: 7.62 | F8: 7.62 | G8: 7.62 | H8: 7.75 | J8: 3175 | K8: 3175|7.6228 | L8: 3175|7.6228 | M8: 3175|7.6228 | N8: 3175|7.6228 | O8: 3175|7.6228 | P8: 3175|7.6228 | Q8: 3175|7.74864
A9: 8 | B9: 7.62 | C9: 7.62 | D9: 7.62 | E9: 7.62 | F9: 7.62 | G9: 7.62 | H9: 8.09 | J9: 3629 | K9: 3629|7.6228 | L9: 3629|7.6228 | M9: 3629|7.6228 | N9: 3629|7.6228 | O9: 3629|7.6228 | P9: 3629|7.6228 | Q9: 3629|8.08716
A10: 9 | B10: 7.62 | C10: 7.62 | D10: 7.62 | E10: 7.62 | F10: 7.62 | G10: 7.84 | H10: 8.52 | J10: 4082 | K10: 4082|7.6228 | L10: 4082|7.6228 | M10: 4082|7.6228 | N10: 4082|7.6228 | O10: 4082|7.6228 | P10: 4082|7.84328 | Q10: 4082|8.51668
A11: 10 | B11: 7.62 | C11: 7.62 | D11: 7.62 | E11: 7.62 | F11: 7.62 | G11: 8.21 | H11: 9.08 | J11: 4536 | K11: 4536|7.6228 | L11: 4536|7.6228 | M11: 4536|7.6228 | N11: 4536|7.6228 | O11: 4536|7.6228 | P11: 4536|8.21456 | Q11: 4536|9.07724
A12: 11 | B12: 7.62 | C12: 7.62 | D12: 7.62 | E12: 7.62 | F12: 7.62 | G12: 8.22 | H12: 8.93 | J12: 4990 | K12: 4990|7.6228 | L12: 4990|7.6228 | M12: 4990|7.6228 | N12: 4990|7.6228 | O12: 4990|7.6228 | P12: 4990|8.216848 | Q12: 4990|8.925712
A13: 12 | B13: 7.62 | C13: 7.62 | D13: 7.62 | E13: 7.62 | F13: 7.62 | G13: 8.55 | H13: 9.34 | J13: 5443 | K13: 5443|7.6228 | L13: 5443|7.6228 | M13: 5443|7.6228 | N13: 5443|7.6228 | O13: 5443|7.6228 | P13: 5443|8.54632 | Q13: 5443|9.341712
A14: 13 | B14: 7.62 | C14: 7.62 | D14: 7.62 | E14: 7.62 | F14: 7.62 | G14: 9.07 | H14: 9.76 | J14: 5897 | K14: 5897|7.6228 | L14: 5897|7.6228 | M14: 5897|7.6228 | N14: 5897|7.6228 | O14: 5897|7.6228 | P14: 5897|9.068816 | Q14: 5897|9.764368
A15: 14 | B15: 7.62 | C15: 7.62 | D15: 7.62 | E15: 7.62 | F15: 7.87 | G15: 9.71 | H15: 10.62 | J15: 6350 | K15: 6350|7.6228 | L15: 6350|7.6228 | M15: 6350|7.6228 | N15: 6350|7.6228 | O15: 6350|7.870736 | P15: 6350|9.714448 | Q15: 6350|10.616336
A16: 15 | B16: 7.62 | C16: 7.62 | D16: 7.62 | E16: 7.62 | F16: 8.30 | G16: 10.02 | H16: 11.05 | J16: 6804 | K16: 6804|7.6228 | L16: 6804|7.6228 | M16: 6804|7.6228 | N16: 6804|7.6228 | O16: 6804|8.303376 | P16: 6804|10.017296 | Q16: 6804|11.052304
A17: 16 | B17: 7.62 | C17: 7.62 | D17: 7.62 | E17: 7.62 | F17: 8.57 | G17: 10.55 | H17: 11.60 | J17: 7257 | K17: 7257|7.6228 | L17: 7257|7.6228 | M17: 7257|7.6228 | N17: 7257|7.6228 | O17: 7257|8.569616 | P17: 7257|10.546448 | Q17: 7257|11.601424
A18: 17 | B18: 7.62 | C18: 7.62 | D18: 7.62 | E18: 7.62 | F18: 8.94 | G18: 11.09 | H18: 11.60 | J18: 7711 | K18: 7711|7.6228 | L18: 7711|7.6228 | M18: 7711|7.6228 | N18: 7711|7.6228 | O18: 7711|8.935696 | P18: 7711|11.085584 | Q18: 7711|11.604752
A19: 18 | B19: 7.62 | C19: 7.62 | D19: 7.62 | E19: 7.89 | F19: 9.40 | G19: 11.42 | H19: 12.51 | J19: 8165 | K19: 8165|7.6228 | L19: 8165|7.6228 | M19: 8165|7.6228 | N19: 8165|7.894032 | O19: 8165|9.401616 | P19: 8165|11.415056 | Q19: 8165|12.509968
A20: 19 | B20: 7.62 | C20: 7.62 | D20: 7.62 | E20: 8.27 | F20: 9.68 | G20: 11.76 | H20: 13.11 | J20: 8618 | K20: 8618|7.6228 | L20: 8618|7.6228 | M20: 8618|7.6228 | N20: 8618|8.266768 | O20: 8618|9.67784 | P20: 8618|11.761168 | Q20: 8618|13.109008
A21: 20 | B21: 7.62 | C21: 7.62 | D21: 7.62 | E21: 8.59 | F21: 10.01 | G21: 12.20 | H21: 13.58 | J21: 9072 | K21: 9072|7.6228 | L21: 9072|7.6228 | M21: 9072|7.6228 | N21: 9072|8.592912 | O21: 9072|10.007312 | P21: 9072|12.197136 | Q21: 9072|13.584912
A22: 21 | B22: 7.62 | C22: 7.62 | D22: 7.62 | E22: 7.88 | F22: 9.35 | G22: 11.36 | H22: 12.69 | J22: 9525 | K22: 9525|7.6228 | L22: 9525|7.6228 | M22: 9525|7.6228 | N22: 9525|7.878744 | O22: 9525|9.353568 | P22: 9525|11.362224 | Q22: 9525|12.689264
A23: 22 | B23: 7.62 | C23: 7.62 | D23: 7.62 | E23: 8.10 | F23: 9.73 | G23: 11.78 | H23: 13.25 | J23: 9979 | K23: 9979|7.6228 | L23: 9979|7.6228 | M23: 9979|7.6228 | N23: 9979|8.095896 | O23: 9979|9.733584 | P23: 9979|11.781448 | Q23: 9979|13.247224
A24: 23 | B24: 7.62 | C24: 7.62 | D24: 7.62 | E24: 8.25 | F24: 10.10 | G24: 12.06 | H24: 13.77 | J24: 10433 | K24: 10433|7.6228 | L24: 10433|7.6228 | M24: 10433|7.6228 | N24: 10433|8.246696 | O24: 10433|10.101536 | P24: 10433|12.064952 | Q24: 10433|13.768992
A25: 24 | B25: 7.62 | C25: 7.62 | D25: 7.62 | E25: 8.69 | F25: 10.58 | G25: 12.47 | H25: 14.56 | J25: 10886 | K25: 10886|7.6228 | L25: 10886|7.6228 | M25: 10886|7.6228 | N25: 10886|8.687032 | O25: 10886|10.58108 | P25: 10886|12.469096 | Q25: 10886|14.559184
A26: 25 | B26: 7.62 | C26: 7.62 | D26: 7.62 | E26: 8.85 | F26: 10.89 | G26: 13.16 | H26: 15.01 | J26: 11340 | K26: 11340|7.6228 | L26: 11340|7.6228 | M26: 11340|7.6228 | N26: 11340|8.852912 | O26: 11340|10.888712 | P26: 11340|13.156744 | Q26: 11340|15.005552
A27: 26 | B27: 7.62 | C27: 7.62 | D27: 7.70 | E27: 9.21 | F27: 11.28 | G27: 13.69 | H27: 15.63 | J27: 11793 | K27: 11793|7.6228 | L27: 11793|7.6228 | M27: 11793|7.703816 | N27: 11793|9.214832 | O27: 11793|11.283808 | P27: 11793|13.693592 | Q27: 11793|15.626848
A28: 27 | B28: 7.62 | C28: 7.62 | D28: 7.86 | E28: 9.37 | F28: 11.74 | G28: 13.95 | H28: 15.89 | J28: 12247 | K28: 12247|7.6228 | L28: 12247|7.6228 | M28: 12247|7.857632 | N28: 12247|9.365632 | O28: 12247|11.739224 | P28: 12247|13.946936 | Q28: 12247|15.88924
A29: 28 | B29: 7.62 | C29: 7.62 | D29: 8.22 | E29: 9.91 | F29: 12.31 | G29: 14.57 | H29: 16.50 | J29: 12701 | K29: 12701|7.6228 | L29: 12701|7.6228 | M29: 12701|8.219552 | N29: 12701|9.914544 | O29: 12701|12.312264 | P29: 12701|14.571248 | Q29: 12701|16.495456
A30: 29 | B30: 7.62 | C30: 7.63 | D30: 8.29 | E30: 9.92 | F30: 12.66 | G30: 14.90 | H30: 16.94 | J30: 13154 | K30: 13154|7.6228 | L30: 13154|7.634448 | M30: 13154|8.294952 | N30: 13154|9.920576 | O30: 13154|12.66212 | P30: 13154|14.903008 | Q30: 13154|16.935792
A31: 30 | B31: 7.62 | C31: 7.82 | D31: 8.61 | E31: 10.31 | F31: 12.87 | G31: 14.98 | H31: 17.64 | J31: 13608 | K31: 13608|7.6228 | L31: 13608|7.815408 | M31: 13608|8.608616 | N31: 13608|10.30964 | O31: 13608|12.867208 | P31: 13608|14.978408 | Q31: 13608|17.63852
A32: 31 | B32: 7.62 | C32: 7.62 | D32: 7.62 | E32: 8.64 | F32: 10.96 | G32: 12.86 | H32: 15.07 | J32: 14061 | K32: 14061|7.6228 | L32: 14061|7.6228 | M32: 14061|7.6228 | N32: 14061|8.643664 | O32: 14061|10.959952 | P32: 14061|12.856912 | Q32: 14061|15.065872
A33: 32 | B33: 7.62 | C33: 7.62 | D33: 7.62 | E33: 8.65 | F33: 10.96 | G33: 12.86 | H33: 15.23 | J33: 14515 | K33: 14515|7.6228 | L33: 14515|7.6228 | M33: 14515|7.6228 | N33: 14515|8.64616 | O33: 14515|10.962448 | P33: 14515|12.859408 | Q33: 14515|15.230608
A34: 33 | B34: 7.62 | C34: 7.62 | D34: 7.62 | E34: 9.05 | F34: 11.65 | G34: 13.28 | H34: 15.64 | J34: 14969 | K34: 14969|7.6228 | L34: 14969|7.6228 | M34: 14969|7.6228 | N34: 14969|9.050512 | O34: 14969|11.651344 | P34: 14969|13.283728 | Q34: 14969|15.642448
A35: 34 | B35: 7.62 | C35: 7.62 | D35: 7.84 | E35: 9.37 | F35: 11.65 | G35: 13.68 | H35: 16.39 | J35: =ROUND(A35*0.453592*1000,0) -> 15422 | K35: =_xlfn.CONCAT($J35,"|",B35) -> 15422|7.6228 | L35: =_xlfn.CONCAT($J35,"|",C35) -> 15422|7.6228 | M35: =_xlfn.CONCAT($J35,"|",D35) -> 15422|7.839952 | N35: =_xlfn.CONCAT($J35,"|",E35) -> 15422|9.367504 | O35: =_xlfn.CONCAT($J35,"|",F35) -> 15422|11.65384 | P35: =_xlfn.CONCAT($J35,"|",G35) -> 15422|13.680592 | Q35: =_xlfn.CONCAT($J35,"|",H35) -> 15422|16.391248
A36: 35 | B36: 7.62 | C36: 7.62 | D36: 8.10 | E36: 9.59 | F36: 11.85 | G36: 14.03 | H36: 16.51 | J36: 15876 | K36: 15876|7.6228 | L36: 15876|7.6228 | M36: 15876|8.099536 | N36: 15876|9.592144 | O36: 15876|11.85352 | P36: 15876|14.032528 | Q36: 15876|16.50856
A37: 36 | B37: 7.62 | C37: 7.62 | D37: 8.16 | E37: 9.83 | F37: 12.35 | G37: 14.51 | H37: 17.16 | J37: 16329 | K37: 16329|7.6228 | L37: 16329|7.6228 | M37: 16329|8.161936 | N37: 16329|9.829264 | O37: 16329|12.350224 | P37: 16329|14.509264 | Q37: 16329|17.155024
A38: 37 | B38: 7.62 | C38: 7.62 | D38: 8.25 | E38: 10.05 | F38: 12.41 | G38: 14.98 | H38: 17.32 | J38: 16783 | K38: 16783|7.6228 | L38: 16783|7.6228 | M38: 16783|8.2468 | N38: 16783|10.046416 | O38: 16783|12.405136 | P38: 16783|14.978512 | Q38: 16783|17.324752
A39: 38 | B39: 7.62 | C39: 7.62 | D39: 8.51 | E39: 10.29 | F39: 12.68 | G39: 15.04 | H39: 17.65 | J39: 17236 | K39: 17236|7.6228 | L39: 17236|7.6228 | M39: 17236|8.511376 | N39: 17236|10.288528 | O39: 17236|12.684688 | P39: 17236|15.03592 | Q39: 17236|17.646736
A40: 39 | B40: 7.62 | C40: 7.73 | D40: 8.88 | E40: 10.61 | F40: 13.26 | G40: 15.63 | H40: 18.01 | J40: 17690 | K40: 17690|7.6228 | L40: 17690|7.727632 | M40: 17690|8.875792 | N40: 17690|10.60552 | O40: 17690|13.261264 | P40: 17690|15.627472 | Q40: 17690|18.008656
A41: 40 | B41: 7.62 | C41: 7.76 | D41: 8.88 | E41: 10.61 | F41: 13.28 | G41: 15.63 | H41: 18.01 | J41: 18144 | K41: 18144|7.6228 | L41: 18144|7.757584 | M41: 18144|8.878288 | N41: 18144|10.608016 | O41: 18144|13.278736 | P41: 18144|15.629968 | Q41: 18144|18.013648
A42: 41 | B42: 7.62 | C42: 8.09 | D42: 9.14 | E42: 10.98 | F42: 13.83 | G42: 16.11 | H42: 18.69 | J42: 18597 | K42: 18597|7.6228 | L42: 18597|8.092048 | M42: 18597|9.135376 | N42: 18597|10.984912 | O42: 18597|13.830352 | P42: 18597|16.111696 | Q42: 18597|18.69256
A43: 42 | B43: 7.62 | C43: 8.12 | D43: 9.49 | E43: 11.02 | F43: 13.89 | G43: 16.39 | H43: 18.79 | J43: 19051 | K43: 19051|7.6228 | L43: 19051|8.122 | M43: 19051|9.489808 | N43: 19051|11.019856 | O43: 19051|13.892752 | P43: 19051|16.386256 | Q43: 19051|18.787408
A44: 43 | B44: 7.62 | C44: 8.24 | D44: 9.50 | E44: 11.58 | F44: 14.65 | G44: 16.98 | H44: 19.30 | J44: 19504 | K44: 19504|7.6228 | L44: 19504|8.236816 | M44: 19504|9.504784 | N44: 19504|11.581456 | O44: 19504|14.646544 | P44: 19504|16.980304 | Q44: 19504|19.299088
A45: 44 | B45: 7.62 | C45: 8.36 | D45: 9.75 | E45: 11.79 | F45: 14.73 | G45: 17.51 | H45: 19.50 | J45: 19958 | K45: 19958|7.6228 | L45: 19958|8.361616 | M45: 19958|9.749392 | N45: 19958|11.788624 | O45: 19958|14.731408 | P45: 19958|17.50696 | Q45: 19958|19.498768
A46: 45 | B46: 7.62 | C46: 8.36 | D46: 9.75 | E46: 11.79 | F46: 14.74 | G46: 17.85 | H46: 19.64 | J46: 20412 | K46: 20412|7.6228 | L46: 20412|8.364112 | M46: 20412|9.751888 | N46: 20412|11.79112 | O46: 20412|14.7364 | P46: 20412|17.848912 | Q46: 20412|19.636048
A47: 46 | B47: 7.62 | C47: 8.45 | D47: 10.06 | E47: 12.02 | F47: 15.13 | G47: 18.04 | H47: 20.16 | J47: 20865 | K47: 20865|7.6228 | L47: 20865|8.451472 | M47: 20865|10.061392 | N47: 20865|12.01576 | O47: 20865|15.125776 | P47: 20865|18.041104 | Q47: 20865|20.157712
A48: 47 | B48: 7.62 | C48: 8.64 | D48: 10.22 | E48: 12.10 | F48: 15.33 | G48: 18.39 | H48: 20.48 | J48: 21319 | K48: 21319|7.6228 | L48: 21319|8.641168 | M48: 21319|10.223632 | N48: 21319|12.100624 | O48: 21319|15.330448 | P48: 21319|18.390544 | Q48: 21319|20.482192
A49: 48 | B49: 7.62 | C49: 8.64 | D49: 10.34 | E49: 12.54 | F49: 15.56 | G49: 18.56 | H49: 20.81 | J49: 21772 | K49: 21772|7.6228 | L49: 21772|8.643664 | M49: 21772|10.340944 | N49: 21772|12.537424 | O49: 21772|15.557584 | P49: 21772|18.560272 | Q49: 21772|20.806672
A50: 49 | B50: 7.62 | C50: 8.65 | D50: 10.34 | E50: 12.54 | F50: 15.67 | G50: 18.93 | H50: 20.93 | J50: 22226 | K50: 22226|7.6228 | L50: 22226|8.64616 | M50: 22226|10.34344 | N50: 22226|12.53992 | O50: 22226|15.674896 | P50: 22226|18.932176 | Q50: 22226|20.928976
A51: 50 | B51: 7.62 | C51: 8.65 | D51: 10.35 | E51: 12.55 | F51: 15.81 | G51: 19.10 | H51: 21.22 | J51: 22680 | K51: 22680|7.6228 | L51: 22680|8.648656 | M51: 22680|10.348432 | N51: 22680|12.549904 | O51: 22680|15.80968 | P51: 22680|19.096912 | Q51: 22680|21.223504
A52: 51 | B52: 7.62 | C52: 8.65 | D52: 10.40 | E52: 12.61 | F52: 16.01 | G52: 19.33 | H52: 21.71 | J52: 23133 | K52: 23133|7.6228 | L52: 23133|8.651152 | M52: 23133|10.398352 | N52: 23133|12.609808 | O52: 23133|16.006864 | P52: 23133|19.334032 | Q52: 23133|21.71272
A53: 52 | B53: 7.62 | C53: 8.65 | D53: 10.40 | E53: 12.62 | F53: 16.01 | G53: 19.34 | H53: 21.72 | J53: 23587 | K53: 23587|7.6228 | L53: 23587|8.653648 | M53: 23587|10.403344 | N53: 23587|12.617296 | O53: 23587|16.00936 | P53: 23587|19.339024 | Q53: 23587|21.715216
A54: 53 | B54: 7.62 | C54: 8.66 | D54: 10.41 | E54: 12.74 | F54: 16.01 | G54: 19.34 | H54: 21.93 | J54: 24040 | K54: 24040|7.6228 | L54: 24040|8.656144 | M54: 24040|10.408336 | N54: 24040|12.742096 | O54: 24040|16.011856 | P54: 24040|19.34152 | Q54: 24040|21.927376
A55: 54 | B55: 7.62 | C55: 8.66 | D55: 10.42 | E55: 12.76 | F55: 16.02 | G55: 19.34 | H55: 21.93 | J55: 24494 | K55: 24494|7.6228 | L55: 24494|8.65864 | M55: 24494|10.423312 | N55: 24494|12.76456 | O55: 24494|16.016848 | P55: 24494|19.344016 | Q55: 24494|21.929872
A56: 55 | B56: 7.62 | C56: 8.66 | D56: 10.43 | E56: 12.77 | F56: 16.02 | G56: 19.35 | H56: 21.93 | J56: 24948 | K56: 24948|7.6228 | L56: 24948|8.661136 | M56: 24948|10.425808 | N56: 24948|12.767056 | O56: 24948|16.019344 | P56: 24948|19.346512 | Q56: 24948|21.932368
A57: 56 | B57: 7.62 | C57: 8.67 | D57: 10.43 | E57: 12.77 | F57: 16.02 | G57: 19.35 | H57: 22.21 | J57: 25401 | K57: 25401|7.6228 | L57: 25401|8.666128 | M57: 25401|10.428304 | N57: 25401|12.769552 | O57: 25401|16.024336 | P57: 25401|19.351504 | Q57: 25401|22.206928
A58: 57 | B58: 7.62 | C58: 8.71 | D58: 10.43 | E58: 13.15 | F58: 16.03 | G58: 19.36 | H58: 22.43 | J58: 25855 | K58: 25855|7.6228 | L58: 25855|8.711056 | M58: 25855|10.4308 | N58: 25855|13.15144 | O58: 25855|16.029328 | P58: 25855|19.356496 | Q58: 25855|22.431568
A59: 58 | B59: 7.62 | C59: 8.71 | D59: 10.44 | E59: 13.16 | F59: 16.03 | G59: 19.36 | H59: 22.63 | J59: 26308 | K59: 26308|7.6228 | L59: 26308|8.713552 | M59: 26308|10.435792 | N59: 26308|13.156432 | O59: 26308|16.031824 | P59: 26308|19.358992 | Q59: 26308|22.628752
A60: 59 | B60: 7.62 | C60: 8.72 | D60: 10.51 | E60: 13.16 | F60: 16.14 | G60: 19.36 | H60: 23.01 | J60: 26762 | K60: 26762|7.6228 | L60: 26762|8.72104 | M60: 26762|10.508176 | N60: 26762|13.16392 | O60: 26762|16.144144 | P60: 26762|19.361488 | Q60: 26762|23.005648
A61: 60 | B61: 7.62 | C61: 9.06 | D61: 10.69 | E61: 13.63 | F61: 16.44 | G61: 19.43 | H61: 23.15 | J61: 27216 | K61: 27216|7.6228 | L61: 27216|9.058 | M61: 27216|10.687888 | N61: 27216|13.628176 | O61: 27216|16.443664 | P61: 27216|19.431376 | Q61: 27216|23.145424
A62: 61 | B62: 7.62 | C62: 9.08 | D62: 10.79 | E62: 13.66 | F62: 16.45 | G62: 19.43 | H62: 23.15 | J62: 27669 | K62: 27669|7.6228 | L62: 27669|9.08296 | M62: 27669|10.79272 | N62: 27669|13.660624 | O62: 27669|16.44616 | P62: 27669|19.433872 | Q62: 27669|23.14792
A63: 62 | B63: 7.62 | C63: 9.73 | D63: 10.97 | E63: 14.05 | F63: 16.70 | G63: 19.73 | H63: 23.43 | J63: 28123 | K63: 28123|7.6228 | L63: 28123|9.729424 | M63: 28123|10.96744 | N63: 28123|14.045008 | O63: 28123|16.698256 | P63: 28123|19.730896 | Q63: 28123|23.429968
A64: 63 | B64: 7.62 | C64: 9.73 | D64: 11.07 | E64: 14.05 | F64: 16.81 | G64: 19.89 | H64: 23.57 | J64: 28576 | K64: 28576|7.6228 | L64: 28576|9.73192 | M64: 28576|11.072272 | N64: 28576|14.052496 | O64: 28576|16.813072 | P64: 28576|19.893136 | Q64: 28576|23.57224
A65: 64 | B65: 7.77 | C65: 9.74 | D65: 11.25 | E65: 14.05 | F65: 16.93 | G65: 19.90 | H65: 23.72 | J65: 29030 | K65: 29030|7.765072 | L65: 29030|9.736912 | M65: 29030|11.25448 | N65: 29030|14.054992 | O65: 29030|16.93288 | P65: 29030|19.895632 | Q65: 29030|23.717008
A66: 65 | B66: 7.85 | C66: 10.00 | D66: 11.26 | E66: 14.06 | F66: 17.08 | G66: 19.94 | H66: 23.75 | J66: 29483 | K66: 29483|7.849936 | L66: 29483|9.996496 | M66: 29483|11.256976 | N66: 29483|14.057488 | O66: 29483|17.080144 | P66: 29483|19.943056 | Q66: 29483|23.754448
A67: 66 | B67: 7.89 | C67: 10.09 | D67: 11.26 | E67: 14.06 | F67: 17.09 | G67: 20.01 | H67: 23.86 | J67: =ROUND(A67*0.453592*1000,0) -> 29937 | K67: =_xlfn.CONCAT($J67,"|",B67) -> 29937|7.889872 | L67: =_xlfn.CONCAT($J67,"|",C67) -> 29937|10.09384 | M67: =_xlfn.CONCAT($J67,"|",D67) -> 29937|11.259472 | N67: =_xlfn.CONCAT($J67,"|",E67) -> 29937|14.059984 | O67: =_xlfn.CONCAT($J67,"|",F67) -> 29937|17.092624 | P67: =_xlfn.CONCAT($J67,"|",G67) -> 29937|20.005456 | Q67: =_xlfn.CONCAT($J67,"|",H67) -> 29937|23.856784
A68: 67 | B68: 7.89 | C68: 10.10 | D68: 11.26 | E68: 14.09 | F68: 17.22 | G68: 20.10 | H68: 24.08 | J68: 30391 | K68: 30391|7.892368 | L68: 30391|10.098832 | M68: 30391|11.261968 | N68: 30391|14.08744 | O68: 30391|17.224912 | P68: 30391|20.1028 | Q68: 30391|24.081424
A69: 68 | B69: 7.98 | C69: 10.28 | D69: 11.94 | E69: 14.41 | F69: 17.48 | G69: 20.41 | H69: 24.08 | J69: 30844 | K69: 30844|7.982224 | L69: 30844|10.283536 | M69: 30844|11.943376 | N69: 30844|14.406928 | O69: 30844|17.479504 | P69: 30844|20.407312 | Q69: 30844|24.08392
A70: 69 | B70: 8.15 | C70: 10.38 | D70: 12.06 | E70: 14.51 | F70: 17.57 | G70: 20.41 | H70: 24.21 | J70: 31298 | K70: 31298|8.14696 | L70: 31298|10.383376 | M70: 31298|12.060688 | N70: 31298|14.509264 | O70: 31298|17.571856 | P70: 31298|20.409808 | Q70: 31298|24.211216
A71: 70 | B71: 8.18 | C71: 10.53 | D71: 12.32 | E71: 15.21 | F71: 17.92 | G71: 20.41 | H71: 24.42 | J71: 31751 | K71: 31751|8.1844 | L71: 31751|10.528144 | M71: 31751|12.322768 | N71: 31751|15.208144 | O71: 31751|17.921296 | P71: 31751|20.412304 | Q71: 31751|24.418384
A72: 71 | B72: 8.19 | C72: 10.53 | D72: 12.51 | E72: 15.21 | F72: 18.04 | G72: 20.74 | H72: 24.43 | J72: 32205 | K72: 32205|8.189392 | L72: 32205|10.53064 | M72: 32205|12.512464 | N72: 32205|15.21064 | O72: 32205|18.041104 | P72: 32205|20.744272 | Q72: 32205|24.425872
A73: 72 | B73: 8.42 | C73: 10.53 | D73: 12.78 | E73: 15.22 | F73: 18.34 | G73: 21.63 | H73: 24.46 | J73: 32659 | K73: 32659|8.424016 | L73: 32659|10.533136 | M73: 32659|12.77704 | N73: 32659|15.215632 | O73: 32659|18.338128 | P73: 32659|21.627856 | Q73: 32659|24.463312
A74: 73 | B74: 8.48 | C74: 10.63 | D74: 12.78 | E74: 15.44 | F74: 18.54 | G74: 21.67 | H74: 24.47 | J74: 33112 | K74: 33112|8.476432 | L74: 33112|10.632976 | M74: 33112|12.779536 | N74: 33112|15.440272 | O74: 33112|18.535312 | P74: 33112|21.665296 | Q74: 33112|24.465808
A75: 74 | B75: 8.70 | C75: 10.64 | D75: 12.78 | E75: 15.45 | F75: 18.82 | G75: 21.67 | H75: 24.47 | J75: 33566 | K75: 33566|8.701072 | L75: 33566|10.635472 | M75: 33566|12.782032 | N75: 33566|15.445264 | O75: 33566|18.819856 | P75: 33566|21.667792 | Q75: 33566|24.468304
A76: 75 | B76: 9.02 | C76: 10.64 | D76: 12.78 | E76: 15.57 | F76: 18.82 | G76: 21.89 | H76: 24.47 | J76: 34019 | K76: 34019|9.023056 | L76: 34019|10.640464 | M76: 34019|12.784528 | N76: 34019|15.565072 | O76: 34019|18.822352 | P76: 34019|21.88744 | Q76: 34019|24.4708
A77: 76 | B77: 9.72 | C77: 11.24 | D77: 12.87 | E77: 15.80 | F77: 19.24 | G77: 22.24 | H77: 24.70 | J77: 34473 | K77: 34473|9.71944 | L77: 34473|11.237008 | M77: 34473|12.866896 | N77: 34473|15.802192 | O77: 34473|19.239184 | P77: 34473|22.241872 | Q77: 34473|24.700432
A78: 77 | B78: 10.10 | C78: 11.40 | D78: 13.01 | E78: 15.87 | F78: 19.35 | G78: 22.88 | H78: 24.70 | J78: 34927 | K78: 34927|10.098832 | L78: 34927|11.399248 | M78: 34927|13.01416 | N78: 34927|15.874576 | O78: 34927|19.349008 | P78: 34927|22.875856 | Q78: 34927|24.702928
A79: 78 | B79: 10.11 | C79: 11.83 | D79: 13.40 | E79: 16.04 | F79: 19.47 | G79: 23.05 | H79: 24.71 | J79: 35380 | K79: 35380|10.108816 | L79: 35380|11.82856 | M79: 35380|13.396048 | N79: 35380|16.044304 | O79: 35380|19.471312 | P79: 35380|23.045584 | Q79: 35380|24.70792
A80: 79 | B80: 10.56 | C80: 12.32 | D80: 13.73 | E80: 16.30 | F80: 19.88 | G80: 23.40 | H80: 25.11 | J80: 35834 | K80: 35834|10.563088 | L80: 35834|12.317776 | M80: 35834|13.730512 | N80: 35834|16.2964 | O80: 35834|19.87816 | P80: 35834|23.402512 | Q80: 35834|25.109776
A81: 80 | B81: 10.85 | C81: 12.55 | D81: 13.79 | E81: 16.68 | F81: 20.21 | G81: 23.72 | H81: 25.30 | J81: 36287 | K81: 36287|10.850128 | L81: 36287|12.554896 | M81: 36287|13.790416 | N81: 36287|16.68328 | O81: 36287|20.207632 | P81: 36287|23.724496 | Q81: 36287|25.304464
A82: 81 | B82: 11.12 | C82: 12.65 | D82: 14.12 | E82: 16.80 | F82: 20.47 | G82: 23.87 | H82: 25.39 | J82: 36741 | K82: 36741|11.1172 | L82: 36741|12.654736 | M82: 36741|14.12488 | N82: 36741|16.7956 | O82: 36741|20.469712 | P82: 36741|23.866768 | Q82: 36741|25.389328
A83: 82 | B83: 11.48 | C83: 12.96 | D83: 14.76 | E83: 17.22 | F83: 20.52 | G83: 24.49 | H83: 25.39 | J83: 37195 | K83: 37195|11.476624 | L83: 37195|12.96424 | M83: 37195|14.763856 | N83: 37195|17.224912 | O83: 37195|20.524624 | P83: 37195|24.485776 | Q83: 37195|25.391824
A84: 83 | B84: 11.48 | C84: 12.97 | D84: 14.77 | E84: 17.23 | F84: 20.58 | G84: 24.49 | H84: 25.39 | J84: 37648 | K84: 37648|11.47912 | L84: 37648|12.966736 | M84: 37648|14.766352 | N84: 37648|17.227408 | O84: 37648|20.584528 | P84: 37648|24.488272 | Q84: 37648|25.39432
A85: 84 | B85: 11.94 | C85: 13.48 | D85: 15.20 | E85: 17.39 | F85: 21.09 | G85: 24.78 | H85: 25.59 | J85: 38102 | K85: 38102|11.935888 | L85: 38102|13.480912 | M85: 38102|15.195664 | N85: 38102|17.39464 | O85: 38102|21.091216 | P85: 38102|24.780304 | Q85: 38102|25.589008
A86: 85 | B86: 12.26 | C86: 13.48 | D86: 15.21 | E86: 17.67 | F86: 21.22 | G86: 25.05 | H86: 25.87 | J86: 38555 | K86: 38555|12.255376 | L86: 38555|13.483408 | M86: 38555|15.205648 | N86: 38555|17.674192 | O86: 38555|21.218512 | P86: 38555|25.047376 | Q86: 38555|25.866064
A87: 86 | B87: 12.70 | C87: 14.23 | D87: 15.80 | E87: 18.01 | F87: 21.67 | G87: 25.75 | H87: 26.66 | J87: 39009 | K87: 39009|12.70216 | L87: 39009|14.229712 | M87: 39009|15.799696 | N87: 39009|18.00616 | O87: 39009|21.672784 | P87: 39009|25.753744 | Q87: 39009|26.657296
A88: 87 | B88: 12.96 | C88: 14.24 | D88: 15.80 | E88: 18.01 | F88: 21.96 | G88: 25.77 | H88: 26.70 | J88: 39463 | K88: 39463|12.96424 | L88: 39463|14.2372 | M88: 39463|15.802192 | N88: 39463|18.008656 | O88: 39463|21.957328 | P88: 39463|25.773712 | Q88: 39463|26.699728
A89: 88 | B89: 13.50 | C89: 14.55 | D89: 16.30 | E89: 18.59 | F89: 22.04 | G89: 25.80 | H89: 26.99 | J89: 39916 | K89: 39916|13.50088 | L89: 39916|14.554192 | M89: 39916|16.298896 | N89: 39916|18.590224 | O89: 39916|22.0372 | P89: 39916|25.801168 | Q89: 39916|26.994256
A90: 89 | B90: 14.10 | C90: 14.96 | D90: 16.62 | E90: 18.65 | F90: 22.52 | G90: 26.07 | H90: 27.56 | J90: 40370 | K90: 40370|14.104912 | L90: 40370|14.96104 | M90: 40370|16.618384 | N90: 40370|18.650128 | O90: 40370|22.516432 | P90: 40370|26.065744 | Q90: 40370|27.558352
A91: 90 | B91: 14.97 | C91: 15.61 | D91: 17.34 | E91: 19.20 | F91: 22.84 | G91: 26.67 | H91: 28.10 | J91: 40823 | K91: 40823|14.966032 | L91: 40823|15.607504 | M91: 40823|17.337232 | N91: 40823|19.196752 | O91: 40823|22.83592 | P91: 40823|26.669776 | Q91: 40823|28.10248
A92: 91 | B92: 14.97 | C92: 15.61 | D92: 17.34 | E92: 19.20 | F92: 22.84 | G92: 26.67 | H92: 28.10 | J92: 41277 | K92: 41277|14.968528 | L92: 41277|15.61 | M92: 41277|17.339728 | N92: 41277|19.199248 | O92: 41277|22.838416 | P92: 41277|26.672272 | Q92: 41277|28.104976
A93: 92 | B93: 15.30 | C93: 15.76 | D93: 17.43 | E93: 19.38 | F93: 23.12 | G93: 26.68 | H93: 28.19 | J93: 41730 | K93: 41730|15.302992 | L93: 41730|15.757264 | M93: 41730|17.43208 | N93: 41730|19.383952 | O93: 41730|23.117968 | P93: 41730|26.677264 | Q93: 41730|28.187344
A94: 93 | B94: 15.50 | C94: 15.91 | D94: 17.76 | E94: 19.39 | F94: 23.12 | G94: 26.68 | H94: 28.19 | J94: 42184 | K94: 42184|15.500176 | L94: 42184|15.907024 | M94: 42184|17.761552 | N94: 42184|19.386448 | O94: 42184|23.120464 | P94: 42184|26.67976 | Q94: 42184|28.18984
A95: 94 | B95: 15.58 | C95: 16.33 | D95: 17.85 | E95: 19.64 | F95: 23.61 | G95: 26.68 | H95: 28.75 | J95: 42638 | K95: 42638|15.580048 | L95: 42638|16.326352 | M95: 42638|17.848912 | N95: 42638|19.636048 | O95: 42638|23.60968 | P95: 42638|26.684752 | Q95: 42638|28.748944
A96: 95 | B96: 15.79 | C96: 16.47 | D96: 17.97 | E96: 19.90 | F96: 23.68 | G96: 26.78 | H96: 29.06 | J96: 43091 | K96: 43091|15.792208 | L96: 43091|16.473616 | M96: 43091|17.96872 | N96: 43091|19.90312 | O96: 43091|23.679568 | P96: 43091|26.777104 | Q96: 43091|29.058448
A97: 96 | B97: 16.30 | C97: 16.58 | D97: 18.63 | E97: 20.12 | F97: 23.68 | G97: 26.78 | H97: 29.35 | J97: 43545 | K97: 43545|16.2964 | L97: 43545|16.580944 | M97: 43545|18.625168 | N97: 43545|20.122768 | O97: 43545|23.682064 | P97: 43545|26.7796 | Q97: 43545|29.345488
A98: 97 | B98: 16.83 | C98: 17.23 | D98: 18.89 | E98: 20.45 | F98: 24.19 | G98: 27.16 | H98: 29.92 | J98: 43998 | K98: 43998|16.830544 | L98: 43998|17.229904 | M98: 43998|18.894736 | N98: 43998|20.447248 | O98: 43998|24.191248 | P98: 43998|27.163984 | Q98: 43998|29.92456
A99: 98 | B99: 17.06 | C99: 17.34 | D99: 18.90 | E99: 20.68 | F99: 24.46 | G99: 27.17 | H99: 29.93 | J99: =ROUND(A99*0.453592*1000,0) -> 44452 | K99: =_xlfn.CONCAT($J99,"|",B99) -> 44452|17.055184 | L99: =_xlfn.CONCAT($J99,"|",C99) -> 44452|17.342224 | M99: =_xlfn.CONCAT($J99,"|",D99) -> 44452|18.897232 | N99: =_xlfn.CONCAT($J99,"|",E99) -> 44452|20.684368 | O99: =_xlfn.CONCAT($J99,"|",F99) -> 44452|24.463312 | P99: =_xlfn.CONCAT($J99,"|",G99) -> 44452|27.16648 | Q99: =_xlfn.CONCAT($J99,"|",H99) -> 44452|29.927056
A100: 99 | B100: 17.29 | C100: 17.44 | D100: 19.25 | E100: 20.95 | F100: 24.52 | G100: 27.44 | H100: 30.23 | J100: 44906 | K100: 44906|17.289808 | L100: 44906|17.44456 | M100: 44906|19.246672 | N100: 44906|20.946448 | O100: 44906|24.518224 | P100: 44906|27.438544 | Q100: 44906|30.229072
A101: 100 | B101: 17.58 | C101: 17.74 | D101: 19.43 | E101: 21.06 | F101: 24.79 | G101: 27.46 | H101: 30.25 | J101: 45359 | K101: 45359|17.579344 | L101: 45359|17.739088 | M101: 45359|19.431376 | N101: 45359|21.058768 | O101: 45359|24.785296 | P101: 45359|27.458512 | Q101: 45359|30.24904
A102: 101 | B102: 17.70 | C102: 17.91 | D102: 19.44 | E102: 21.26 | F102: 25.02 | G102: 27.72 | H102: 30.53 | J102: 45813 | K102: 45813|17.701648 | L102: 45813|17.911312 | M102: 45813|19.436368 | N102: 45813|21.258448 | O102: 45813|25.022416 | P102: 45813|27.718096 | Q102: 45813|30.528592
A103: 102 | B103: 17.87 | C103: 17.91 | D103: 19.62 | E103: 21.26 | F103: 25.02 | G103: 27.72 | H103: 30.53 | J103: 46266 | K103: 46266|17.871376 | L103: 46266|17.913808 | M103: 46266|19.621072 | N103: 46266|21.260944 | O103: 46266|25.024912 | P103: 46266|27.720592 | Q103: 46266|30.531088
A104: 103 | B104: 18.11 | C104: 18.36 | D104: 20.03 | E104: 21.39 | F104: 25.09 | G104: 27.72 | H104: 30.53 | J104: 46720 | K104: 46720|18.106 | L104: 46720|18.358096 | M104: 46720|20.025424 | N104: 46720|21.385744 | O104: 46720|25.087312 | P104: 46720|27.723088 | Q104: 46720|30.533584
A105: 104 | B105: 18.11 | C105: 18.36 | D105: 20.08 | E105: 21.41 | F105: 25.09 | G105: 27.73 | H105: 30.54 | J105: 47174 | K105: 47174|18.108496 | L105: 47174|18.360592 | M105: 47174|20.075344 | N105: 47174|21.410704 | O105: 47174|25.089808 | P105: 47174|27.725584 | Q105: 47174|30.53608
A106: 105 | B106: 18.75 | C106: 18.90 | D106: 20.50 | E106: 22.06 | F106: 25.71 | G106: 28.37 | H106: 31.29 | J106: 47627 | K106: 47627|18.75496 | L106: 47627|18.902224 | M106: 47627|20.499664 | N106: 47627|22.059664 | O106: 47627|25.711312 | P106: 47627|28.369552 | Q106: 47627|31.287376
A107: 106 | B107: 18.88 | C107: 18.90 | D107: 20.50 | E107: 22.06 | F107: 25.71 | G107: 28.37 | H107: 31.29 | J107: 48081 | K107: 48081|18.884752 | L107: 48081|18.90472 | M107: 48081|20.50216 | N107: 48081|22.06216 | O107: 48081|25.713808 | P107: 48081|28.372048 | Q107: 48081|31.289872
A108: 107 | B108: 18.98 | C108: 19.17 | D108: 20.78 | E108: 22.30 | F108: 25.72 | G108: 28.58 | H108: 31.53 | J108: 48534 | K108: 48534|18.984592 | L108: 48534|19.1668 | M108: 48534|20.77672 | N108: 48534|22.29928 | O108: 48534|25.716304 | P108: 48534|28.584208 | Q108: 48534|31.53448
A109: 108 | B109: 19.25 | C109: 19.38 | D109: 20.98 | E109: 22.30 | F109: 25.95 | G109: 28.59 | H109: 31.54 | J109: 48988 | K109: 48988|19.25416 | L109: 48988|19.376464 | M109: 48988|20.9764 | N109: 48988|22.301776 | O109: 48988|25.945936 | P109: 48988|28.586704 | Q109: 48988|31.539472
A110: 109 | B110: 19.84 | C110: 19.84 | D110: 21.24 | E110: 22.73 | F110: 26.17 | G110: 29.10 | H110: 32.11 | J110: 49442 | K110: 49442|19.835728 | L110: 49442|19.84072 | M110: 49442|21.235984 | N110: 49442|22.733584 | O110: 49442|26.170576 | P110: 49442|29.098384 | Q110: 49442|32.113552
A111: 110 | B111: 20.18 | C111: 20.32 | D111: 21.69 | E111: 23.17 | F111: 26.90 | G111: 29.64 | H111: 32.71 | J111: 49895 | K111: 49895|20.17768 | L111: 49895|20.317456 | M111: 49895|21.685264 | N111: 49895|23.170384 | O111: 49895|26.896912 | P111: 49895|29.642512 | Q111: 49895|32.7076
A112: 111 | B112: 20.18 | C112: 20.35 | D112: 22.16 | E112: 23.40 | F112: 26.90 | G112: 29.85 | H112: 33.09 | J112: 50349 | K112: 50349|20.180176 | L112: 50349|20.347408 | M112: 50349|22.162 | N112: 50349|23.395024 | O112: 50349|26.899408 | P112: 50349|29.854672 | Q112: 50349|33.09448
A113: 112 | B113: 20.42 | C113: 20.77 | D113: 22.16 | E113: 23.40 | F113: 27.11 | G113: 29.86 | H113: 33.10 | J113: 50802 | K113: 50802|20.417296 | L113: 50802|20.766736 | M113: 50802|22.164496 | N113: 50802|23.39752 | O113: 50802|27.111568 | P113: 50802|29.857168 | Q113: 50802|33.096976
A114: 113 | B114: 20.42 | C114: 20.77 | D114: 22.41 | E114: 23.61 | F114: 27.11 | G114: 29.86 | H114: 33.38 | J114: 51256 | K114: 51256|20.419792 | L114: 51256|20.769232 | M114: 51256|22.409104 | N114: 51256|23.614672 | O114: 51256|27.114064 | P114: 51256|29.859664 | Q114: 51256|33.384016
A115: 114 | B115: 20.63 | C115: 21.21 | D115: 22.88 | E115: 24.07 | F115: 27.83 | G115: 30.61 | H115: 33.92 | J115: 51709 | K115: 51709|20.634448 | L115: 51709|21.21352 | M115: 51709|22.875856 | N115: 51709|24.073936 | O115: 51709|27.832912 | P115: 51709|30.605968 | Q115: 51709|33.915664
A116: 115 | B116: 21.26 | C116: 21.53 | D116: 22.88 | E116: 24.37 | F116: 27.84 | G116: 30.90 | H116: 33.93 | J116: 52163 | K116: 52163|21.260944 | L116: 52163|21.533008 | M116: 52163|22.883344 | N116: 52163|24.365968 | O116: 52163|27.837904 | P116: 52163|30.898 | Q116: 52163|33.928144
A117: 116 | B117: 21.26 | C117: 21.54 | D117: 23.16 | E117: 24.37 | F117: 28.24 | G117: 31.28 | H117: 34.45 | J117: 52617 | K117: 52617|21.26344 | L117: 52617|21.535504 | M117: 52617|23.162896 | N117: 52617|24.368464 | O117: 52617|28.244752 | P117: 52617|31.28488 | Q117: 52617|34.4548
A118: 117 | B118: 21.29 | C118: 21.74 | D118: 23.39 | E118: 24.70 | F118: 28.25 | G118: 31.29 | H118: 34.68 | J118: 53070 | K118: 53070|21.285904 | L118: 53070|21.742672 | M118: 53070|23.38504 | N118: 53070|24.69544 | O118: 53070|28.247248 | P118: 53070|31.287376 | Q118: 53070|34.67944
A119: 118 | B119: 21.51 | C119: 22.00 | D119: 23.41 | E119: 24.77 | F119: 28.45 | G119: 31.29 | H119: 35.27 | J119: 53524 | K119: 53524|21.51304 | L119: 53524|21.997264 | M119: 53524|23.407504 | N119: 53524|24.767824 | O119: 53524|28.454416 | P119: 53524|31.289872 | Q119: 53524|35.273488
A120: 119 | B120: 22.15 | C120: 22.45 | D120: 24.10 | E120: 25.14 | F120: 28.46 | G120: 31.53 | H120: 35.28 | J120: 53977 | K120: 53977|22.152016 | L120: 53977|22.44904 | M120: 53977|24.101392 | N120: 53977|25.142224 | O120: 53977|28.456912 | P120: 53977|31.53448 | Q120: 53977|35.275984
A121: 120 | B121: 22.75 | C121: 22.77 | D121: 24.14 | E121: 25.31 | F121: 28.95 | G121: 31.95 | H121: 35.28 | J121: 54431 | K121: 54431|22.753552 | L121: 54431|22.771024 | M121: 54431|24.136336 | N121: 54431|25.314448 | O121: 54431|28.953616 | P121: 54431|31.948816 | Q121: 54431|35.27848
A122: 121 | B122: 22.76 | C122: 22.78 | D122: 24.14 | E122: 25.32 | F122: 29.14 | G122: 31.95 | H122: 35.28 | J122: 54885 | K122: 54885|22.756048 | L122: 54885|22.776016 | M122: 54885|24.138832 | N122: 54885|25.31944 | O122: 54885|29.13832 | P122: 54885|31.953808 | Q122: 54885|35.280976
A123: 122 | B123: 22.76 | C123: 23.21 | D123: 24.38 | E123: 25.55 | F123: 29.37 | G123: 32.46 | H123: 35.90 | J123: 55338 | K123: 55338|22.758544 | L123: 55338|23.212816 | M123: 55338|24.375952 | N123: 55338|25.546576 | O123: 55338|29.365456 | P123: 55338|32.455504 | Q123: 55338|35.899984
A124: 123 | B124: 22.96 | C124: 23.24 | D124: 25.11 | E124: 26.24 | F124: 29.60 | G124: 33.05 | H124: 36.39 | J124: 55792 | K124: 55792|22.963216 | L124: 55792|23.23528 | M124: 55792|25.10728 | N124: 55792|26.24296 | O124: 55792|29.595088 | P124: 55792|33.052048 | Q124: 55792|36.3892
A125: 124 | B125: 22.97 | C125: 23.46 | D125: 25.37 | E125: 26.25 | F125: 29.79 | G125: 33.05 | H125: 36.39 | J125: 56245 | K125: 56245|22.965712 | L125: 56245|23.464912 | M125: 56245|25.36936 | N125: 56245|26.245456 | O125: 56245|29.789776 | P125: 56245|33.054544 | Q125: 56245|36.391696
A126: 125 | B126: 23.19 | C126: 23.47 | D126: 25.37 | E126: 26.25 | F126: 29.79 | G126: 33.06 | H126: 36.39 | J126: 56699 | K126: 56699|23.18536 | L126: 56699|23.467408 | M126: 56699|25.371856 | N126: 56699|26.247952 | O126: 56699|29.792272 | P126: 56699|33.05704 | Q126: 56699|36.394192
A127: 126 | B127: 23.65 | C127: 23.70 | D127: 25.63 | E127: 26.25 | F127: 29.97 | G127: 33.06 | H127: 37.68 | J127: 57153 | K127: 57153|23.649616 | L127: 57153|23.69704 | M127: 57153|25.63144 | N127: 57153|26.250448 | O127: 57153|29.969488 | P127: 57153|33.059536 | Q127: 57153|37.677136
A128: 127 | B128: 23.65 | C128: 24.11 | D128: 26.13 | E128: 26.85 | F128: 30.65 | G128: 33.66 | H128: 37.68 | J128: 57606 | K128: 57606|23.652112 | L128: 57606|24.106384 | M128: 57606|26.128144 | N128: 57606|26.846992 | O128: 57606|30.650896 | P128: 57606|33.65608 | Q128: 57606|37.679632
A129: 128 | B129: 23.87 | C129: 24.11 | D129: 26.13 | E129: 26.85 | F129: 30.65 | G129: 33.66 | H129: 37.88 | J129: 58060 | K129: 58060|23.87176 | L129: 58060|24.10888 | M129: 58060|26.13064 | N129: 58060|26.851984 | O129: 58060|30.653392 | P129: 58060|33.658576 | Q129: 58060|37.881808
A130: 129 | B130: 24.33 | C130: 24.42 | D130: 26.14 | E130: 27.03 | F130: 30.66 | G130: 33.66 | H130: 38.25 | J130: 58513 | K130: 58513|24.326032 | L130: 58513|24.418384 | M130: 58513|26.140624 | N130: 58513|27.034192 | O130: 58513|30.655888 | P130: 58513|33.663568 | Q130: 58513|38.246224
A131: 130 | B131: 24.42 | C131: 24.43 | D131: 26.38 | E131: 27.04 | F131: 30.88 | G131: 34.10 | H131: 39.12 | J131: =ROUND(A131*0.453592*1000,0) -> 58967 | K131: =_xlfn.CONCAT($J131,"|",B131) -> 58967|24.42088 | L131: =_xlfn.CONCAT($J131,"|",C131) -> 58967|24.425872 | M131: =_xlfn.CONCAT($J131,"|",D131) -> 58967|26.375248 | N131: =_xlfn.CONCAT($J131,"|",E131) -> 58967|27.036688 | O131: =_xlfn.CONCAT($J131,"|",F131) -> 58967|30.878032 | P131: =_xlfn.CONCAT($J131,"|",G131) -> 58967|34.100368 | Q131: =_xlfn.CONCAT($J131,"|",H131) -> 58967|39.12232
A132: 131 | B132: 24.56 | C132: 24.81 | D132: 26.88 | E132: 27.48 | F132: 31.33 | G132: 34.42 | H132: 39.30 | J132: 59421 | K132: 59421|24.555664 | L132: 59421|24.80776 | M132: 59421|26.876944 | N132: 59421|27.47848 | O132: 59421|31.332304 | P132: 59421|34.422352 | Q132: 59421|39.302032
A133: 132 | B133: 24.82 | C133: 24.82 | D133: 26.88 | E133: 27.66 | F133: 31.33 | G133: 34.42 | H133: 39.30 | J133: 59874 | K133: 59874|24.815248 | L133: 59874|24.817744 | M133: 59874|26.87944 | N133: 59874|27.660688 | O133: 59874|31.3348 | P133: 59874|34.424848 | Q133: 59874|39.304528
A134: 133 | B134: 25.02 | C134: 25.09 | D134: 26.88 | E134: 27.66 | F134: 31.50 | G134: 34.43 | H134: 39.31 | J134: 60328 | K134: 60328|25.024912 | L134: 60328|25.092304 | M134: 60328|26.881936 | N134: 60328|27.663184 | O134: 60328|31.49704 | P134: 60328|34.427344 | Q134: 60328|39.307024
A135: 134 | B135: 25.49 | C135: 25.52 | D135: 27.41 | E135: 28.16 | F135: 32.04 | G135: 34.99 | H135: 39.31 | J135: 60781 | K135: 60781|25.491664 | L135: 60781|25.521616 | M135: 60781|27.411088 | N135: 60781|28.159888 | O135: 60781|32.041168 | P135: 60781|34.99144 | Q135: 60781|39.312016
A136: 135 | B136: 25.69 | C136: 26.03 | D136: 27.91 | E136: 28.66 | F136: 32.44 | G136: 35.18 | H136: 39.50 | J136: 61235 | K136: 61235|25.686352 | L136: 61235|26.025808 | M136: 61235|27.910288 | N136: 61235|28.659088 | O136: 61235|32.435536 | P136: 61235|35.176144 | Q136: 61235|39.504208
A137: 136 | B137: 25.87 | C137: 26.03 | D137: 28.10 | E137: 28.91 | F137: 32.44 | G137: 35.72 | H137: 39.77 | J137: 61689 | K137: 61689|25.873552 | L137: 61689|26.028304 | M137: 61689|28.099984 | N137: 61689|28.908688 | O137: 61689|32.438032 | P137: 61689|35.722768 | Q137: 61689|39.773776
A138: 137 | B138: 25.88 | C138: 26.09 | D138: 28.84 | E138: 29.12 | F138: 32.44 | G138: 35.73 | H138: 39.78 | J138: 62142 | K138: 62142|25.878544 | L138: 62142|26.090704 | M138: 62142|28.843792 | N138: 62142|29.120848 | O138: 62142|32.440528 | P138: 62142|35.725264 | Q138: 62142|39.776272
A139: 138 | B139: 26.36 | C139: 26.75 | D139: 28.98 | E139: 29.36 | F139: 33.10 | G139: 36.03 | H139: 40.87 | J139: 62596 | K139: 62596|26.360272 | L139: 62596|26.75464 | M139: 62596|28.983568 | N139: 62596|29.360464 | O139: 62596|33.104464 | P139: 62596|36.02728 | Q139: 62596|40.867024
A140: 139 | B140: 26.85 | C140: 26.85 | D140: 28.99 | E140: 29.37 | F140: 33.11 | G140: 36.70 | H140: 40.88 | J140: 63049 | K140: 63049|26.849488 | L140: 63049|26.851984 | M140: 63049|28.991056 | N140: 63049|29.365456 | O140: 63049|33.109456 | P140: 63049|36.698704 | Q140: 63049|40.877008
A141: 140 | B141: 27.07 | C141: 27.28 | D141: 29.28 | E141: 29.82 | F141: 33.46 | G141: 36.70 | H141: 40.88 | J141: 63503 | K141: 63503|27.071632 | L141: 63503|27.281296 | M141: 63503|29.2756 | N141: 63503|29.82472 | O141: 63503|33.463888 | P141: 63503|36.7012 | Q141: 63503|40.879504
A142: 141 | B142: 27.07 | C142: 27.28 | D142: 29.53 | E142: 29.83 | F142: 33.47 | G142: 36.70 | H142: 41.27 | J142: 63956 | K142: 63956|27.074128 | L142: 63956|27.283792 | M142: 63956|29.532688 | N142: 63956|29.829712 | O142: 63956|33.466384 | P142: 63956|36.703696 | Q142: 63956|41.266384
A143: 142 | B143: 27.42 | C143: 27.42 | D143: 29.79 | E143: 30.31 | F143: 33.97 | G143: 36.87 | H143: 41.27 | J143: 64410 | K143: 64410|27.421072 | L143: 64410|27.423568 | M143: 64410|29.794768 | N143: 64410|30.306448 | O143: 64410|33.965584 | P143: 64410|36.868432 | Q143: 64410|41.26888
A144: 143 | B144: 27.42 | C144: 27.43 | D144: 29.80 | E144: 30.31 | F144: 33.97 | G144: 36.87 | H144: 41.27 | J144: 64864 | K144: 64864|27.423568 | L144: 64864|27.426064 | M144: 64864|29.797264 | N144: 64864|30.308944 | O144: 64864|33.96808 | P144: 64864|36.870928 | Q144: 64864|41.271376
A145: 144 | B145: 28.20 | C145: 28.58 | D145: 30.67 | E145: 31.26 | F145: 34.87 | G145: 38.18 | H145: 42.71 | J145: 65317 | K145: 65317|28.197328 | L145: 65317|28.57672 | M145: 65317|30.668368 | N145: 65317|31.257424 | O145: 65317|34.871632 | P145: 65317|38.181328 | Q145: 65317|42.711568
A146: 145 | B146: 28.20 | C146: 28.86 | D146: 30.67 | E146: 31.26 | F146: 35.39 | G146: 38.27 | H146: 42.71 | J146: 65771 | K146: 65771|28.199824 | L146: 65771|28.86376 | M146: 65771|30.670864 | N146: 65771|31.25992 | O146: 65771|35.3908 | P146: 65771|38.266192 | Q146: 65771|42.714064
A147: 146 | B147: 28.20 | C147: 28.87 | D147: 30.67 | E147: 31.26 | F147: 35.39 | G147: 38.27 | H147: 42.72 | J147: 66224 | K147: 66224|28.20232 | L147: 66224|28.866256 | M147: 66224|30.67336 | N147: 66224|31.262416 | O147: 66224|35.393296 | P147: 66224|38.268688 | Q147: 66224|42.71656
A148: 147 | B148: 28.54 | C148: 29.15 | D148: 31.21 | E148: 31.58 | F148: 35.65 | G148: 38.27 | H148: 43.11 | J148: 66678 | K148: 66678|28.544272 | L148: 66678|29.1508 | M148: 66678|31.212496 | N148: 66678|31.576912 | O148: 66678|35.647888 | P148: 66678|38.271184 | Q148: 66678|43.110928
A149: 148 | B149: 28.55 | C149: 29.32 | D149: 31.25 | E149: 31.58 | F149: 35.65 | G149: 38.27 | H149: 43.11 | J149: 67132 | K149: 67132|28.546768 | L149: 67132|29.323024 | M149: 67132|31.249936 | N149: 67132|31.579408 | O149: 67132|35.650384 | P149: 67132|38.27368 | Q149: 67132|43.113424
A150: 149 | B150: 28.55 | C150: 29.33 | D150: 31.68 | E150: 32.07 | F150: 35.77 | G150: 38.64 | H150: 43.52 | J150: 67585 | K150: 67585|28.549264 | L150: 67585|29.32552 | M150: 67585|31.679248 | N150: 67585|32.073616 | O150: 67585|35.767696 | P150: 67585|38.6356 | Q150: 67585|43.522768
A151: 150 | B151: 28.55 | C151: 29.33 | D151: 31.68 | E151: 32.53 | F151: 35.77 | G151: 38.64 | H151: 43.53 | J151: 68039 | K151: 68039|28.55176 | L151: 68039|29.328016 | M151: 68039|31.68424 | N151: 68039|32.530384 | O151: 68039|35.770192 | P151: 68039|38.638096 | Q151: 68039|43.525264

Sheet 邮差小马
A1: lbs. | B1: 2 | C1: 3 | D1: 4 | E1: 5 | F1: 6 | G1: 7 | H1: 8
A2: 1 | B2: 7.31 | C2: 7.31 | D2: 7.31 | E2: 7.31 | F2: 7.31 | G2: 7.31 | H2: 7.31
A3: 2 | B3: 7.31 | C3: 7.31 | D3: 7.31 | E3: 7.31 | F3: 7.31 | G3: 7.31 | H3: 7.31
A4: 3 | B4: 7.31 | C4: 7.31 | D4: 7.31 | E4: 7.31 | F4: 7.31 | G4: 7.31 | H4: 7.31
A5: 4 | B5: 7.31 | C5: 7.31 | D5: 7.31 | E5: 7.31 | F5: 7.31 | G5: 7.31 | H5: 7.46
A6: 5 | B6: 7.31 | C6: 7.31 | D6: 7.31 | E6: 7.31 | F6: 7.31 | G6: 7.46 | H6: 7.90
A7: 6 | B7: 7.31 | C7: 7.31 | D7: 7.31 | E7: 7.31 | F7: 7.31 | G7: 7.46 | H7: 7.91
A8: 7 | B8: 7.31 | C8: 7.31 | D8: 7.31 | E8: 7.31 | F8: 7.31 | G8: 7.66 | H8: 8.20
A9: 8 | B9: 7.31 | C9: 7.31 | D9: 7.31 | E9: 7.31 | F9: 7.47 | G9: 7.97 | H9: 8.56
A10: 9 | B10: 7.31 | C10: 7.31 | D10: 7.31 | E10: 7.31 | F10: 7.63 | G10: 8.30 | H10: 9.02
A11: 10 | B11: 7.31 | C11: 7.31 | D11: 7.31 | E11: 7.48 | F11: 7.72 | G11: 8.70 | H11: 9.61
A12: 11 | B12: 7.31 | C12: 7.31 | D12: 7.31 | E12: 7.31 | F12: 7.31 | G12: 7.93 | H12: 8.61
A13: 12 | B13: 7.31 | C13: 7.31 | D13: 7.31 | E13: 7.31 | F13: 7.31 | G13: 8.25 | H13: 9.02
A14: 13 | B14: 7.31 | C14: 7.31 | D14: 7.31 | E14: 7.31 | F14: 7.31 | G14: 8.75 | H14: 9.42
A15: 14 | B15: 7.31 | C15: 7.31 | D15: 7.31 | E15: 7.31 | F15: 7.60 | G15: 9.38 | H15: 10.25
A16: 15 | B16: 7.31 | C16: 7.31 | D16: 7.31 | E16: 7.31 | F16: 8.01 | G16: 9.67 | H16: 10.67
A17: 16 | B17: 7.31 | C17: 7.31 | D17: 7.31 | E17: 7.31 | F17: 8.27 | G17: 10.18 | H17: 11.20
A18: 17 | B18: 7.31 | C18: 7.31 | D18: 7.31 | E18: 7.31 | F18: 8.62 | G18: 10.70 | H18: 11.20
A19: 18 | B19: 7.31 | C19: 7.31 | D19: 7.31 | E19: 7.62 | F19: 9.07 | G19: 11.02 | H19: 12.08
A20: 19 | B20: 7.31 | C20: 7.31 | D20: 7.31 | E20: 7.98 | F20: 9.34 | G20: 11.35 | H20: 12.65
A21: 20 | B21: 7.31 | C21: 7.31 | D21: 7.31 | E21: 8.29 | F21: 9.66 | G21: 11.77 | H21: 13.11
A22: 21 | B22: 7.31 | C22: 7.31 | D22: 7.31 | E22: 8.11 | F22: 9.63 | G22: 11.70 | H22: 13.06
A23: 22 | B23: 7.31 | C23: 7.31 | D23: 7.31 | E23: 8.33 | F23: 10.02 | G23: 12.13 | H23: 13.64
A24: 23 | B24: 7.31 | C24: 7.31 | D24: 7.31 | E24: 8.49 | F24: 10.40 | G24: 12.42 | H24: 14.18
A25: 24 | B25: 7.31 | C25: 7.31 | D25: 7.58 | E25: 8.94 | F25: 10.89 | G25: 12.84 | H25: 14.99
A26: 25 | B26: 7.31 | C26: 7.31 | D26: 7.61 | E26: 9.11 | F26: 11.21 | G26: 13.55 | H26: 15.45
A27: 26 | B27: 7.31 | C27: 7.35 | D27: 7.93 | E27: 9.49 | F27: 11.62 | G27: 14.10 | H27: 16.09
A28: 27 | B28: 7.31 | C28: 7.53 | D28: 8.09 | E28: 9.64 | F28: 12.09 | G28: 14.36 | H28: 16.36
A29: 28 | B29: 7.31 | C29: 7.71 | D29: 8.46 | E29: 10.21 | F29: 12.68 | G29: 15.00 | H29: 16.99
A30: 29 | B30: 7.31 | C30: 7.86 | D30: 8.54 | E30: 10.21 | F30: 13.04 | G30: 15.34 | H30: 17.44
A31: 30 | B31: 7.31 | C31: 8.04 | D31: 8.86 | E31: 10.61 | F31: 13.25 | G31: 15.42 | H31: 18.16
A32: 31 | B32: 7.31 | C32: 7.66 | D32: 8.42 | E32: 10.01 | F32: 12.69 | G32: 14.89 | H32: 17.45
A33: 32 | B33: 7.31 | C33: 7.66 | D33: 8.42 | E33: 10.01 | F33: 12.70 | G33: 14.89 | H33: 17.64
A34: 33 | B34: 7.31 | C34: 7.77 | D34: 8.80 | E34: 10.48 | F34: 13.49 | G34: 15.39 | H34: 18.12
A35: 34 | B35: 7.31 | C35: 7.95 | D35: 9.08 | E35: 10.85 | F35: 13.50 | G35: 15.85 | H35: 18.99
A36: 35 | B36: 7.31 | C36: 8.37 | D36: 9.38 | E36: 11.11 | F36: 13.73 | G36: 16.25 | H36: 19.12
A37: 36 | B37: 7.31 | C37: 8.37 | D37: 9.45 | E37: 11.38 | F37: 14.30 | G37: 16.81 | H37: 19.87
A38: 37 | B38: 7.31 | C38: 8.49 | D38: 9.55 | E38: 11.63 | F38: 14.37 | G38: 17.35 | H38: 20.07
A39: 38 | B39: 7.31 | C39: 8.61 | D39: 9.86 | E39: 11.92 | F39: 14.69 | G39: 17.42 | H39: 20.44
A40: 39 | B40: 7.36 | C40: 8.95 | D40: 10.28 | E40: 12.28 | F40: 15.36 | G40: 18.10 | H40: 20.86
A41: 40 | B41: 7.36 | C41: 8.98 | D41: 10.28 | E41: 12.29 | F41: 15.38 | G41: 18.10 | H41: 20.87
A42: 41 | B42: 7.53 | C42: 9.37 | D42: 10.58 | E42: 12.72 | F42: 16.02 | G42: 18.66 | H42: 21.65
A43: 42 | B43: 7.53 | C43: 9.40 | D43: 10.99 | E43: 12.76 | F43: 16.09 | G43: 18.98 | H43: 21.76
A44: 43 | B44: 7.68 | C44: 9.54 | D44: 11.01 | E44: 13.41 | F44: 16.97 | G44: 19.67 | H44: 22.36
A45: 44 | B45: 7.78 | C45: 9.68 | D45: 11.29 | E45: 13.65 | F45: 17.06 | G45: 20.28 | H45: 22.59
A46: 45 | B46: 7.79 | C46: 9.69 | D46: 11.29 | E46: 13.66 | F46: 17.07 | G46: 20.68 | H46: 22.75
A47: 46 | B47: 8.00 | C47: 9.79 | D47: 11.65 | E47: 13.92 | F47: 17.52 | G47: 20.90 | H47: 23.35
A48: 47 | B48: 8.00 | C48: 10.01 | D48: 11.84 | E48: 14.02 | F48: 17.76 | G48: 21.30 | H48: 23.73
A49: 48 | B49: 8.00 | C49: 10.01 | D49: 11.98 | E49: 14.52 | F49: 18.02 | G49: 21.50 | H49: 24.10
A50: 49 | B50: 8.00 | C50: 10.01 | D50: 11.98 | E50: 14.52 | F50: 18.16 | G50: 21.93 | H50: 24.24
A51: 50 | B51: 8.01 | C51: 10.02 | D51: 11.98 | E51: 14.54 | F51: 18.31 | G51: 22.12 | H51: 24.59
A52: 51 | B52: 8.01 | C52: 10.02 | D52: 12.04 | E52: 14.61 | F52: 18.54 | G52: 22.40 | H52: 25.15
A53: 52 | B53: 8.01 | C53: 10.02 | D53: 12.05 | E53: 14.61 | F53: 18.54 | G53: 22.40 | H53: 25.16
A54: 53 | B54: 8.02 | C54: 10.02 | D54: 12.05 | E54: 14.76 | F54: 18.55 | G54: 22.41 | H54: 25.40
A55: 54 | B55: 8.02 | C55: 10.03 | D55: 12.07 | E55: 14.78 | F55: 18.55 | G55: 22.41 | H55: 25.40
A56: 55 | B56: 8.02 | C56: 10.03 | D56: 12.07 | E56: 14.79 | F56: 18.56 | G56: 22.41 | H56: 25.41
A57: 56 | B57: 8.03 | C57: 10.04 | D57: 12.08 | E57: 14.79 | F57: 18.56 | G57: 22.42 | H57: 25.73
A58: 57 | B58: 8.17 | C58: 10.09 | D58: 12.08 | E58: 15.23 | F58: 18.57 | G58: 22.42 | H58: 25.99
A59: 58 | B59: 8.18 | C59: 10.09 | D59: 12.09 | E59: 15.24 | F59: 18.57 | G59: 22.43 | H59: 26.21
A60: 59 | B60: 8.18 | C60: 10.10 | D60: 12.17 | E60: 15.25 | F60: 18.70 | G60: 22.43 | H60: 26.65
A61: 60 | B61: 8.41 | C61: 10.49 | D61: 12.38 | E61: 15.79 | F61: 19.05 | G61: 22.51 | H61: 26.81
A62: 61 | B62: 8.41 | C62: 10.52 | D62: 12.50 | E62: 15.82 | F62: 19.05 | G62: 22.51 | H62: 26.82
A63: 62 | B63: 8.75 | C63: 11.27 | D63: 12.70 | E63: 16.27 | F63: 19.34 | G63: 22.86 | H63: 27.14
A64: 63 | B64: 8.76 | C64: 11.27 | D64: 12.82 | E64: 16.28 | F64: 19.48 | G64: 23.04 | H64: 27.31
A65: 64 | B65: 8.99 | C65: 11.28 | D65: 13.03 | E65: 16.28 | F65: 19.61 | G65: 23.05 | H65: 27.48
A66: 65 | B66: 9.09 | C66: 11.58 | D66: 13.04 | E66: 16.28 | F66: 19.79 | G66: 23.10 | H66: 27.52
A67: 66 | B67: 9.14 | C67: 11.69 | D67: 13.04 | E67: 16.29 | F67: 19.80 | G67: 23.17 | H67: 27.64
A68: 67 | B68: 9.14 | C68: 11.70 | D68: 13.04 | E68: 16.32 | F68: 19.95 | G68: 23.29 | H68: 27.90
A69: 68 | B69: 9.24 | C69: 11.91 | D69: 13.83 | E69: 16.69 | F69: 20.25 | G69: 23.64 | H69: 27.90
A70: 69 | B70: 9.43 | C70: 12.03 | D70: 13.97 | E70: 16.81 | F70: 20.35 | G70: 23.64 | H70: 28.05
A71: 70 | B71: 9.48 | C71: 12.19 | D71: 14.27 | E71: 17.62 | F71: 20.76 | G71: 23.65 | H71: 28.29
A72: 71 | B72: 9.48 | C72: 12.20 | D72: 14.49 | E72: 17.62 | F72: 20.90 | G72: 24.03 | H72: 28.30
A73: 72 | B73: 9.75 | C73: 12.20 | D73: 14.80 | E73: 17.62 | F73: 21.24 | G73: 25.05 | H73: 28.34
A74: 73 | B74: 9.82 | C74: 12.31 | D74: 14.80 | E74: 17.88 | F74: 21.47 | G74: 25.10 | H74: 28.34
A75: 74 | B75: 10.08 | C75: 12.32 | D75: 14.80 | E75: 17.89 | F75: 21.80 | G75: 25.10 | H75: 28.35
A76: 75 | B76: 10.45 | C76: 12.32 | D76: 14.81 | E76: 18.03 | F76: 21.80 | G76: 25.36 | H76: 28.35
A77: 76 | B77: 11.26 | C77: 13.01 | D77: 14.90 | E77: 18.30 | F77: 22.29 | G77: 25.77 | H77: 28.62
A78: 77 | B78: 11.70 | C78: 13.20 | D78: 15.07 | E78: 18.39 | F78: 22.41 | G78: 26.50 | H78: 28.62
A79: 78 | B79: 11.71 | C79: 13.70 | D79: 15.52 | E79: 18.58 | F79: 22.56 | G79: 26.70 | H79: 28.62
A80: 79 | B80: 12.23 | C80: 14.27 | D80: 15.90 | E80: 18.88 | F80: 23.03 | G80: 27.11 | H80: 29.09
A81: 80 | B81: 12.57 | C81: 14.54 | D81: 15.97 | E81: 19.33 | F81: 23.41 | G81: 27.48 | H81: 29.31
A82: 81 | B82: 12.88 | C82: 14.66 | D82: 16.36 | E82: 19.46 | F82: 23.71 | G82: 27.65 | H82: 29.41
A83: 82 | B83: 13.29 | C83: 15.02 | D83: 17.10 | E83: 19.95 | F83: 23.78 | G83: 28.37 | H83: 29.42
A84: 83 | B84: 13.29 | C84: 15.02 | D84: 17.10 | E84: 19.96 | F84: 23.85 | G84: 28.37 | H84: 29.42
A85: 84 | B85: 13.82 | C85: 15.61 | D85: 17.60 | E85: 20.15 | F85: 24.43 | G85: 28.71 | H85: 29.64
A86: 85 | B86: 14.19 | C86: 15.62 | D86: 17.61 | E86: 20.47 | F86: 24.58 | G86: 29.02 | H86: 29.97
A87: 86 | B87: 14.71 | C87: 16.48 | D87: 18.30 | E87: 20.86 | F87: 25.11 | G87: 29.84 | H87: 30.88
A88: 87 | B88: 15.02 | C88: 16.49 | D88: 18.30 | E88: 20.86 | F88: 25.44 | G88: 29.86 | H88: 30.93
A89: 88 | B89: 15.64 | C89: 16.86 | D89: 18.88 | E89: 21.53 | F89: 25.53 | G89: 29.89 | H89: 31.27
A90: 89 | B90: 16.34 | C90: 17.33 | D90: 19.25 | E90: 21.60 | F90: 26.08 | G90: 30.20 | H90: 31.93
A91: 90 | B91: 17.34 | C91: 18.08 | D91: 20.08 | E91: 22.24 | F91: 26.45 | G91: 30.90 | H91: 32.56
A92: 91 | B92: 17.34 | C92: 18.08 | D92: 20.09 | E92: 22.24 | F92: 26.46 | G92: 30.90 | H92: 32.56
A93: 92 | B93: 17.73 | C93: 18.25 | D93: 20.19 | E93: 22.45 | F93: 26.78 | G93: 30.91 | H93: 32.66
A94: 93 | B94: 17.95 | C94: 18.43 | D94: 20.57 | E94: 22.46 | F94: 26.78 | G94: 30.91 | H94: 32.66
A95: 94 | B95: 18.05 | C95: 18.91 | D95: 20.68 | E95: 22.75 | F95: 27.35 | G95: 30.91 | H95: 33.31
A96: 95 | B96: 18.29 | C96: 19.08 | D96: 20.81 | E96: 23.06 | F96: 27.43 | G96: 31.02 | H96: 33.66
A97: 96 | B97: 18.88 | C97: 19.21 | D97: 21.58 | E97: 23.31 | F97: 27.44 | G97: 31.02 | H97: 34.00
A98: 97 | B98: 19.50 | C98: 19.96 | D98: 21.89 | E98: 23.69 | F98: 28.03 | G98: 31.47 | H98: 34.67
A99: 98 | B99: 19.76 | C99: 20.09 | D99: 21.89 | E99: 23.96 | F99: 28.34 | G99: 31.47 | H99: 34.67
A100: 99 | B100: 20.03 | C100: 20.21 | D100: 22.30 | E100: 24.27 | F100: 28.40 | G100: 31.79 | H100: 35.02
A101: 100 | B101: 20.36 | C101: 20.55 | D101: 22.51 | E101: 24.40 | F101: 28.71 | G101: 31.81 | H101: 35.04
A102: 101 | B102: 20.51 | C102: 20.75 | D102: 22.52 | E102: 24.63 | F102: 28.99 | G102: 32.11 | H102: 35.37
A103: 102 | B103: 20.70 | C103: 20.75 | D103: 22.73 | E103: 24.63 | F103: 28.99 | G103: 32.11 | H103: 35.37
A104: 103 | B104: 20.97 | C104: 21.27 | D104: 23.20 | E104: 24.77 | F104: 29.06 | G104: 32.12 | H104: 35.37
A105: 104 | B105: 20.98 | C105: 21.27 | D105: 23.26 | E105: 24.80 | F105: 29.07 | G105: 32.12 | H105: 35.38
A106: 105 | B106: 21.73 | C106: 21.90 | D106: 23.75 | E106: 25.56 | F106: 29.79 | G106: 32.87 | H106: 36.25
A107: 106 | B107: 21.88 | C107: 21.90 | D107: 23.75 | E107: 25.56 | F107: 29.79 | G107: 32.87 | H107: 36.25
A108: 107 | B108: 21.99 | C108: 22.20 | D108: 24.07 | E108: 25.83 | F108: 29.79 | G108: 33.12 | H108: 36.53
A109: 108 | B109: 22.30 | C109: 22.45 | D109: 24.30 | E109: 25.84 | F109: 30.06 | G109: 33.12 | H109: 36.54
A110: 109 | B110: 22.98 | C110: 22.98 | D110: 24.60 | E110: 26.34 | F110: 30.32 | G110: 33.71 | H110: 37.20
A111: 110 | B111: 23.37 | C111: 23.54 | D111: 25.12 | E111: 26.84 | F111: 31.16 | G111: 34.34 | H111: 37.89
A112: 111 | B112: 23.38 | C112: 23.57 | D112: 25.67 | E112: 27.10 | F112: 31.16 | G112: 34.59 | H112: 38.34
A113: 112 | B113: 23.65 | C113: 24.06 | D113: 25.68 | E113: 27.11 | F113: 31.41 | G113: 34.59 | H113: 38.34
A114: 113 | B114: 23.65 | C114: 24.06 | D114: 25.96 | E114: 27.36 | F114: 31.41 | G114: 34.59 | H114: 38.68
A115: 114 | B115: 23.90 | C115: 24.57 | D115: 26.50 | E115: 27.89 | F115: 32.24 | G115: 35.46 | H115: 39.29
A116: 115 | B116: 24.63 | C116: 24.94 | D116: 26.51 | E116: 28.23 | F116: 32.25 | G116: 35.80 | H116: 39.31
A117: 116 | B117: 24.63 | C117: 24.95 | D117: 26.83 | E117: 28.23 | F117: 32.72 | G117: 36.24 | H117: 39.92
A118: 117 | B118: 24.66 | C118: 25.19 | D118: 27.09 | E118: 28.61 | F118: 32.72 | G118: 36.25 | H118: 40.18
A119: 118 | B119: 24.92 | C119: 25.48 | D119: 27.12 | E119: 28.69 | F119: 32.96 | G119: 36.25 | H119: 40.87
A120: 119 | B120: 25.66 | C120: 26.01 | D120: 27.92 | E120: 29.13 | F120: 32.97 | G120: 36.53 | H120: 40.87
A121: 120 | B121: 26.36 | C121: 26.38 | D121: 27.96 | E121: 29.33 | F121: 33.54 | G121: 37.01 | H121: 40.87
A122: 121 | B122: 26.36 | C122: 26.39 | D122: 27.96 | E122: 29.33 | F122: 33.76 | G122: 37.02 | H122: 40.88
A123: 122 | B123: 26.36 | C123: 26.89 | D123: 28.24 | E123: 29.60 | F123: 34.02 | G123: 37.60 | H123: 41.59
A124: 123 | B124: 26.60 | C124: 26.92 | D124: 29.09 | E124: 30.40 | F124: 34.29 | G124: 38.29 | H124: 42.16
A125: 124 | B125: 26.60 | C125: 27.18 | D125: 29.39 | E125: 30.41 | F125: 34.51 | G125: 38.30 | H125: 42.16
A126: 125 | B126: 26.86 | C126: 27.19 | D126: 29.39 | E126: 30.41 | F126: 34.52 | G126: 38.30 | H126: 42.17
A127: 126 | B127: 27.40 | C127: 27.45 | D127: 29.69 | E127: 30.41 | F127: 34.72 | G127: 38.30 | H127: 43.65
A128: 127 | B128: 27.40 | C128: 27.93 | D128: 30.27 | E128: 31.10 | F128: 35.51 | G128: 38.99 | H128: 43.65
A129: 128 | B129: 27.65 | C129: 27.93 | D129: 30.27 | E129: 31.11 | F129: 35.51 | G129: 39.00 | H129: 43.89
A130: 129 | B130: 28.18 | C130: 28.29 | D130: 30.28 | E130: 31.32 | F130: 35.52 | G130: 39.00 | H130: 44.31
A131: 130 | B131: 28.29 | C131: 28.30 | D131: 30.56 | E131: 31.32 | F131: 35.77 | G131: 39.51 | H131: 45.33
A132: 131 | B132: 28.45 | C132: 28.74 | D132: 31.14 | E132: 31.83 | F132: 36.30 | G132: 39.88 | H132: 45.53
A133: 132 | B133: 28.75 | C133: 28.75 | D133: 31.14 | E133: 32.05 | F133: 36.30 | G133: 39.88 | H133: 45.54
A134: 133 | B134: 28.99 | C134: 29.07 | D134: 31.14 | E134: 32.05 | F134: 36.49 | G134: 39.89 | H134: 45.54
A135: 134 | B135: 29.53 | C135: 29.57 | D135: 31.76 | E135: 32.62 | F135: 37.12 | G135: 40.54 | H135: 45.55
A136: 135 | B136: 29.76 | C136: 30.15 | D136: 32.33 | E136: 33.20 | F136: 37.58 | G136: 40.75 | H136: 45.77
A137: 136 | B137: 29.97 | C137: 30.15 | D137: 32.55 | E137: 33.49 | F137: 37.58 | G137: 41.39 | H137: 46.08
A138: 137 | B138: 29.98 | C138: 30.23 | D138: 33.42 | E138: 33.74 | F138: 37.58 | G138: 41.39 | H138: 46.08
A139: 138 | B139: 30.54 | C139: 31.00 | D139: 33.58 | E139: 34.01 | F139: 38.35 | G139: 41.74 | H139: 47.35
A140: 139 | B140: 31.11 | C140: 31.11 | D140: 33.59 | E140: 34.02 | F140: 38.36 | G140: 42.52 | H140: 47.36
A141: 140 | B141: 31.36 | C141: 31.61 | D141: 33.92 | E141: 34.55 | F141: 38.77 | G141: 42.52 | H141: 47.36
A142: 141 | B142: 31.37 | C142: 31.61 | D142: 34.21 | E142: 34.56 | F142: 38.77 | G142: 42.52 | H142: 47.81
A143: 142 | B143: 31.77 | C143: 31.77 | D143: 34.52 | E143: 35.11 | F143: 39.35 | G143: 42.71 | H143: 47.81
A144: 143 | B144: 31.77 | C144: 31.77 | D144: 34.52 | E144: 35.11 | F144: 39.35 | G144: 42.72 | H144: 47.82
A145: 144 | B145: 32.67 | C145: 33.11 | D145: 35.53 | E145: 36.21 | F145: 40.40 | G145: 44.24 | H145: 49.49
A146: 145 | B146: 32.67 | C146: 33.44 | D146: 35.53 | E146: 36.22 | F146: 41.00 | G146: 44.33 | H146: 49.49
A147: 146 | B147: 32.67 | C147: 33.44 | D147: 35.54 | E147: 36.22 | F147: 41.01 | G147: 44.34 | H147: 49.49
A148: 147 | B148: 33.07 | C148: 33.77 | D148: 36.16 | E148: 36.58 | F148: 41.30 | G148: 44.34 | H148: 49.95
A149: 148 | B149: 33.07 | C149: 33.97 | D149: 36.20 | E149: 36.59 | F149: 41.30 | G149: 44.34 | H149: 49.95
A150: 149 | B150: 33.07 | C150: 33.97 | D150: 36.70 | E150: 37.16 | F150: 41.44 | G150: 44.76 | H150: 50.43
A151: 150 | B151: 33.08 | C151: 33.98 | D151: 36.71 | E151: 37.69 | F151: 41.44 | G151: 44.77 | H151: 50.43

Sheet 金宏亚附加费-2025
A1: 线路规则说明
A2: 此渠道不支持阿拉斯加、夏威夷、关岛等美国海外区域，及军事管制区等地区的派送。
A3: 分区表下载：http://www.fedex.com/ratetools/RateToolsMain.do
A4: 网站中线路名称：FedEx Ground 1
A5: 体积系数 长*宽*高/250
A6: 燃油查询：https://www.fedex.com/en-us/shipping/historical-fuel-surcharge.html
A7: 测量规则：尺寸和重量都是向上取整，例如：10.2inches按照11inches计算，10.2磅按照11磅计算
A8: 如果是取件是大车拉走的，请让取件的快递员在取件的时候扫描包裹
A9: 请准确填写收发件地址、包裹重量、包裹尺寸等信息,Fedex官方会对收到的包裹重新测量，包裹实际重量和尺寸以官方测量为准 （包裹揽收和运输途中可能导致包裹变形的情况，建议采用质地较硬的材质包装） 官方测量尺寸和重量是向上取整制，比如1.1 inch会按照2 inch计算；1.1磅会按照2磅计算 为避免因超尺寸导致加收大包裹费（Ground：$56.7;Homedelivery:$70.2）以及超大包裹费($945),请尽量不要发尺寸和重量贴近这两项费用限制条件的包裹（具体限制条件，请查看下面对应的附加费说明）
A10: 取消规则：60天内可以联系客服取消，超过60天无法取消
A11: 此价格生效日期：美国时间2025年01月06日（以交运时间为准）
A12: 附加费
A13: 住宅地址费（Residential） ：HomeDelivery 线路的住宅费（home delivery） | H13: $2.17
A14: 超长费（AHS-Dimension）： 1、最长边超过48inches或者是第二长边超过30inches 2、长+2x（宽+高）超过105inches（计费重按照实重、体积重和40磅取最大值收取） | G14: Zone 2 | H14: $3.52
G15: Zones 3–4 | H15: $3.90
G16: Zones 5–6 | H16: $4.28
G17: Zones 7-8 | H17: $4.78
A18: 超重费（AHS-Weight）：任何一个包裹超过超过50lbs | G18: Zone 2 | H18: $5.43
G19: Zones 3–4 | H19: $5.93
G20: Zones 5–6 | H20: $6.30
G21: Zones 7-8 | H21: $6.86
A22: 额外操作费（addtional handling） 如果包裹因破损、大包裹不规范（未使用瓦楞纸制容器打包，装在用收缩包装或拉伸包装覆盖的外部运输容器中等）等官方进行操作或邮寄不规则形状的包裹等会收取这个费用 | G22: Zone 2 | H22: $3.90
G23: Zones 3–4 | H23: $4.52
G24: Zones 5–6 | H24: $4.76
G25: Zones 7-8 | H25: $4.91
A26: 大包裹费（Oversize Packages） 1、长+2x（宽+高）超过130inches 2、最长边超过96inch 超出以上标准，则补收此费用 此外运费会按照实重、体积重、90磅取最大值计费 | D26: 美境内商业地址 | G26: Zone 2 | H26: $102.50
G27: Zones 3–4 | H27: $112.50
G28: Zones 5–6 | H28: $120.00
G29: Zones 7-8 | H29: $130.00
D30: 美境内住宅地址 | G30: Zone 2 | H30: $120.00
G31: Zones 3–4 | H31: $130.00
G32: Zones 5–6 | H32: $145.00
G33: Zones 7-8 | H33: $152.50
A34: DAS - Domestic,Ground (Extended Residential) | G34: all | H34: $3.02 | I34: 超偏远
A35: DAS - Domestic,Ground (Extended Commercial) | G35: all | H35: $1.91
A36: DAS - Domestic,Ground (Residential) | G36: all | H36: $2.26 | I36: 偏远
A37: DAS - Domestic,Ground (Commercial) | G37: all | H37: $1.53
A38: Remote Area surcharge (Residential) | G38: all | H38: $5.64 | I38: 超超偏远
A39: Remote Area surcharge(Commercial) | G39: all | H39: $5.64
A40: Residential-Ground | G40: all | H40: $5.95
A41: DAS Resi-Ground | G41: all | H41: $6.20
A42: DAS Extended Resi-Ground | G42: all | H42: $8.30
A43: DAS Remote Residential-Ground | G43: all | H43: $15.50
A44: 超大包裹费（Unauthorized Package Charge） 1、超过150lbs 2、最长边超过108 3、长+2x（宽+高）超过165inch 超出以上标准，FedEx有可能拒绝派送，若邮寄则补收此费用 | H44: $1,325.00
A45: 修改地址费 1、如需修改地址会收人工处理费以及官方操作费加到新地址的运费，具体费用以账单更新为准 费用计算公式=人工处理费+官方操作费+到新地址的运费 2、如创建运单时收件地址填写不准确，官方会对不准确的地址进行更新，会收取修改地址费，具体费用以账单更新为准 费用计算公式=官方操作费+到准确地址的运费 3、预计签收时间两天之内的订单不予提交修改地址操作，有物流轨迹后才可提交修改,是否修改成功以官方轨迹为准 4、修改地址有人工操作费，修改失败无法退回操作费用,官方修改费用以实际账单为准 | F45: 人工处理费 (确认后在账户中扣除) | H45: $7.00
F46: 官方操作费 （账单更新补收） | H46: $12.48
F48: 到新地址/准确地址运费 （账单更新补收） | H48: 以账单更新为准
A49: 签名服务费（Signature fee） | D49: 直接签名费（Direct Signature） | H49: $7.44
D51: 成人签名（Adult Signature Required） | H51: $9.00
A53: Demand surcharges（旺季附加费）
A54: 额外操作旺季费 Demand/Peak - Additional Handling Surcharge | D54: 2024.11.25-2024.12.29 | H54: $1.60
D55: 2024.12.30-2025.01.19 | H55: $1.30
A56: 大包裹旺季附加费 Demand/Peak - Oversize Charge | D56: 2024.11.25-2024.12.29 | H56: $50.00
D57: 2024.12.30-2025.01.19 | H57: $42.25
A58: 旺季附加费-超大包裹费Demand/Peak — Oversize Charge | D58: 2024.11.25-2024.12.29 | H58: $500.00
D59: 2024.12.30-2025.01.19 | H59: $450.00
A60: 旺季附加费-住宅费1 Demand/Peak — Residential | D60: 2024.11.25-2024.12.29 | H60: $0.57
D61: 2024.12.30-2025.01.19 | H61: $0.31
A62: 此渠道oversize包裹暂不支持出单，如遇账单产生oversize相关附加费请参考报价表中收费标准。

Sheet 邮差小马附加费
A1: 附加费
A2: 住宅费 Residential Delivery Charge | B2: Residential Delivery Charge | C2: 6.38 | D2: 住址地址派送费
A3: 超长费用 Additional Handling - Dimensions | B3: AHS-Dimension（2区） | C3: 4.50 | D3: 1.超长费（AHS-Dimension）：最长边超过48inches 或者是第二长边超30inches 2.长+2x（宽+高）超过105inches 3.AHS附加费同时满足时按照最高值附加费收取，只收取其中一项 4.最低计费重按照实重、体积重和40磅取最大值计费（生效日期：2025年1月13日）
B4: AHS-Dimension（3区-4区） | C4: 4.99
B5: AHS-Dimension（5区-6区） | C5: 5.47
B6: AHS-Dimension（7区及以上） | C6: 6.11
A7: 超重 Additional Handling - Weight | B7: AHS-Weight（2区） | C7: 6.99 | D7: 1.任何一个包裹超过超过50lbs 2.AHS附加费同时满足时按照最高值附加费收取，只收取其中一项
B8: AHS-Weight（3区-4区） | C8: 7.64
B9: AHS-Weight（5区-6区） | C9: 8.12
B10: AHS-Weight（7区及以上） | C10: 8.84
A11: 额外操作费 Additional Handling - Packing | B11: AHS–addtional handling（2区） | C11: 4.02 | D11: 1.如果包裹因破损、打包包裹不规范（未使用瓦楞纸制容器打包，装在用收缩包装或拉伸包装覆盖的外部运输容器中等）等官方进行操作、邮寄不规则形状的包裹、fedex认为需要额外处理的包裹等会收取这个费用 2.AHS附加费同时满足时按照最高值附加费收取，只收取其中一项
B12: AHS–addtional handling（3区-4区） | C12: 4.66
B13: AHS–addtional handling（5区-6区） | C13: 4.91
B14: AHS–addtional handling（7区及以上） | C14: 5.07
A15: 偏远费 Delivery Area Surcharge Commercial | B15: Commercial DAS/DAS Comm | C15: 1.58 | D15: 商业地址
B16: Ground-Residential DAS | C16: 6.65 | D16: 使用ground实际是住宅偏远会增收
A17: 超偏远费 Delivery Area Surcharge Extended Commercial | B17: Commercial DASE/DAS Extended Comm | C17: 1.97 | D17: 商业地址
B18: Ground-Residential DASE | C18: 8.90 | D18: 使用ground实际是住宅偏远会增收
A19: 超超偏远 Delivery Area Surcharge Remote Commercial | B19: DAS Remote Comm | C19: 5.82 | D19: 使用ground实际是住宅偏远会增收
A20: 签字费 Signature | B20: Direct Signature | C20: 7.44 | D20: 直接签名费
B21: Adult Signature Required | C21: 9.00 | D21: 成人签收
A22: 大包裹费（商业） FedEx Ground Oversize III/Oversize 3 (OS3) | B22: Oversize Charge（2区） | C22: 32.94 | D22: 大包裹费（Oversize Charge） 1、长+2x（宽+高）超过130inches 2、最长边超过96inch 超出以上标准，则补收此费用 此外运费会按照实重、体积重、90磅取最大值计费
B23: Oversize Charge（3区-4区） | C23: 36.16
B24: Oversize Charge(5区-6区） | C24: 38.57
B25: Oversize Charge(7区及以上） | C25: 41.78
A26: 超大包裹费 | B26: Unauthorized Package Charge | C26: 1419.34 | D26: 超大包裹费（Unauthorized Package Charge） 1、超过150lbs; 2、最长边超过108 3、长+2x（宽+高）超过165inch 超出以上标准，FedEx有可能拒绝派送，若邮寄则补收此费用
A29: 额外操作旺季费 Demand/Peak - Additional Handling Surcharge | B29: Peak-addtional handling surcharge | C29: 4.16 | D29: 2024.10.07-2024.11.24
C30: 5.36 | D30: 2024.11.25-2024.12.29
C31: 4.16 | D31: 2024.12.30-2025.01.19
A32: 大包裹旺季附加费 Demand/Peak - Oversize Charge | B32: Peak-Oversize charge | C32: 45.26 | D32: 2024.10.07-2024.11.24
C33: 53.56 | D33: 2024.11.25-2024.12.29
C34: 45.26 | D34: 2024.12.30-2025.01.19
A35: 旺季附加费-超大包裹费Demand/Peak — Oversize Charge | B35: Peak — Unauthorized Package Charge | C35: 482.04 | D35: 2024.09.30-2024.11.24
C36: 535.60 | D36: 2024.11.25-2024.12.29
C37: 482.04 | D37: 2024.12.30-2025.01.19
A38: 旺季附加费-住宅费 Demand/Peak — Residential | B38: Peak — Residential 注意：旺季住宅费1和2需要叠收 | C38: 0.33 | D38: 2024.10.28-2024.11.24
C39: 0.60 | D39: 2024.11.25-2024.12.29
C40: 0.33 | D40: 2024.12.30-2025.01.19
A41: 旺季附加费-住宅费2 Demand — Residential Delivery Charge | B41: Demand — Residential Delivery Charge 注意：旺季住宅费1和2需要叠收 此费用会根据量的情况调整 | C41: 1.56 | D41: 2024.10.28-2024.11.24
C42: 1.56 | D42: 2024.11.25-2024.12.29
C43: 1.56 | D43: 2024.12.30-2025.01.19
A44: 旺季费链接：https://www.fedex.com/en-us/shipping/rate-changes/peak-surcharges.html
A45: 燃油附加费 FedEx Ground Fuel | B45: Fuel Surcharge | C45: 官网公布价 | D45: 燃油附加费
A46: 取件费 | B46: NDOC P/U-Auto Comm | C46: 5.36 | D46: /
A47: 修改地址费 | B47: 人工处理费 | C47: 10.00 | D47: 确认后在账户中扣除
B48: 官方操作费 | C48: 12.86 | D48: 账单更新补收
B49: 到新地址/准确地址运费 | C49: 以账单更新为准 | D49: 账单更新补收
A50: 如有其他附加费产生，请以实际账单为准
A51: 线路规则说明
A52: 此报价不包含阿拉斯加（AK）和夏威夷（HI）的价格
A53: 分区表下载：http://www.fedex.com/ratetools/RateToolsMain.do
A54: 网站中线路名称：FedEx homedelivery，API渠道代码：FedExHomeDelivery
A55: 体积系数 长*宽*高/250
A56: 燃油查询：https://www.fedex.com/en-us/shipping/fuel-surcharge.html
A57: 测量规则：尺寸和重量都是向上取整，例如：10.2inches按照11inches计算，10.2磅按照11磅计算
A58: 偏远地址表 | B58: https://www.fedex.com/content/dam/fedex/us-united-states/services/DAS_Contiguous_Extended_Remote_Alaska_Hawaii_2024.pdf
A59: 超偏远地址表
A60: 如果是取件是大车拉走的，请让取件的快递员在取件的时候扫描包裹
A61: 请准确填写收发件地址、包裹重量、包裹尺寸等信息,Fedex官方会对收到的包裹重新测量，包裹实际重量和尺寸以官方测量为准 （包裹揽收和运输途中可能导致包裹变形的情况，建议采用质地较硬的材质包装） 官方测量尺寸和重量是向上取整制，比如1.1 inch会按照2 inch计算；1.1磅会按照2磅计算 为避免因超尺寸导致加收大包裹费以及超大包裹费,请尽量不要发尺寸和重量贴近这两项费用限制条件的包裹（具体限制条件，请查看下面对应的附加费说明）
A64: 取消规则：30天内用户可以自己取消，31-60天可以联系客服取消，超过60天无法取消 如退款后实际运单使用或官方出账，后期会进行扣补
A66: 账单争议规则：出账后30天内，如果对官方的重量、尺寸有争议，可提供包裹的重量、尺寸的测量照片进行争议，争议结果以官方为准；超过争议时间的无法进行争议，默认客户对账单没有异议 此渠道不提供官方账单截图

Sheet FEDEX
A1: lbs. | B1: 2 | C1: 3 | D1: 4 | E1: 5 | F1: 6 | G1: 7 | H1: 8 | K1: KG
A2: 1 | B2: 6.45 | C2: 6.45 | D2: 6.45 | E2: 6.45 | F2: 6.45 | G2: 6.45 | H2: 6.45 | K2: =$A2*453 -> 453 | L2: =_xlfn.CONCAT($K2,"|",B2) -> 453|6.45 | M2: =_xlfn.CONCAT($K2,"|",C2) -> 453|6.45 | N2: 453|6.45 | O2: 453|6.45 | P2: 453|6.45 | Q2: 453|6.45 | R2: 453|6.45
A3: 2 | B3: 6.45 | C3: 6.45 | D3: 6.45 | E3: 6.45 | F3: 6.45 | G3: 6.45 | H3: 6.45 | K3: =$A3*453 -> 906 | L3: =_xlfn.CONCAT($K3,"|",B3) -> 906|6.45 | M3: =_xlfn.CONCAT($K3,"|",C3) -> 906|6.45 | N3: =_xlfn.CONCAT($K3,"|",D3) -> 906|6.45 | O3: =_xlfn.CONCAT($K3,"|",E3) -> 906|6.45 | P3: =_xlfn.CONCAT($K3,"|",F3) -> 906|6.45 | Q3: =_xlfn.CONCAT($K3,"|",G3) -> 906|6.45 | R3: =_xlfn.CONCAT($K3,"|",H3) -> 906|6.45
A4: 3 | B4: 6.45 | C4: 6.45 | D4: 6.45 | E4: 6.45 | F4: 6.45 | G4: 6.45 | H4: 6.45 | K4: 1359 | L4: 1359|6.45 | M4: 1359|6.45 | N4: 1359|6.45 | O4: 1359|6.45 | P4: 1359|6.45 | Q4: 1359|6.45 | R4: 1359|6.45
A5: 4 | B5: 6.45 | C5: 6.45 | D5: 6.45 | E5: 6.45 | F5: 6.45 | G5: 6.4645 | H5: 6.769 | K5: 1812 | L5: 1812|6.45 | M5: 1812|6.45 | N5: 1812|6.45 | O5: 1812|6.45 | P5: 1812|6.45 | Q5: 1812|6.4645 | R5: 1812|6.769
A6: 5 | B6: 6.45 | C6: 6.45 | D6: 6.45 | E6: 6.45 | F6: 6.45 | G6: 6.7655 | H6: 7.168 | K6: 2265 | L6: 2265|6.45 | M6: 2265|6.45 | N6: 2265|6.45 | O6: 2265|6.45 | P6: 2265|6.45 | Q6: 2265|6.7655 | R6: 2265|7.168
A7: 6 | B7: 6.45 | C7: 6.45 | D7: 6.45 | E7: 6.45 | F7: 6.45 | G7: 6.769 | H7: 7.1715 | K7: 2718 | L7: 2718|6.45 | M7: 2718|6.45 | N7: 2718|6.45 | O7: 2718|6.45 | P7: 2718|6.45 | Q7: 2718|6.769 | R7: 2718|7.1715
A8: 7 | B8: 6.45 | C8: 6.45 | D8: 6.45 | E8: 6.45 | F8: 6.5135 | G8: 6.951 | H8: 7.441 | K8: 3171 | L8: 3171|6.45 | M8: 3171|6.45 | N8: 3171|6.45 | O8: 3171|6.45 | P8: 3171|6.5135 | Q8: 3171|6.951 | R8: 3171|7.441
A9: 8 | B9: 6.45 | C9: 6.45 | D9: 6.45 | E9: 6.5485 | F9: 6.776 | G9: 7.231 | H9: 7.7665 | K9: 3624 | L9: 3624|6.45 | M9: 3624|6.45 | N9: 3624|6.45 | O9: 3624|6.5485 | P9: 3624|6.776 | Q9: 3624|7.231 | R9: 3624|7.7665
A10: 9 | B10: 6.45 | C10: 6.45 | D10: 6.45 | E10: 6.6045 | F10: 6.9195 | G10: 7.532 | H10: 8.1795 | K10: 4077 | L10: 4077|6.45 | M10: 4077|6.45 | N10: 4077|6.45 | O10: 4077|6.6045 | P10: 4077|6.9195 | Q10: 4077|7.532 | R10: 4077|8.1795
A11: 10 | B11: 6.45 | C11: 6.45 | D11: 6.45 | E11: 6.7865 | F11: 7 | G11: 7.889 | H11: 8.7185 | K11: 4530 | L11: 4530|6.45 | M11: 4530|6.45 | N11: 4530|6.45 | O11: 4530|6.7865 | P11: 4530|7 | Q11: 4530|7.889 | R11: 4530|8.7185
A12: 11 | B12: 6.45 | C12: 6.45 | D12: 6.45 | E12: 6.8985 | F12: 7.3185 | G12: 8.631 | H12: 9.3765 | K12: 4983 | L12: 4983|6.45 | M12: 4983|6.45 | N12: 4983|6.45 | O12: 4983|6.8985 | P12: 4983|7.3185 | Q12: 4983|8.631 | R12: 4983|9.3765
A13: 12 | B13: 6.45 | C13: 6.45 | D13: 6.45 | E13: 6.9965 | F13: 7.574 | G13: 8.9775 | H13: 9.814 | K13: 5436 | L13: 5436|6.45 | M13: 5436|6.45 | N13: 5436|6.45 | O13: 5436|6.9965 | P13: 5436|7.574 | Q13: 5436|8.9775 | R13: 5436|9.814
A14: 13 | B14: 6.45 | C14: 6.45 | D14: 6.496 | E14: 7.1295 | F14: 7.8085 | G14: 9.527 | H14: 10.2585 | K14: 5889 | L14: 5889|6.45 | M14: 5889|6.45 | N14: 5889|6.496 | O14: 5889|7.1295 | P14: 5889|7.8085 | Q14: 5889|9.527 | R14: 5889|10.2585
A15: 14 | B15: 6.45 | C15: 6.45 | D15: 6.5625 | E15: 7.3045 | F15: 8.267 | G15: 10.206 | H15: 11.1545 | K15: 6342 | L15: 6342|6.45 | M15: 6342|6.45 | N15: 6342|6.5625 | O15: 6342|7.3045 | P15: 6342|8.267 | Q15: 6342|10.206 | R15: 6342|11.1545
A16: 15 | B16: 6.45 | C16: 6.45 | D16: 6.6535 | E16: 7.5635 | F16: 8.722 | G16: 10.5245 | H16: 11.613 | K16: 6795 | L16: 6795|6.45 | M16: 6795|6.45 | N16: 6795|6.6535 | O16: 6795|7.5635 | P16: 6795|8.722 | Q16: 6795|10.5245 | R16: 6795|11.613
A17: 16 | B17: 6.45 | C17: 6.5555 | D17: 6.776 | E17: 7.693 | F17: 9.002 | G17: 11.081 | H17: 12.1905 | K17: 7248 | L17: 7248|6.45 | M17: 7248|6.5555 | N17: 7248|6.776 | O17: 7248|7.693 | P17: 7248|9.002 | Q17: 7248|11.081 | R17: 7248|12.1905
A18: 17 | B18: 6.45 | C18: 6.692 | D18: 6.8495 | E18: 7.91 | F18: 9.387 | G18: 11.648 | H18: 12.194 | K18: 7701 | L18: 7701|6.45 | M18: 7701|6.692 | N18: 7701|6.8495 | O18: 7701|7.91 | P18: 7701|9.387 | Q18: 7701|11.648 | R18: 7701|12.194
A19: 18 | B19: 6.45 | C19: 6.7795 | D19: 6.923 | E19: 8.2915 | F19: 9.877 | G19: 11.9945 | H19: 13.146 | K19: 8154 | L19: 8154|6.45 | M19: 8154|6.7795 | N19: 8154|6.923 | O19: 8154|8.2915 | P19: 8154|9.877 | Q19: 8154|11.9945 | R19: 8154|13.146
A20: 19 | B20: 6.45 | C20: 7.1085 | D20: 7.2975 | E20: 8.6835 | F20: 10.1675 | G20: 12.3585 | H20: 13.776 | K20: 8607 | L20: 8607|6.45 | M20: 8607|7.1085 | N20: 8607|7.2975 | O20: 8607|8.6835 | P20: 8607|10.1675 | Q20: 8607|12.3585 | R20: 8607|13.776
A21: 20 | B21: 6.45 | C21: 7.168 | D21: 7.336 | E21: 9.0265 | F21: 10.514 | G21: 12.817 | H21: 14.2765 | K21: 9060 | L21: 9060|6.45 | M21: 9060|7.168 | N21: 9060|7.336 | O21: 9060|9.0265 | P21: 9060|10.514 | Q21: 9060|12.817 | R21: 9060|14.2765
A22: 21 | B22: 6.608 | C22: 7.448 | D22: 7.728 | E22: 9.1315 | F22: 10.843 | G22: 13.174 | H22: 14.714 | K22: 9513 | L22: 9513|6.608 | M22: 9513|7.448 | N22: 9513|7.728 | O22: 9513|9.1315 | P22: 9513|10.843 | Q22: 9513|13.174 | R22: 9513|14.714
A23: 22 | B23: 6.6255 | C23: 7.5215 | D23: 7.9345 | E23: 9.3835 | F23: 11.284 | G23: 13.6605 | H23: 15.3615 | K23: 9966 | L23: 9966|6.6255 | M23: 9966|7.5215 | N23: 9966|7.9345 | O23: 9966|9.3835 | P23: 9966|11.284 | Q23: 9966|13.6605 | R23: 9966|15.3615
A24: 23 | B24: 6.65 | C24: 7.6685 | D24: 8.1095 | E24: 9.5585 | F24: 11.711 | G24: 13.9895 | H24: 15.967 | K24: 10419 | L24: 10419|6.65 | M24: 10419|7.6685 | N24: 10419|8.1095 | O24: 10419|9.5585 | P24: 10419|11.711 | Q24: 10419|13.9895 | R24: 10419|15.967
A25: 24 | B25: 6.832 | C25: 7.9765 | D25: 8.5295 | E25: 10.0695 | F25: 12.2675 | G25: 14.4585 | H25: 16.884 | K25: 10872 | L25: 10872|6.832 | M25: 10872|7.9765 | N25: 10872|8.5295 | O25: 10872|10.0695 | P25: 10872|12.2675 | Q25: 10872|14.4585 | R25: 10872|16.884
A26: 25 | B26: 6.8565 | C26: 8.008 | D26: 8.568 | E26: 10.262 | F26: 12.6245 | G26: 15.2565 | H26: 17.402 | K26: 11325 | L26: 11325|6.8565 | M26: 11325|8.008 | N26: 11325|8.568 | O26: 11325|10.262 | P26: 11325|12.6245 | Q26: 11325|15.2565 | R26: 11325|17.402
A27: 26 | B27: 7.1855 | C27: 8.281 | D27: 8.9285 | E27: 10.682 | F27: 13.083 | G27: 15.8795 | H27: 18.123 | K27: 11778 | L27: 11778|7.1855 | M27: 11778|8.281 | N27: 11778|8.9285 | O27: 11778|10.682 | P27: 11778|13.083 | Q27: 11778|15.8795 | R27: 11778|18.123
A28: 27 | B28: 7.385 | C28: 8.4805 | D28: 9.107 | E28: 10.857 | F28: 13.6115 | G28: 16.1735 | H28: 18.4275 | K28: 12231 | L28: 12231|7.385 | M28: 12231|8.4805 | N28: 12231|9.107 | O28: 12231|10.857 | P28: 12231|13.6115 | Q28: 12231|16.1735 | R28: 12231|18.4275
A29: 28 | B29: 7.56 | C29: 8.6835 | D29: 9.527 | E29: 11.494 | F29: 14.2765 | G29: 16.898 | H29: 19.131 | K29: 12684 | L29: 12684|7.56 | M29: 12684|8.6835 | N29: 12684|9.527 | O29: 12684|11.494 | P29: 12684|14.2765 | Q29: 12684|16.898 | R29: 12684|19.131
A30: 29 | B30: 7.574 | C30: 8.848 | D30: 9.6145 | E30: 11.501 | F30: 14.6825 | G30: 17.283 | H30: 19.642 | K30: 13137 | L30: 13137|7.574 | M30: 13137|8.848 | N30: 13137|9.6145 | O30: 13137|11.501 | P30: 13137|14.6825 | Q30: 13137|17.283 | R30: 13137|19.642
A31: 30 | B31: 7.651 | C31: 9.058 | D31: 9.9785 | E31: 11.9525 | F31: 14.9205 | G31: 17.3705 | H31: 20.4575 | K31: 13590 | L31: 13590|7.651 | M31: 13590|9.058 | N31: 13590|9.9785 | O31: 13590|11.9525 | P31: 13590|14.9205 | Q31: 13590|17.3705 | R31: 13590|20.4575
A32: 31 | B32: 7.98 | C32: 9.261 | D32: 10.1815 | E32: 12.1065 | F32: 15.3545 | G32: 18.0145 | H32: 21.112 | K32: 14043 | L32: 14043|7.98 | M32: 14043|9.261 | N32: 14043|10.1815 | O32: 14043|12.1065 | P32: 14043|15.3545 | Q32: 14043|18.0145 | R32: 14043|21.112
A33: 32 | B33: 7.9835 | C33: 9.2645 | D33: 10.185 | E33: 12.11 | F33: 15.358 | G33: 18.018 | H33: 21.343 | K33: 14496 | L33: 14496|7.9835 | M33: 14496|9.2645 | N33: 14496|10.185 | O33: 14496|12.11 | P33: 14496|15.358 | Q33: 14496|18.018 | R33: 14496|21.343
A34: 33 | B34: 8.029 | C34: 9.401 | D34: 10.6435 | E34: 12.677 | F34: 16.324 | G34: 18.613 | H34: 21.9205 | K34: 14949 | L34: 14949|8.029 | M34: 14949|9.401 | N34: 14949|10.6435 | O34: 14949|12.677 | P34: 14949|16.324 | Q34: 14949|18.613 | R34: 14949|21.9205
A35: 34 | B35: 8.078 | C35: 9.611 | D35: 10.9795 | E35: 13.1215 | F35: 16.3275 | G35: 19.1695 | H35: 22.9705 | K35: =$A35*453 -> 15402 | L35: =_xlfn.CONCAT($K35,"|",B35) -> 15402|8.078 | M35: =_xlfn.CONCAT($K35,"|",C35) -> 15402|9.611 | N35: =_xlfn.CONCAT($K35,"|",D35) -> 15402|10.9795 | O35: =_xlfn.CONCAT($K35,"|",E35) -> 15402|13.1215 | P35: =_xlfn.CONCAT($K35,"|",F35) -> 15402|16.3275 | Q35: =_xlfn.CONCAT($K35,"|",G35) -> 15402|19.1695 | R35: =_xlfn.CONCAT($K35,"|",H35) -> 15402|22.9705
A36: 35 | B36: 8.2285 | C36: 10.122 | D36: 11.3435 | E36: 13.4365 | F36: 16.6075 | G36: 19.663 | H36: 23.135 | K36: 15855 | L36: 15855|8.2285 | M36: 15855|10.122 | N36: 15855|11.3435 | O36: 15855|13.4365 | P36: 15855|16.6075 | Q36: 15855|19.663 | R36: 15855|23.135
A37: 36 | B37: 8.351 | C37: 10.1255 | D37: 11.431 | E37: 13.769 | F37: 17.304 | G37: 20.3315 | H37: 24.0415 | K37: 16308 | L37: 16308|8.351 | M37: 16308|10.1255 | N37: 16308|11.431 | O37: 16308|13.769 | P37: 16308|17.304 | Q37: 16308|20.3315 | R37: 16308|24.0415
A38: 37 | B38: 8.477 | C38: 10.262 | D38: 11.55 | E38: 14.0735 | F38: 17.381 | G38: 20.9895 | H38: 24.2795 | K38: 16761 | L38: 16761|8.477 | M38: 16761|10.262 | N38: 16761|11.55 | O38: 16761|14.0735 | P38: 16761|17.381 | Q38: 16761|20.9895 | R38: 16761|24.2795
A39: 38 | B39: 8.61 | C39: 10.416 | D39: 11.921 | E39: 14.413 | F39: 17.773 | G39: 21.07 | H39: 24.731 | K39: 17214 | L39: 17214|8.61 | M39: 17214|10.416 | N39: 17214|11.921 | O39: 17214|14.413 | P39: 17214|17.773 | Q39: 17214|21.07 | R39: 17214|24.731
A40: 39 | B40: 8.897 | C40: 10.822 | D40: 12.432 | E40: 14.8575 | F40: 18.5815 | G40: 21.8995 | H40: 25.2385 | K40: 17667 | L40: 17667|8.897 | M40: 17667|10.822 | N40: 17667|12.432 | O40: 17667|14.8575 | P40: 17667|18.5815 | Q40: 17667|21.8995 | R40: 17667|25.2385
A41: 40 | B41: 8.904 | C41: 10.864 | D41: 12.4355 | E41: 14.861 | F41: 18.606 | G41: 21.903 | H41: 25.2455 | K41: 18120 | L41: 18120|8.904 | M41: 18120|10.864 | N41: 18120|12.4355 | O41: 18120|14.861 | P41: 18120|18.606 | Q41: 18120|21.903 | R41: 18120|25.2455
A42: 41 | B42: 9.1035 | C42: 11.333 | D42: 12.796 | E42: 15.3895 | F42: 19.3795 | G42: 22.5785 | H42: 26.1975 | K42: 18573 | L42: 18573|9.1035 | M42: 18573|11.333 | N42: 18573|12.796 | O42: 18573|15.3895 | P42: 18573|19.3795 | Q42: 18573|22.5785 | R42: 18573|26.1975
A43: 42 | B43: 9.107 | C43: 11.375 | D43: 13.293 | E43: 15.4385 | F43: 19.467 | G43: 22.9635 | H43: 26.3305 | K43: 19026 | L43: 19026|9.107 | M43: 19026|11.375 | N43: 19026|13.293 | O43: 19026|15.4385 | P43: 19026|19.467 | Q43: 19026|22.9635 | R43: 19026|26.3305
A44: 43 | B44: 9.282 | C44: 11.536 | D44: 13.314 | E44: 16.226 | F44: 20.524 | G44: 23.7965 | H44: 27.048 | K44: 19479 | L44: 19479|9.282 | M44: 19479|11.536 | N44: 19479|13.314 | O44: 19479|16.226 | P44: 19479|20.524 | Q44: 19479|23.7965 | R44: 19479|27.048
A45: 44 | B45: 9.408 | C45: 11.711 | D45: 13.657 | E45: 16.5165 | F45: 20.643 | G45: 24.535 | H45: 27.328 | K45: 19932 | L45: 19932|9.408 | M45: 19932|11.711 | N45: 19932|13.657 | O45: 19932|16.5165 | P45: 19932|20.643 | Q45: 19932|24.535 | R45: 19932|27.328
A46: 45 | B46: 9.4255 | C46: 11.7145 | D46: 13.6605 | E46: 16.52 | F46: 20.65 | G46: 25.0145 | H46: 27.5205 | K46: 20385 | L46: 20385|9.4255 | M46: 20385|11.7145 | N46: 20385|13.6605 | O46: 20385|16.52 | P46: 20385|20.65 | Q46: 20385|25.0145 | R46: 20385|27.5205
A47: 46 | B47: 9.6705 | C47: 11.837 | D47: 14.0945 | E47: 16.835 | F47: 21.196 | G47: 25.284 | H47: 28.252 | K47: 20838 | L47: 20838|9.6705 | M47: 20838|11.837 | N47: 20838|14.0945 | O47: 20838|16.835 | P47: 20838|21.196 | Q47: 20838|25.284 | R47: 20838|28.252
A48: 47 | B48: 9.674 | C48: 12.103 | D48: 14.322 | E48: 16.954 | F48: 21.483 | G48: 25.774 | H48: 28.707 | K48: 21291 | L48: 21291|9.674 | M48: 21291|12.103 | N48: 21291|14.322 | O48: 21291|16.954 | P48: 21291|21.483 | Q48: 21291|25.774 | R48: 21291|28.707
A49: 48 | B49: 9.6775 | C49: 12.1065 | D49: 14.4865 | E49: 17.5665 | F49: 21.8015 | G49: 26.012 | H49: 29.162 | K49: 21744 | L49: 21744|9.6775 | M49: 21744|12.1065 | N49: 21744|14.4865 | O49: 21744|17.5665 | P49: 21744|21.8015 | Q49: 21744|26.012 | R49: 21744|29.162
A50: 49 | B50: 9.681 | C50: 12.11 | D50: 14.49 | E50: 17.57 | F50: 21.966 | G50: 26.5335 | H50: 29.3335 | K50: 22197 | L50: 22197|9.681 | M50: 22197|12.11 | N50: 22197|14.49 | O50: 22197|17.57 | P50: 22197|21.966 | Q50: 22197|26.5335 | R50: 22197|29.3335
A51: 50 | B51: 9.6845 | C51: 12.1135 | D51: 14.497 | E51: 17.584 | F51: 22.155 | G51: 26.7645 | H51: 29.7465 | K51: 22650 | L51: 22650|9.6845 | M51: 22650|12.1135 | N51: 22650|14.497 | O51: 22650|17.584 | P51: 22650|22.155 | Q51: 22650|26.7645 | R51: 22650|29.7465
A52: 51 | B52: 9.688 | C52: 12.117 | D52: 14.567 | E52: 17.668 | F52: 22.4315 | G52: 27.097 | H52: 30.4325 | K52: 23103 | L52: 23103|9.688 | M52: 23103|12.117 | N52: 23103|14.567 | O52: 23103|17.668 | P52: 23103|22.4315 | Q52: 23103|27.097 | R52: 23103|30.4325
A53: 52 | B53: 9.6915 | C53: 12.1205 | D53: 14.574 | E53: 17.6785 | F53: 22.435 | G53: 27.104 | H53: 30.436 | K53: 23556 | L53: 23556|9.6915 | M53: 23556|12.1205 | N53: 23556|14.574 | O53: 23556|17.6785 | P53: 23556|22.435 | Q53: 23556|27.104 | R53: 23556|30.436
A54: 53 | B54: 9.695 | C54: 12.124 | D54: 14.581 | E54: 17.8535 | F54: 22.4385 | G54: 27.1075 | H54: 30.7335 | K54: 24009 | L54: 24009|9.695 | M54: 24009|12.124 | N54: 24009|14.581 | O54: 24009|17.8535 | P54: 24009|22.4385 | Q54: 24009|27.1075 | R54: 24009|30.7335
A55: 54 | B55: 9.6985 | C55: 12.1275 | D55: 14.602 | E55: 17.885 | F55: 22.4455 | G55: 27.111 | H55: 30.737 | K55: 24462 | L55: 24462|9.6985 | M55: 24462|12.1275 | N55: 24462|14.602 | O55: 24462|17.885 | P55: 24462|22.4455 | Q55: 24462|27.111 | R55: 24462|30.737
A56: 55 | B56: 9.702 | C56: 12.131 | D56: 14.6055 | E56: 17.8885 | F56: 22.449 | G56: 27.1145 | H56: 30.7405 | K56: 24915 | L56: 24915|9.702 | M56: 24915|12.131 | N56: 24915|14.6055 | O56: 24915|17.8885 | P56: 24915|22.449 | Q56: 24915|27.1145 | R56: 24915|30.7405
A57: 56 | B57: 9.709 | C57: 12.138 | D57: 14.609 | E57: 17.892 | F57: 22.456 | G57: 27.1215 | H57: 31.1255 | K57: 25368 | L57: 25368|9.709 | M57: 25368|12.138 | N57: 25368|14.609 | O57: 25368|17.892 | P57: 25368|22.456 | Q57: 25368|27.1215 | R57: 25368|31.1255
A58: 57 | B58: 9.884 | C58: 12.201 | D58: 14.6125 | E58: 18.4275 | F58: 22.463 | G58: 27.1285 | H58: 31.4405 | K58: 25821 | L58: 25821|9.884 | M58: 25821|12.201 | N58: 25821|14.6125 | O58: 25821|18.4275 | P58: 25821|22.463 | Q58: 25821|27.1285 | R58: 25821|31.4405
A59: 58 | B59: 9.8875 | C59: 12.2045 | D59: 14.6195 | E59: 18.4345 | F59: 22.4665 | G59: 27.132 | H59: 31.717 | K59: 26274 | L59: 26274|9.8875 | M59: 26274|12.2045 | N59: 26274|14.6195 | O59: 26274|18.4345 | P59: 26274|22.4665 | Q59: 26274|27.132 | R59: 26274|31.717
A60: 59 | B60: 9.8945 | C60: 12.215 | D60: 14.721 | E60: 18.445 | F60: 22.624 | G60: 27.1355 | H60: 32.2455 | K60: 26727 | L60: 26727|9.8945 | M60: 26727|12.215 | N60: 26727|14.721 | O60: 26727|18.445 | P60: 26727|22.624 | Q60: 26727|27.1355 | R60: 26727|32.2455
A61: 60 | B61: 10.1675 | C61: 12.6875 | D61: 14.973 | E61: 19.096 | F61: 23.044 | G61: 27.2335 | H61: 32.4415 | K61: 27180 | L61: 27180|10.1675 | M61: 27180|12.6875 | N61: 27180|14.973 | O61: 27180|19.096 | P61: 27180|23.044 | Q61: 27180|27.2335 | R61: 27180|32.4415
A62: 61 | B62: 10.171 | C62: 12.7225 | D62: 15.12 | E62: 19.1415 | F62: 23.0475 | G62: 27.237 | H62: 32.445 | K62: 27633 | L62: 27633|10.171 | M62: 27633|12.7225 | N62: 27633|15.12 | O62: 27633|19.1415 | P62: 27633|23.0475 | Q62: 27633|27.237 | R62: 27633|32.445
A63: 62 | B63: 10.5875 | C63: 13.629 | D63: 15.365 | E63: 19.6805 | F63: 23.401 | G63: 27.6535 | H63: 32.8405 | K63: 28086 | L63: 28086|10.5875 | M63: 28086|13.629 | N63: 28086|15.365 | O63: 28086|19.6805 | P63: 28086|23.401 | Q63: 28086|27.6535 | R63: 28086|32.8405
A64: 63 | B64: 10.591 | C64: 13.6325 | D64: 15.512 | E64: 19.691 | F64: 23.562 | G64: 27.881 | H64: 33.04 | K64: 28539 | L64: 28539|10.591 | M64: 28539|13.6325 | N64: 28539|15.512 | O64: 28539|19.691 | P64: 28539|23.562 | Q64: 28539|27.881 | R64: 28539|33.04
A65: 64 | B65: 10.8745 | C65: 13.6395 | D65: 15.7675 | E65: 19.6945 | F65: 23.73 | G65: 27.8845 | H65: 33.243 | K65: 28992 | L65: 28992|10.8745 | M65: 28992|13.6395 | N65: 28992|15.7675 | O65: 28992|19.6945 | P65: 28992|23.73 | Q65: 28992|27.8845 | R65: 28992|33.243
A66: 65 | B66: 10.9935 | C66: 14.0035 | D66: 15.771 | E66: 19.698 | F66: 23.9365 | G66: 27.951 | H66: 33.2955 | K66: 29445 | L66: 29445|10.9935 | M66: 29445|14.0035 | N66: 29445|15.771 | O66: 29445|19.698 | P66: 29445|23.9365 | Q66: 29445|27.951 | R66: 29445|33.2955
A67: 66 | B67: 11.0495 | C67: 14.14 | D67: 15.7745 | E67: 19.7015 | F67: 23.954 | G67: 28.0385 | H67: 33.439 | K67: =$A67*453 -> 29898 | L67: =_xlfn.CONCAT($K67,"|",B67) -> 29898|11.0495 | M67: =_xlfn.CONCAT($K67,"|",C67) -> 29898|14.14 | N67: =_xlfn.CONCAT($K67,"|",D67) -> 29898|15.7745 | O67: =_xlfn.CONCAT($K67,"|",E67) -> 29898|19.7015 | P67: =_xlfn.CONCAT($K67,"|",F67) -> 29898|23.954 | Q67: =_xlfn.CONCAT($K67,"|",G67) -> 29898|28.0385 | R67: =_xlfn.CONCAT($K67,"|",H67) -> 29898|33.439
A68: 67 | B68: 11.053 | C68: 14.147 | D68: 15.778 | E68: 19.74 | F68: 24.1395 | G68: 28.175 | H68: 33.754 | K68: 30351 | L68: 30351|11.053 | M68: 30351|14.147 | N68: 30351|15.778 | O68: 30351|19.74 | P68: 30351|24.1395 | Q68: 30351|28.175 | R68: 30351|33.754
A69: 68 | B69: 11.179 | C69: 14.406 | D69: 16.7335 | E69: 20.188 | F69: 24.4965 | G69: 28.602 | H69: 33.7575 | K69: 30804 | L69: 30804|11.179 | M69: 30804|14.406 | N69: 30804|16.7335 | O69: 30804|20.188 | P69: 30804|24.4965 | Q69: 30804|28.602 | R69: 30804|33.7575
A70: 69 | B70: 11.41 | C70: 14.546 | D70: 16.898 | E70: 20.3315 | F70: 24.626 | G70: 28.6055 | H70: 33.936 | K70: 31257 | L70: 31257|11.41 | M70: 31257|14.546 | N70: 31257|16.898 | O70: 31257|20.3315 | P70: 31257|24.626 | Q70: 31257|28.6055 | R70: 31257|33.936
A71: 70 | B71: 11.4625 | C71: 14.749 | D71: 17.2655 | E71: 21.3115 | F71: 25.116 | G71: 28.609 | H71: 34.2265 | K71: 31710 | L71: 31710|11.4625 | M71: 31710|14.749 | N71: 31710|17.2655 | O71: 31710|21.3115 | P71: 31710|25.116 | Q71: 31710|28.609 | R71: 31710|34.2265
A72: 71 | B72: 11.4695 | C72: 14.7525 | D72: 17.5315 | E72: 21.315 | F72: 25.284 | G72: 29.0745 | H72: 34.237 | K72: 32163 | L72: 32163|11.4695 | M72: 32163|14.7525 | N72: 32163|17.5315 | O72: 32163|21.315 | P72: 32163|25.284 | Q72: 32163|29.0745 | R72: 32163|34.237
A73: 72 | B73: 11.7985 | C73: 14.756 | D73: 17.9025 | E73: 21.322 | F73: 25.7005 | G73: 30.3135 | H73: 34.2895 | K73: 32616 | L73: 32616|11.7985 | M73: 32616|14.756 | N73: 32616|17.9025 | O73: 32616|21.322 | P73: 32616|25.7005 | Q73: 32616|30.3135 | R73: 32616|34.2895
A74: 73 | B74: 11.872 | C74: 14.896 | D74: 17.906 | E74: 21.637 | F74: 25.977 | G74: 30.366 | H74: 34.293 | K74: 33069 | L74: 33069|11.872 | M74: 33069|14.896 | N74: 33069|17.906 | O74: 33069|21.637 | P74: 33069|25.977 | Q74: 33069|30.366 | R74: 33069|34.293
A75: 74 | B75: 12.187 | C75: 14.8995 | D75: 17.9095 | E75: 21.644 | F75: 26.376 | G75: 30.3695 | H75: 34.2965 | K75: 33522 | L75: 33522|12.187 | M75: 33522|14.8995 | N75: 33522|17.9095 | O75: 33522|21.644 | P75: 33522|26.376 | Q75: 33522|30.3695 | R75: 33522|34.2965
A76: 75 | B76: 12.6385 | C76: 14.9065 | D76: 17.913 | E76: 21.812 | F76: 26.3795 | G76: 30.6775 | H76: 34.3 | K76: 33975 | L76: 33975|12.6385 | M76: 33975|14.9065 | N76: 33975|17.913 | O76: 33975|21.812 | P76: 33975|26.3795 | Q76: 33975|30.6775 | R76: 33975|34.3
A77: 76 | B77: 13.615 | C77: 15.743 | D77: 18.0285 | E77: 22.1445 | F77: 26.964 | G77: 31.1745 | H77: 34.622 | K77: 34428 | L77: 34428|13.615 | M77: 34428|15.743 | N77: 34428|18.0285 | O77: 34428|22.1445 | P77: 34428|26.964 | Q77: 34428|31.1745 | R77: 34428|34.622
A78: 77 | B78: 14.147 | C78: 15.9705 | D78: 18.235 | E78: 22.246 | F78: 27.118 | G78: 32.0635 | H78: 34.6255 | K78: 34881 | L78: 34881|14.147 | M78: 34881|15.9705 | N78: 34881|18.235 | O78: 34881|22.246 | P78: 34881|27.118 | Q78: 34881|32.0635 | R78: 34881|34.6255
A79: 78 | B79: 14.161 | C79: 16.5725 | D79: 18.7705 | E79: 22.484 | F79: 27.2895 | G79: 32.3015 | H79: 34.6325 | K79: 35334 | L79: 35334|14.161 | M79: 35334|16.5725 | N79: 35334|18.7705 | O79: 35334|22.484 | P79: 35334|27.2895 | Q79: 35334|32.3015 | R79: 35334|34.6325
A80: 79 | B80: 14.798 | C80: 17.2585 | D80: 19.2395 | E80: 22.8375 | F80: 27.86 | G80: 32.802 | H80: 35.196 | K80: 35787 | L80: 35787|14.798 | M80: 35787|17.2585 | N80: 35787|19.2395 | O80: 35787|22.8375 | P80: 35787|27.86 | Q80: 35787|32.802 | R80: 35787|35.196
A81: 80 | B81: 15.2005 | C81: 17.591 | D81: 19.3235 | E81: 23.38 | F81: 28.322 | G81: 33.2535 | H81: 35.469 | K81: 36240 | L81: 36240|15.2005 | M81: 36240|17.591 | N81: 36240|19.3235 | O81: 36240|23.38 | P81: 36240|28.322 | Q81: 36240|33.2535 | R81: 36240|35.469
A82: 81 | B82: 15.575 | C82: 17.731 | D82: 19.7925 | E82: 23.5375 | F82: 28.6895 | G82: 33.453 | H82: 35.588 | K82: 36693 | L82: 36693|15.575 | M82: 36693|17.731 | N82: 36693|19.7925 | O82: 36693|23.5375 | P82: 36693|28.6895 | Q82: 36693|33.453 | R82: 36693|35.588
A83: 82 | B83: 16.079 | C83: 18.165 | D83: 20.6885 | E83: 24.1395 | F83: 28.7665 | G83: 34.321 | H83: 35.5915 | K83: 37146 | L83: 37146|16.079 | M83: 37146|18.165 | N83: 37146|20.6885 | O83: 37146|24.1395 | P83: 37146|28.7665 | Q83: 37146|34.321 | R83: 37146|35.5915
A84: 83 | B84: 16.0825 | C84: 18.1685 | D84: 20.692 | E84: 24.143 | F84: 28.8505 | G84: 34.3245 | H84: 35.595 | K84: 37599 | L84: 37599|16.0825 | M84: 37599|18.1685 | N84: 37599|20.692 | O84: 37599|24.143 | P84: 37599|28.8505 | Q84: 37599|34.3245 | R84: 37599|35.595
A85: 84 | B85: 16.723 | C85: 18.8895 | D85: 21.294 | E85: 24.3775 | F85: 29.561 | G85: 34.734 | H85: 35.868 | K85: 38052 | L85: 38052|16.723 | M85: 38052|18.8895 | N85: 38052|21.294 | O85: 38052|24.3775 | P85: 38052|29.561 | Q85: 38052|34.734 | R85: 38052|35.868
A86: 85 | B86: 17.171 | C86: 18.893 | D86: 21.308 | E86: 24.7695 | F86: 29.7395 | G86: 35.1085 | H86: 36.2565 | K86: 38505 | L86: 38505|17.171 | M86: 38505|18.893 | N86: 38505|21.308 | O86: 38505|24.7695 | P86: 38505|29.7395 | Q86: 38505|35.1085 | R86: 38505|36.2565
A87: 86 | B87: 17.7975 | C87: 19.9395 | D87: 22.141 | E87: 25.235 | F87: 30.3765 | G87: 36.099 | H87: 37.366 | K87: 38958 | L87: 38958|17.7975 | M87: 38958|19.9395 | N87: 38958|22.141 | O87: 38958|25.235 | P87: 38958|30.3765 | Q87: 38958|36.099 | R87: 38958|37.366
A88: 87 | B88: 18.165 | C88: 19.95 | D88: 22.1445 | E88: 25.2385 | F88: 30.7755 | G88: 36.127 | H88: 37.4255 | K88: 39411 | L88: 39411|18.165 | M88: 39411|19.95 | N88: 39411|22.1445 | O88: 39411|25.2385 | P88: 39411|30.7755 | Q88: 39411|36.127 | R88: 39411|37.4255
A89: 88 | B89: 18.9175 | C89: 20.3945 | D89: 22.841 | E89: 26.054 | F89: 30.8875 | G89: 36.1655 | H89: 37.8385 | K89: 39864 | L89: 39864|18.9175 | M89: 39864|20.3945 | N89: 39864|22.841 | O89: 39864|26.054 | P89: 39864|30.8875 | Q89: 39864|36.1655 | R89: 39864|37.8385
A90: 89 | B90: 19.7645 | C90: 20.965 | D90: 23.289 | E90: 26.138 | F90: 31.5595 | G90: 36.5365 | H90: 38.6295 | K90: 40317 | L90: 40317|19.7645 | M90: 40317|20.965 | N90: 40317|23.289 | O90: 40317|26.138 | P90: 40317|31.5595 | Q90: 40317|36.5365 | R90: 40317|38.6295
A91: 90 | B91: 20.972 | C91: 21.8715 | D91: 24.297 | E91: 26.9045 | F91: 32.0075 | G91: 37.3835 | H91: 39.3925 | K91: 40770 | L91: 40770|20.972 | M91: 40770|21.8715 | N91: 40770|24.297 | O91: 40770|26.9045 | P91: 40770|32.0075 | Q91: 40770|37.3835 | R91: 40770|39.3925
A92: 91 | B92: 20.9755 | C92: 21.875 | D92: 24.3005 | E92: 26.908 | F92: 32.011 | G92: 37.387 | H92: 39.396 | K92: 41223 | L92: 41223|20.9755 | M92: 41223|21.875 | N92: 41223|24.3005 | O92: 41223|26.908 | P92: 41223|32.011 | Q92: 41223|37.387 | R92: 41223|39.396
A93: 92 | B93: 21.4445 | C93: 22.0815 | D93: 24.43 | E93: 27.167 | F93: 32.403 | G93: 37.394 | H93: 39.5115 | K93: 41676 | L93: 41676|21.4445 | M93: 41676|22.0815 | N93: 41676|24.43 | O93: 41676|27.167 | P93: 41676|32.403 | Q93: 41676|37.394 | R93: 41676|39.5115
A94: 93 | B94: 21.721 | C94: 22.2915 | D94: 24.892 | E94: 27.1705 | F94: 32.4065 | G94: 37.3975 | H94: 39.515 | K94: 42129 | L94: 42129|21.721 | M94: 42129|22.2915 | N94: 42129|24.892 | O94: 42129|27.1705 | P94: 42129|32.4065 | Q94: 42129|37.3975 | R94: 42129|39.515
A95: 94 | B95: 21.833 | C95: 22.8795 | D95: 25.0145 | E95: 27.5205 | F95: 33.0925 | G95: 37.4045 | H95: 40.299 | K95: 42582 | L95: 42582|21.833 | M95: 42582|22.8795 | N95: 42582|25.0145 | O95: 42582|27.5205 | P95: 42582|33.0925 | Q95: 42582|37.4045 | R95: 42582|40.299
A96: 95 | B96: 22.1305 | C96: 23.086 | D96: 25.1825 | E96: 27.895 | F96: 33.1905 | G96: 37.534 | H96: 40.733 | K96: 43035 | L96: 43035|22.1305 | M96: 43035|23.086 | N96: 43035|25.1825 | O96: 43035|27.895 | P96: 43035|33.1905 | Q96: 43035|37.534 | R96: 43035|40.733
A97: 96 | B97: 22.8375 | C97: 23.2365 | D97: 26.103 | E97: 28.203 | F97: 33.194 | G97: 37.5375 | H97: 41.1355 | K97: 43488 | L97: 43488|22.8375 | M97: 43488|23.2365 | N97: 43488|26.103 | O97: 43488|28.203 | P97: 43488|33.194 | Q97: 43488|37.5375 | R97: 43488|41.1355
A98: 97 | B98: 23.5865 | C98: 24.1465 | D98: 26.481 | E98: 28.658 | F98: 33.908 | G98: 38.0765 | H98: 41.9475 | K98: 43941 | L98: 43941|23.5865 | M98: 43941|24.1465 | N98: 43941|26.481 | O98: 43941|28.658 | P98: 43941|33.908 | Q98: 43941|38.0765 | R98: 43941|41.9475
A99: 98 | B99: 23.9015 | C99: 24.304 | D99: 26.4845 | E99: 28.9905 | F99: 34.2895 | G99: 38.08 | H99: 41.951 | K99: =$A99*453 -> 44394 | L99: =_xlfn.CONCAT($K99,"|",B99) -> 44394|23.9015 | M99: =_xlfn.CONCAT($K99,"|",C99) -> 44394|24.304 | N99: =_xlfn.CONCAT($K99,"|",D99) -> 44394|26.4845 | O99: =_xlfn.CONCAT($K99,"|",E99) -> 44394|28.9905 | P99: =_xlfn.CONCAT($K99,"|",F99) -> 44394|34.2895 | Q99: =_xlfn.CONCAT($K99,"|",G99) -> 44394|38.08 | R99: =_xlfn.CONCAT($K99,"|",H99) -> 44394|41.951
A100: 99 | B100: 24.2305 | C100: 24.4475 | D100: 26.9745 | E100: 29.358 | F100: 34.3665 | G100: 38.4615 | H100: 42.3745 | K100: 44847 | L100: 44847|24.2305 | M100: 44847|24.4475 | N100: 44847|26.9745 | O100: 44847|29.358 | P100: 44847|34.3665 | Q100: 44847|38.4615 | R100: 44847|42.3745
A101: 100 | B101: 24.6365 | C101: 24.8605 | D101: 27.2335 | E101: 29.5155 | F101: 34.741 | G101: 38.4895 | H101: 42.4025 | K101: 45300 | L101: 45300|24.6365 | M101: 45300|24.8605 | N101: 45300|27.2335 | O101: 45300|29.5155 | P101: 45300|34.741 | Q101: 45300|38.4895 | R101: 45300|42.4025
A102: 101 | B102: 24.808 | C102: 25.102 | D102: 27.2405 | E102: 29.7955 | F102: 35.0735 | G102: 38.8535 | H102: 42.7945 | K102: 45753 | L102: 45753|24.808 | M102: 45753|25.102 | N102: 45753|27.2405 | O102: 45753|29.7955 | P102: 45753|35.0735 | Q102: 45753|38.8535 | R102: 45753|42.7945
A103: 102 | B103: 25.046 | C103: 25.1055 | D103: 27.4995 | E103: 29.799 | F103: 35.077 | G103: 38.857 | H103: 42.798 | K103: 46206 | L103: 46206|25.046 | M103: 46206|25.1055 | N103: 46206|27.4995 | O103: 46206|29.799 | P103: 46206|35.077 | Q103: 46206|38.857 | R103: 46206|42.798
A104: 103 | B104: 25.375 | C104: 25.7285 | D104: 28.0665 | E104: 29.974 | F104: 35.1645 | G104: 38.8605 | H104: 42.8015 | K104: 46659 | L104: 46659|25.375 | M104: 46659|25.7285 | N104: 46659|28.0665 | O104: 46659|29.974 | P104: 46659|35.1645 | Q104: 46659|38.8605 | R104: 46659|42.8015
A105: 104 | B105: 25.3785 | C105: 25.732 | D105: 28.1365 | E105: 30.009 | F105: 35.168 | G105: 38.864 | H105: 42.805 | K105: 47112 | L105: 47112|25.3785 | M105: 47112|25.732 | N105: 47112|28.1365 | O105: 47112|30.009 | P105: 47112|35.168 | Q105: 47112|38.864 | R105: 47112|42.805
A106: 105 | B106: 26.285 | C106: 26.4915 | D106: 28.7315 | E106: 30.919 | F106: 36.0395 | G106: 39.767 | H106: 43.8585 | K106: 47565 | L106: 47565|26.285 | M106: 47565|26.4915 | N106: 47565|28.7315 | O106: 47565|30.919 | P106: 47565|36.0395 | Q106: 47565|39.767 | R106: 47565|43.8585
A107: 106 | B107: 26.467 | C107: 26.495 | D107: 28.735 | E107: 30.9225 | F107: 36.043 | G107: 39.7705 | H107: 43.862 | K107: 48018 | L107: 48018|26.467 | M107: 48018|26.495 | N107: 48018|28.735 | O107: 48018|30.9225 | P107: 48018|36.043 | Q107: 48018|39.7705 | R107: 48018|43.862
A108: 107 | B108: 26.607 | C108: 26.8625 | D108: 29.12 | E108: 31.255 | F108: 36.0465 | G108: 40.068 | H108: 44.205 | K108: 48471 | L108: 48471|26.607 | M108: 48471|26.8625 | N108: 48471|29.12 | O108: 48471|31.255 | P108: 48471|36.0465 | Q108: 48471|40.068 | R108: 48471|44.205
A109: 108 | B109: 26.985 | C109: 27.1565 | D109: 29.4 | E109: 31.2585 | F109: 36.3685 | G109: 40.0715 | H109: 44.212 | K109: 48924 | L109: 48924|26.985 | M109: 48924|27.1565 | N109: 48924|29.4 | O109: 48924|31.2585 | P109: 48924|36.3685 | Q109: 48924|40.0715 | R109: 48924|44.212
A110: 109 | B110: 27.8005 | C110: 27.8075 | D110: 29.764 | E110: 31.864 | F110: 36.6835 | G110: 40.789 | H110: 45.017 | K110: 49377 | L110: 49377|27.8005 | M110: 49377|27.8075 | N110: 49377|29.764 | O110: 49377|31.864 | P110: 49377|36.6835 | Q110: 49377|40.789 | R110: 49377|45.017
A111: 110 | B111: 28.28 | C111: 28.476 | D111: 30.394 | E111: 32.4765 | F111: 37.702 | G111: 41.552 | H111: 45.85 | K111: 49830 | L111: 49830|28.28 | M111: 49830|28.476 | N111: 49830|30.394 | O111: 49830|32.4765 | P111: 49830|37.702 | Q111: 49830|41.552 | R111: 49830|45.85
A112: 111 | B112: 28.2835 | C112: 28.518 | D112: 31.0625 | E112: 32.7915 | F112: 37.7055 | G112: 41.8495 | H112: 46.3925 | K112: 50283 | L112: 50283|28.2835 | M112: 50283|28.518 | N112: 50283|31.0625 | O112: 50283|32.7915 | P112: 50283|37.7055 | Q112: 50283|41.8495 | R112: 50283|46.3925
A113: 112 | B113: 28.616 | C113: 29.106 | D113: 31.066 | E113: 32.795 | F113: 38.003 | G113: 41.853 | H113: 46.396 | K113: 50736 | L113: 50736|28.616 | M113: 50736|29.106 | N113: 50736|31.066 | O113: 50736|32.795 | P113: 50736|38.003 | Q113: 50736|41.853 | R113: 50736|46.396
A114: 113 | B114: 28.6195 | C114: 29.1095 | D114: 31.409 | E114: 33.0995 | F114: 38.0065 | G114: 41.8565 | H114: 46.7985 | K114: 51189 | L114: 51189|28.6195 | M114: 51189|29.1095 | N114: 51189|31.409 | O114: 51189|33.0995 | P114: 51189|38.0065 | Q114: 51189|41.8565 | R114: 51189|46.7985
A115: 114 | B115: 28.9205 | C115: 29.7325 | D115: 32.0635 | E115: 33.7435 | F115: 39.0145 | G115: 42.903 | H115: 47.544 | K115: 51642 | L115: 51642|28.9205 | M115: 51642|29.7325 | N115: 51642|32.0635 | O115: 51642|33.7435 | P115: 51642|39.0145 | Q115: 51642|42.903 | R115: 51642|47.544
A116: 115 | B116: 29.799 | C116: 30.1805 | D116: 32.074 | E116: 34.153 | F116: 39.0215 | G116: 43.3125 | H116: 47.5615 | K116: 52095 | L116: 52095|29.799 | M116: 52095|30.1805 | N116: 52095|32.074 | O116: 52095|34.153 | P116: 52095|39.0215 | Q116: 52095|43.3125 | R116: 52095|47.5615
A117: 116 | B117: 29.8025 | C117: 30.184 | D117: 32.466 | E117: 34.1565 | F117: 39.592 | G117: 43.855 | H117: 48.3 | K117: 52548 | L117: 52548|29.8025 | M117: 52548|30.184 | N117: 52548|32.466 | O117: 52548|34.1565 | P117: 52548|39.592 | Q117: 52548|43.855 | R117: 52548|48.3
A118: 117 | B118: 29.834 | C118: 30.4745 | D118: 32.7775 | E118: 34.615 | F118: 39.5955 | G118: 43.8585 | H118: 48.615 | K118: 53001 | L118: 53001|29.834 | M118: 53001|30.4745 | N118: 53001|32.7775 | O118: 53001|34.615 | P118: 53001|39.5955 | Q118: 53001|43.8585 | R118: 53001|48.615
A119: 118 | B119: 30.1525 | C119: 30.8315 | D119: 32.809 | E119: 34.7165 | F119: 39.886 | G119: 43.862 | H119: 49.448 | K119: 53454 | L119: 53454|30.1525 | M119: 53454|30.8315 | N119: 53454|32.809 | O119: 53454|34.7165 | P119: 53454|39.886 | Q119: 53454|43.862 | R119: 53454|49.448
A120: 119 | B120: 31.0485 | C120: 31.465 | D120: 33.782 | E120: 35.2415 | F120: 39.8895 | G120: 44.205 | H120: 49.4515 | K120: 53907 | L120: 53907|31.0485 | M120: 53907|31.465 | N120: 53907|33.782 | O120: 53907|35.2415 | P120: 53907|39.8895 | Q120: 53907|44.205 | R120: 53907|49.4515
A121: 120 | B121: 31.892 | C121: 31.9165 | D121: 33.831 | E121: 35.483 | F121: 40.586 | G121: 44.786 | H121: 49.455 | K121: 54360 | L121: 54360|31.892 | M121: 54360|31.9165 | N121: 54360|33.831 | O121: 54360|35.483 | P121: 54360|40.586 | Q121: 54360|44.786 | R121: 54360|49.455
A122: 121 | B122: 31.8955 | C122: 31.9235 | D122: 33.8345 | E122: 35.49 | F122: 40.845 | G122: 44.793 | H122: 49.4585 | K122: 54813 | L122: 54813|31.8955 | M122: 54813|31.9235 | N122: 54813|33.8345 | O122: 54813|35.49 | P122: 54813|40.845 | Q122: 54813|44.793 | R122: 54813|49.4585
A123: 122 | B123: 31.899 | C123: 32.536 | D123: 34.167 | E123: 35.8085 | F123: 41.1635 | G123: 45.4965 | H123: 50.3265 | K123: 55266 | L123: 55266|31.899 | M123: 55266|32.536 | N123: 55266|34.167 | O123: 55266|35.8085 | P123: 55266|41.1635 | Q123: 55266|45.4965 | R123: 55266|50.3265
A124: 123 | B124: 32.186 | C124: 32.5675 | D124: 35.1925 | E124: 36.785 | F124: 41.4855 | G124: 46.333 | H124: 51.0125 | K124: 55719 | L124: 55719|32.186 | M124: 55719|32.5675 | N124: 55719|35.1925 | O124: 55719|36.785 | P124: 55719|41.4855 | Q124: 55719|46.333 | R124: 55719|51.0125
A125: 124 | B125: 32.1895 | C125: 32.8895 | D125: 35.56 | E125: 36.7885 | F125: 41.7585 | G125: 46.3365 | H125: 51.016 | K125: 56172 | L125: 56172|32.1895 | M125: 56172|32.8895 | N125: 56172|35.56 | O125: 56172|36.7885 | P125: 56172|41.7585 | Q125: 56172|46.3365 | R125: 56172|51.016
A126: 125 | B126: 32.4975 | C126: 32.893 | D126: 35.5635 | E126: 36.792 | F126: 41.762 | G126: 46.34 | H126: 51.0195 | K126: 56625 | L126: 56625|32.4975 | M126: 56625|32.893 | N126: 56625|35.5635 | O126: 56625|36.792 | P126: 56625|41.762 | Q126: 56625|46.34 | R126: 56625|51.0195
A127: 126 | B127: 33.1485 | C127: 33.215 | D127: 35.9275 | E127: 36.7955 | F127: 42.0105 | G127: 46.3435 | H127: 52.8185 | K127: 57078 | L127: 57078|33.1485 | M127: 57078|33.215 | N127: 57078|35.9275 | O127: 57078|36.7955 | P127: 57078|42.0105 | Q127: 57078|46.3435 | R127: 57078|52.8185
A128: 127 | B128: 33.152 | C128: 33.789 | D128: 36.624 | E128: 37.632 | F128: 42.966 | G128: 47.18 | H128: 52.822 | K128: 57531 | L128: 57531|33.152 | M128: 57531|33.789 | N128: 57531|36.624 | O128: 57531|37.632 | P128: 57531|42.966 | Q128: 57531|47.18 | R128: 57531|52.822
A129: 128 | B129: 33.46 | C129: 33.7925 | D129: 36.6275 | E129: 37.639 | F129: 42.9695 | G129: 47.1835 | H129: 53.1055 | K129: 57984 | L129: 57984|33.46 | M129: 57984|33.7925 | N129: 57984|36.6275 | O129: 57984|37.639 | P129: 57984|42.9695 | Q129: 57984|47.1835 | R129: 57984|53.1055
A130: 129 | B130: 34.097 | C130: 34.2265 | D130: 36.6415 | E130: 37.8945 | F130: 42.973 | G130: 47.1905 | H130: 53.6165 | K130: 58437 | L130: 58437|34.097 | M130: 58437|34.2265 | N130: 58437|36.6415 | O130: 58437|37.8945 | P130: 58437|42.973 | Q130: 58437|47.1905 | R130: 58437|53.6165
A131: 130 | B131: 34.23 | C131: 34.237 | D131: 36.9705 | E131: 37.898 | F131: 43.2845 | G131: 47.803 | H131: 54.845 | K131: =$A131*453 -> 58890 | L131: =_xlfn.CONCAT($K131,"|",B131) -> 58890|34.23 | M131: =_xlfn.CONCAT($K131,"|",C131) -> 58890|34.237 | N131: =_xlfn.CONCAT($K131,"|",D131) -> 58890|36.9705 | O131: =_xlfn.CONCAT($K131,"|",E131) -> 58890|37.898 | P131: =_xlfn.CONCAT($K131,"|",F131) -> 58890|43.2845 | Q131: =_xlfn.CONCAT($K131,"|",G131) -> 58890|47.803 | R131: =_xlfn.CONCAT($K131,"|",H131) -> 58890|54.845
A132: 131 | B132: 34.419 | C132: 34.7725 | D132: 37.674 | E132: 38.5175 | F132: 43.9215 | G132: 48.2545 | H132: 55.097 | K132: 59343 | L132: 59343|34.419 | M132: 59343|34.7725 | N132: 59343|37.674 | O132: 59343|38.5175 | P132: 59343|43.9215 | Q132: 59343|48.2545 | R132: 59343|55.097
A133: 132 | B133: 34.783 | C133: 34.7865 | D133: 37.6775 | E133: 38.773 | F133: 43.925 | G133: 48.258 | H133: 55.1005 | K133: 59796 | L133: 59796|34.783 | M133: 59796|34.7865 | N133: 59796|37.6775 | O133: 59796|38.773 | P133: 59796|43.925 | Q133: 59796|48.258 | R133: 59796|55.1005
A134: 133 | B134: 35.077 | C134: 35.1715 | D134: 37.681 | E134: 38.7765 | F134: 44.1525 | G134: 48.2615 | H134: 55.104 | K134: 60249 | L134: 60249|35.077 | M134: 60249|35.1715 | N134: 60249|37.681 | O134: 60249|38.7765 | P134: 60249|44.1525 | Q134: 60249|48.2615 | R134: 60249|55.104
A135: 134 | B135: 35.7315 | C135: 35.7735 | D135: 38.423 | E135: 39.473 | F135: 44.9155 | G135: 49.0525 | H135: 55.111 | K135: 60702 | L135: 60702|35.7315 | M135: 60702|35.7735 | N135: 60702|38.423 | O135: 60702|39.473 | P135: 60702|44.9155 | Q135: 60702|49.0525 | R135: 60702|55.111
A136: 135 | B136: 36.0045 | C136: 36.4805 | D136: 39.123 | E136: 40.173 | F136: 45.4685 | G136: 49.3115 | H136: 55.3805 | K136: 61155 | L136: 61155|36.0045 | M136: 61155|36.4805 | N136: 61155|39.123 | O136: 61155|40.173 | P136: 61155|45.4685 | Q136: 61155|49.3115 | R136: 61155|55.3805
A137: 136 | B137: 36.267 | C137: 36.484 | D137: 39.389 | E137: 40.523 | F137: 45.472 | G137: 50.078 | H137: 55.7585 | K137: 61608 | L137: 61608|36.267 | M137: 61608|36.484 | N137: 61608|39.389 | O137: 61608|40.523 | P137: 61608|45.472 | Q137: 61608|50.078 | R137: 61608|55.7585
A138: 137 | B138: 36.274 | C138: 36.5715 | D138: 40.432 | E138: 40.8205 | F138: 45.4755 | G138: 50.0815 | H138: 55.762 | K138: 62061 | L138: 62061|36.274 | M138: 62061|36.5715 | N138: 62061|40.432 | O138: 62061|40.8205 | P138: 62061|45.4755 | Q138: 62061|50.0815 | R138: 62061|55.762
A139: 138 | B139: 36.9495 | C139: 37.5025 | D139: 40.628 | E139: 41.1565 | F139: 46.4065 | G139: 50.505 | H139: 57.2915 | K139: 62514 | L139: 62514|36.9495 | M139: 62514|37.5025 | N139: 62514|40.628 | O139: 62514|41.1565 | P139: 62514|46.4065 | Q139: 62514|50.505 | R139: 62514|57.2915
A140: 139 | B140: 37.6355 | C140: 37.639 | D140: 40.6385 | E140: 41.1635 | F140: 46.4135 | G140: 51.4465 | H140: 57.3055 | K140: 62967 | L140: 62967|37.6355 | M140: 62967|37.639 | N140: 62967|40.6385 | O140: 62967|41.1635 | P140: 62967|46.4135 | Q140: 62967|51.4465 | R140: 62967|57.3055
A141: 140 | B141: 37.947 | C141: 38.241 | D141: 41.0375 | E141: 41.8075 | F141: 46.9105 | G141: 51.45 | H141: 57.309 | K141: 63420 | L141: 63420|37.947 | M141: 63420|38.241 | N141: 63420|41.0375 | O141: 63420|41.8075 | P141: 63420|46.9105 | Q141: 63420|51.45 | R141: 63420|57.309
A142: 141 | B142: 37.9505 | C142: 38.2445 | D142: 41.398 | E142: 41.8145 | F142: 46.914 | G142: 51.4535 | H142: 57.8515 | K142: 63873 | L142: 63873|37.9505 | M142: 63873|38.2445 | N142: 63873|41.398 | O142: 63873|41.8145 | P142: 63873|46.914 | Q142: 63873|51.4535 | R142: 63873|57.8515
A143: 142 | B143: 38.437 | C143: 38.4405 | D143: 41.7655 | E143: 42.483 | F143: 47.614 | G143: 51.6845 | H143: 57.855 | K143: 64326 | L143: 64326|38.437 | M143: 64326|38.4405 | N143: 64326|41.7655 | O143: 64326|42.483 | P143: 64326|47.614 | Q143: 64326|51.6845 | R143: 64326|57.855
A144: 143 | B144: 38.4405 | C144: 38.444 | D144: 41.769 | E144: 42.4865 | F144: 47.6175 | G144: 51.688 | H144: 57.8585 | K144: 64779 | L144: 64779|38.4405 | M144: 64779|38.444 | N144: 64779|41.769 | O144: 64779|42.4865 | P144: 64779|47.6175 | Q144: 64779|51.688 | R144: 64779|57.8585
A145: 144 | B145: 39.5255 | C145: 40.0575 | D145: 42.9905 | E145: 43.8165 | F145: 48.8845 | G145: 53.5255 | H145: 59.878 | K145: 65232 | L145: 65232|39.5255 | M145: 65232|40.0575 | N145: 65232|42.9905 | O145: 65232|43.8165 | P145: 65232|48.8845 | Q145: 65232|53.5255 | R145: 65232|59.878
A146: 145 | B146: 39.529 | C146: 40.46 | D146: 42.994 | E146: 43.82 | F146: 49.6125 | G146: 53.6445 | H146: 59.8815 | K146: 65685 | L146: 65685|39.529 | M146: 65685|40.46 | N146: 65685|42.994 | O146: 65685|43.82 | P146: 65685|49.6125 | Q146: 65685|53.6445 | R146: 65685|59.8815
A147: 146 | B147: 39.5325 | C147: 40.4635 | D147: 42.9975 | E147: 43.8235 | F147: 49.616 | G147: 53.648 | H147: 59.885 | K147: 66138 | L147: 66138|39.5325 | M147: 66138|40.4635 | N147: 66138|42.9975 | O147: 66138|43.8235 | P147: 66138|49.616 | Q147: 66138|53.648 | R147: 66138|59.885
A148: 147 | B148: 40.012 | C148: 40.8625 | D148: 43.7535 | E148: 44.2645 | F148: 49.973 | G148: 53.6515 | H148: 60.438 | K148: 66591 | L148: 66591|40.012 | M148: 66591|40.8625 | N148: 66591|43.7535 | O148: 66591|44.2645 | P148: 66591|49.973 | Q148: 66591|53.6515 | R148: 66591|60.438
A149: 148 | B149: 40.0155 | C149: 41.104 | D149: 43.806 | E149: 44.268 | F149: 49.9765 | G149: 53.655 | H149: 60.4415 | K149: 67044 | L149: 67044|40.0155 | M149: 67044|41.104 | N149: 67044|43.806 | O149: 67044|44.268 | P149: 67044|49.9765 | Q149: 67044|53.655 | R149: 67044|60.4415
A150: 149 | B150: 40.019 | C150: 41.1075 | D150: 44.408 | E150: 44.961 | F150: 50.141 | G150: 54.1625 | H150: 61.0155 | K150: 67497 | L150: 67497|40.019 | M150: 67497|41.1075 | N150: 67497|44.408 | O150: 67497|44.961 | P150: 67497|50.141 | Q150: 67497|54.1625 | R150: 67497|61.0155
A151: 150 | B151: 40.0225 | C151: 41.111 | D151: 44.415 | E151: 45.6015 | F151: 50.1445 | G151: 54.166 | H151: 61.019 | K151: 67950 | L151: 67950|40.0225 | M151: 67950|41.111 | N151: 67950|44.415 | O151: 67950|45.6015 | P151: 67950|50.1445 | Q151: 67950|54.166 | R151: 67950|61.019

Sheet FEDEX附加费
A1: 线路规则说明
A2: 此渠道不支持阿拉斯加、夏威夷、关岛等美国海外区域，及军事管制区等地区的派送。
A3: 分区表下载：http://www.fedex.com/ratetools/RateToolsMain.do
A4: 网站中线路名称：FedEx Ground 1
A5: 体积系数 长*宽*高/250
A6: 燃油查询：https://www.fedex.com/en-us/shipping/historical-fuel-surcharge.html
A7: 测量规则：尺寸和重量都是向上取整，例如：10.2inches按照11inches计算，10.2磅按照11磅计算
A8: 如果是取件是大车拉走的，请让取件的快递员在取件的时候扫描包裹
A9: 请准确填写收发件地址、包裹重量、包裹尺寸等信息,Fedex官方会对收到的包裹重新测量，包裹实际重量和尺寸以官方测量为准 （包裹揽收和运输途中可能导致包裹变形的情况，建议采用质地较硬的材质包装） 官方测量尺寸和重量是向上取整制，比如1.1 inch会按照2 inch计算；1.1磅会按照2磅计算 为避免因超尺寸导致加收大包裹费（Ground：$56.7;Homedelivery:$70.2）以及超大包裹费($945),请尽量不要发尺寸和重量贴近这两项费用限制条件的包裹（具体限制条件，请查看下面对应的附加费说明）
A10: 取消规则：60天内可以联系客服取消，超过60天无法取消
A11: 此价格生效日期：美国时间2025年01月06日（以交运时间为准）
A12: 附加费 | I12: 折扣率 | J12: 折扣后价格 | K12: 金宏亚原价 | L12: 对比 | M12: 文件来源 | N12: 小马 | O12: 小马对比
A13: 住宅地址费（Residential） ：HomeDelivery 线路的住宅费（home delivery） | H13: $5.95 | I13: 65% | J13: =H13*(1-I13) -> $2.08 | K13: $2.17 | L13: =J13-K13 -> -$0.08 | M13: 117页 | N13: 6.38 | O13: =J13-N13 -> -$4.30
A14: 超长费（AHS-Dimension）： 1、最长边超过48inches或者是第二长边超过30inches 2、长+2x（宽+高）超过105inches（计费重按照实重、体积重和40磅取最大值收取） | G14: Zone 2 | H14: $28.00 | I14: 78.50% | J14: $6.02 | K14: $3.52 | L14: =J14-K14 -> $2.50 | M14: 126页 | N14: 4.50 | O14: $1.52
G15: Zones 3–4 | H15: $31.00 | I15: 78.50% | J15: $6.67 | K15: $3.90 | L15: $2.76 | M15: 126页 | N15: 4.99 | O15: $1.68
G16: Zones 5–6 | H16: $34.00 | I16: 78.50% | J16: $7.31 | K16: $4.28 | L16: $3.03 | M16: 126页 | N16: 5.47 | O16: $1.84
G17: Zones 7-8 | H17: $38.00 | I17: 78.50% | J17: $8.17 | K17: $4.78 | L17: $3.39 | M17: 126页 | N17: 6.11 | O17: $2.06
A18: 超重费（AHS-Weight）：任何一个包裹超过超过50lbs | G18: Zone 2 | H18: $43.50 | I18: 78.50% | J18: $9.35 | K18: $5.43 | L18: $3.92 | M18: 126页 | N18: 6.99 | O18: $2.36
G19: Zones 3–4 | H19: $47.50 | I19: 78.50% | J19: $10.21 | K19: $5.93 | L19: $4.28 | M19: 126页 | N19: 7.64 | O19: $2.57
G20: Zones 5–6 | H20: $50.50 | I20: 78.50% | J20: $10.86 | K20: $6.30 | L20: $4.56 | M20: 126页 | N20: 8.12 | O20: $2.74
G21: Zones 7-8 | H21: $55.00 | I21: 78.50% | J21: $11.83 | K21: $6.86 | L21: $4.96 | M21: 126页 | N21: 8.84 | O21: $2.99
A22: 额外操作费（addtional handling） 如果包裹因破损、大包裹不规范（未使用瓦楞纸制容器打包，装在用收缩包装或拉伸包装覆盖的外部运输容器中等）等官方进行操作或邮寄不规则形状的包裹等会收取这个费用 | G22: Zone 2 | H22: $25.00 | I22: 78.50% | J22: 5.375 | K22: $3.90 | L22: $1.48 | M22: 126页 | N22: 4.02 | O22: $1.36
G23: Zones 3–4 | H23: $29.00 | I23: 78.50% | J23: 6.235 | K23: $4.52 | L23: $1.71 | M23: 126页 | N23: 4.66 | O23: $1.58
G24: Zones 5–6 | H24: $30.50 | I24: 78.50% | J24: 6.5575 | K24: $4.76 | L24: $1.80 | M24: 126页 | N24: 4.91 | O24: $1.65
G25: Zones 7-8 | H25: $31.50 | I25: 78.50% | J25: 6.7725 | K25: $4.91 | L25: $1.86 | M25: 126页 | N25: 5.07 | O25: $1.70
A26: 大包裹费（Oversize Packages） 1、长+2x（宽+高）超过130inches 2、最长边超过96inch 超出以上标准，则补收此费用 此外运费会按照实重、体积重、90磅取最大值计费 | D26: 美境内商业地址 | G26: Zone 2 | H26: 这一段没分清，认为是住宅
G27: Zones 3–4 | H27: 这一段没分清，认为是住宅
G28: Zones 5–6 | H28: 这一段没分清，认为是住宅
G29: Zones 7-8 | H29: 这一段没分清，认为是住宅 | P29: HOME | Q29: 大包裹
D30: 美境内住宅地址 | G30: Zone 2 | H30: $205.00 | I30: 78.50% | J30: =H30*(1-I30) -> $44.08 | K30: $120.00 | L30: =J30-K30 -> -$75.93 | M30: 136页 | N30: 32.94 | O30: =J30-N30 -> $11.14 | P30: 2 | Q30: 240 | R30: =Q30*(1-I30) -> 51.6
G31: Zones 3–4 | H31: $225.00 | I31: 78.50% | J31: =H31*(1-I31) -> $48.38 | K31: $130.00 | L31: -$81.63 | M31: 136页 | N31: 36.16 | O31: $12.22 | P31: 3 | Q31: 260 | R31: =Q31*(1-I31) -> 55.9
G32: Zones 5–6 | H32: $240.00 | I32: 78.50% | J32: $51.60 | K32: $145.00 | L32: -$93.40 | M32: 136页 | N32: 38.57 | O32: $13.03 | P32: 5 | Q32: 290 | R32: =Q32*(1-I32) -> 62.35
G33: Zones 7-8 | H33: $260.00 | I33: 78.50% | J33: $55.90 | K33: $152.50 | L33: -$96.60 | M33: 136页 | N33: 41.78 | O33: $14.12 | P33: 7 | Q33: 305 | R33: =Q33*(1-I33) -> 65.575
A34: DAS - Domestic,Ground (Extended Residential) | G34: all | H34: $8.30 | I34: 65% | J34: $2.91 | K34: $3.02 | L34: -$0.12 | M34: 131页 | N34: 8.90 | O34: -$6.00
A35: DAS - Domestic,Ground (Extended Commercial) | G35: all | H35: $4.20 | K35: $1.91
A36: DAS - Domestic,Ground (Residential) | G36: all | H36: $6.20 | I36: 65% | J36: =H36*(1-I36) -> $2.17 | K36: $2.26 | L36: =J36-K36 -> -$0.09 | M36: 131页 | N36: 6.65 | O36: =J36-N36 -> -$4.48
A37: DAS - Domestic,Ground (Commercial) | G37: all | H37: $4.20 | I37: 65% | J37: $1.47 | K37: $1.53 | L37: -$0.06 | M37: 131页
A38: Remote Area surcharge (Residential) | G38: all | H38: $15.50 | I38: 65% | J38: $5.43 | K38: $5.64 | L38: -$0.22 | M38: 130页 | N38: 8.90 | O38: =J38-N38 -> -$3.48
A39: Remote Area surcharge(Commercial) | G39: all | H39: $15.50 | I39: 65% | J39: $5.43 | K39: $5.64 | L39: -$0.22 | M39: 130页
A40: Residential-Ground | G40: all | H40: 这一段没懂 | K40: $5.95
A41: DAS Resi-Ground | G41: all | K41: $6.20
A42: DAS Extended Resi-Ground | G42: all | K42: $8.30
A43: DAS Remote Residential-Ground | G43: all | K43: $15.50
A44: 超大包裹费（Unauthorized Package Charge） 1、超过150lbs 2、最长边超过108 3、长+2x（宽+高）超过165inch 超出以上标准，FedEx有可能拒绝派送，若邮寄则补收此费用 | H44: $1,325.00 | I44: 0 | J44: =H44*(1-I44) -> $1,325.00 | K44: $1,325.00
A45: 修改地址费 1、如需修改地址会收人工处理费以及官方操作费加到新地址的运费，具体费用以账单更新为准 费用计算公式=人工处理费+官方操作费+到新地址的运费 2、如创建运单时收件地址填写不准确，官方会对不准确的地址进行更新，会收取修改地址费，具体费用以账单更新为准 费用计算公式=官方操作费+到准确地址的运费 3、预计签收时间两天之内的订单不予提交修改地址操作，有物流轨迹后才可提交修改,是否修改成功以官方轨迹为准 4、修改地址有人工操作费，修改失败无法退回操作费用,官方修改费用以实际账单为准 | F45: 人工处理费 (确认后在账户中扣除) | H45: $7.00
F46: 官方操作费 （账单更新补收） | H46: 24 | I46: 60% | J46: =H46*(1-I46) -> $9.60 | K46: $12.48 | L46: =J46-K46 -> -$2.88 | M46: 127页
F48: 到新地址/准确地址运费 （账单更新补收） | H48: 以账单更新为准
A49: 签名服务费（Signature fee） | D49: 直接签名费（Direct Signature） | H49: $7.44
D51: 成人签名（Adult Signature Required） | H51: $9.00
A53: Demand surcharges（旺季附加费）
A54: 额外操作旺季费 Demand/Peak - Additional Handling Surcharge | D54: 2024.11.25-2024.12.29 | H54: $1.60 | I54: 暂时没有
D55: 2024.12.30-2025.01.19 | H55: $1.30
A56: 大包裹旺季附加费 Demand/Peak - Oversize Charge | D56: 2024.11.25-2024.12.29 | H56: $50.00
D57: 2024.12.30-2025.01.19 | H57: $42.25
A58: 旺季附加费-超大包裹费Demand/Peak — Oversize Charge | D58: 2024.11.25-2024.12.29 | H58: $500.00
D59: 2024.12.30-2025.01.19 | H59: $450.00
A60: 旺季附加费-住宅费1 Demand/Peak — Residential | D60: 2024.11.25-2024.12.29 | H60: $0.57
D61: 2024.12.30-2025.01.19 | H61: $0.31
A62: 此渠道oversize包裹暂不支持出单，如遇账单产生oversize相关附加费请参考报价表中收费标准。

Sheet 偏远
A1: 偏远6.2 | B1: 超偏远extend 8.3 | C1: 超超偏远remote 15.5 | D1: $15.50
A2: 01002 | B2: 01005 | C2: 01026 | D2: =_xlfn.CONCAT(C2,"|",$D$1) -> 01026|15.5
A3: 01007 | B3: 01008 | C3: 01072 | D3: =_xlfn.CONCAT(C3,"|",$D$1) -> 01072|15.5
A4: 01010 | B4: 01011 | C4: 01368 | D4: 01368|15.5
A5: 01029 | B5: 01012 | C5: 02535 | D5: 02535|15.5
A6: 01032 | B6: 01031 | C6: 02539 | D6: 02539|15.5
A7: 01033 | B7: 01034 | C7: 02552 | D7: 02552|15.5
A8: 01036 | B8: 01037 | C8: 02554 | D8: 02554|15.5
A9: 01038 | B9: 01050 | C9: 02557 | D9: 02557|15.5
A10: 01039 | B10: 01054 | C10: 02564 | D10: 02564|15.5
A11: 01056 | B11: 01066 | C11: 02568 | D11: 02568|15.5
A12: 01057 | B12: 01068 | C12: 02575 | D12: 02575|15.5
A13: 01069 | B13: 01070 | C13: 02584 | D13: 02584|15.5
A14: 01073 | B14: 01071 | C14: 02807 | D14: 02807|15.5
A15: 01079 | B15: 01074 | C15: 02898 | D15: 02898|15.5
A16: 01080 | B16: 01081 | C16: 03280 | D16: 03280|15.5
A17: 01082 | B17: 01084 | C17: 03588 | D17: 03588|15.5
A18: 01083 | B18: 01092 | C18: 03597 | D18: 03597|15.5
A19: 01088 | B19: 01096 | C19: 04017 | D19: 04017|15.5
A20: 01093 | B20: 01098 | C20: 04019 | D20: 04019|15.5
A21: 01094 | B21: 01222 | C21: 04050 | D21: 04050|15.5
A22: 01097 | B22: 01223 | C22: 04108 | D22: 04108|15.5
A23: 01220 | B23: 01229 | C23: 04352 | D23: 04352|15.5
A24: 01224 | B24: 01230 | C24: 04353 | D24: 04353|15.5
A25: 01225 | B25: 01235 | C25: 04354 | D25: 04354|15.5
A26: 01226 | B26: 01237 | C26: 04358 | D26: 04358|15.5
A27: 01227 | B27: 01243 | C27: 04413 | D27: 04413|15.5
A28: 01236 | B28: 01244 | C28: 04417 | D28: 04417|15.5
A29: 01240 | B29: 01245 | C29: 04454 | D29: 04454|15.5
A30: 01247 | B30: 01253 | C30: 04487 | D30: 04487|15.5
A31: 01252 | B31: 01254 | C31: 04490 | D31: 04490|15.5
A32: 01257 | B32: 01255 | C32: 04492 | D32: 04492|15.5
A33: 01260 | B33: 01256 | C33: 04495 | D33: 04495|15.5
A34: 01267 | B34: 01258 | C34: 04548 | D34: 04548|15.5
A35: 01331 | B35: 01259 | C35: 04554 | D35: 04554|15.5
A36: 01337 | B36: 01262 | C36: 04574 | D36: 04574|15.5
A37: 01338 | B37: 01263 | C37: 04606 | D37: 04606|15.5
A38: 01349 | B38: 01264 | C38: 04625 | D38: 04625|15.5
A39: 01351 | B39: 01266 | C39: 04630 | D39: 04630|15.5
A40: 01364 | B40: 01270 | C40: 04645 | D40: 04645|15.5
A41: 01375 | B41: 01330 | C41: 04685 | D41: 04685|15.5
A42: 01376 | B42: 01339 | C42: 04746 | D42: 04746|15.5
A43: 01420 | B43: 01340 | C43: 04762 | D43: 04762|15.5
A44: 01430 | B44: 01341 | C44: 04764 | D44: 04764|15.5
A45: 01431 | B45: 01343 | C45: 04783 | D45: 04783|15.5
A46: 01432 | B46: 01344 | C46: 04841 | D46: 04841|15.5
A47: 01436 | B47: 01346 | C47: 04848 | D47: 04848|15.5
A48: 01438 | B48: 01350 | C48: 04852 | D48: 04852|15.5
A49: 01450 | B49: 01355 | C49: 04853 | D49: 04853|15.5
A50: 01451 | B50: 01360 | C50: 04911 | D50: 04911|15.5
A51: 01462 | B51: 01366 | C51: 04924 | D51: 04924|15.5
A52: 01463 | B52: 01367 | C52: 04936 | D52: 04936|15.5
A53: 01464 | B53: 01370 | C53: 04941 | D53: 04941|15.5
A54: 01468 | B54: 01378 | C54: 04942 | D54: 04942|15.5
A55: 01469 | B55: 01379 | C55: 04943 | D55: 04943|15.5
A56: 01470 | B56: 01380 | C56: 04955 | D56: 04955|15.5
A57: 01471 | B57: 01452 | C57: 04958 | D57: 04958|15.5
A58: 01473 | B58: 01475 | C58: 04970 | D58: 04970|15.5
A59: 01474 | B59: 01507 | C59: 04982 | D59: 04982|15.5
A60: 01503 | B60: 01531 | C60: 04985 | D60: 04985|15.5
A61: 01504 | B61: 01561 | C61: 04989 | D61: 04989|15.5
A62: 01506 | B62: 01585 | C62: 05076 | D62: 05076|15.5
A63: 01509 | B63: 01756 | C63: 05084 | D63: 05084|15.5
A64: 01515 | B64: 01885 | C64: 05440 | D64: 05440|15.5
A65: 01516 | B65: 02047 | C65: 05448 | D65: 05448|15.5
A66: 01518 | B66: 02574 | C66: 05483 | D66: 05483|15.5
A67: 01521 | B67: 02663 | C67: 05485 | D67: =_xlfn.CONCAT(C67,"|",$D$1) -> 05485|15.5
A68: 01522 | B68: 02666 | C68: 05487 | D68: 05487|15.5
A69: 01523 | B69: 02667 | C69: 05824 | D69: 05824|15.5
A70: 01529 | B70: 02713 | C70: 05840 | D70: 05840|15.5
A71: 01535 | B71: 02770 | C71: 05845 | D71: 05845|15.5
A72: 01541 | B72: 02791 | C72: 05853 | D72: 05853|15.5
A73: 01542 | B73: 02808 | C73: 05867 | D73: 05867|15.5
A74: 01543 | B74: 02813 | C74: 05901 | D74: 05901|15.5
A75: 01562 | B75: 02815 | C75: 05905 | D75: 05905|15.5
A76: 01566 | B76: 02822 | C76: 06244 | D76: 06244|15.5
A77: 01568 | B77: 02825 | C77: 06390 | D77: 06390|15.5
A78: 01590 | B78: 02827 | C78: 07881 | D78: 07881|15.5
A79: 01611 | B79: 02832 | C79: 08349 | D79: 08349|15.5
A80: 01612 | B80: 02833 | C80: 11770 | D80: 11770|15.5
A81: 01720 | B81: 02857 | C81: 11965 | D81: 11965|15.5
A82: 01741 | B82: 02872 | C82: 12116 | D82: 12116|15.5
A83: 01754 | B83: 02874 | C83: 12131 | D83: 12131|15.5
A84: 01770 | B84: 02875 | C84: 12726 | D84: 12726|15.5
A85: 01773 | B85: 02883 | C85: 12768 | D85: 12768|15.5
A86: 01775 | B86: 02894 | C86: 12819 | D86: 12819|15.5
A87: 01826 | B87: 03037 | C87: 12841 | D87: 12841|15.5
A88: 01827 | B88: 03043 | C88: 12847 | D88: 12847|15.5
A89: 01830 | B89: 03044 | C89: 12858 | D89: 12858|15.5
A90: 01832 | B90: 03047 | C90: 12861 | D90: 12861|15.5
A91: 01833 | B91: 03071 | C91: 12862 | D91: 12862|15.5
A92: 01860 | B92: 03082 | C92: 12872 | D92: 12872|15.5
A93: 01879 | B93: 03215 | C93: 12916 | D93: 12916|15.5
A94: 01921 | B94: 03216 | C94: 12926 | D94: 12926|15.5
A95: 01922 | B95: 03217 | C95: 12986 | D95: 12986|15.5
A96: 01929 | B96: 03218 | C96: 13355 | D96: 13355|15.5
A97: 01930 | B97: 03221 | C97: 13404 | D97: 13404|15.5
A98: 01936 | B98: 03222 | C98: 13697 | D98: 13697|15.5
A99: 01938 | B99: 03223 | C99: 13804 | D99: 13804|15.5
A100: 01944 | B100: 03224 | C100: 13832 | D100: 13832|15.5
A101: 01949 | B101: 03225 | C101: 13847 | D101: 13847|15.5
A102: 01950 | B102: 03227 | C102: 14039 | D102: 14039|15.5
A103: 01951 | B103: 03230 | C103: 14461 | D103: 14461|15.5
A104: 01952 | B104: 03231 | C104: 14751 | D104: 14751|15.5
A105: 01966 | B105: 03234 | C105: 15310 | D105: 15310|15.5
A106: 01969 | B106: 03237 | C106: 15362 | D106: 15362|15.5
A107: 01982 | B107: 03240 | C107: 15377 | D107: 15377|15.5
A108: 01983 | B108: 03241 | C108: 15535 | D108: 15535|15.5
A109: 01985 | B109: 03242 | C109: 15538 | D109: 15538|15.5
A110: 02025 | B110: 03243 | C110: 15560 | D110: 15560|15.5
A111: 02030 | B111: 03244 | C111: 15564 | D111: 15564|15.5
A112: 02031 | B112: 03245 | C112: 15763 | D112: 15763|15.5
A113: 02045 | B113: 03251 | C113: 16035 | D113: 16035|15.5
A114: 02053 | B114: 03253 | C114: 16058 | D114: 16058|15.5
A115: 02054 | B115: 03255 | C115: 16220 | D115: 16220|15.5
A116: 02056 | B116: 03256 | C116: 16225 | D116: 16225|15.5
A117: 02066 | B117: 03259 | C117: 16322 | D117: 16322|15.5
A118: 02108 | B118: 03260 | C118: 16746 | D118: 16746|15.5
A119: 02109 | B119: 03261 | C119: 16837 | D119: 16837|15.5
A120: 02110 | B120: 03262 | C120: 16864 | D120: 16864|15.5
A121: 02111 | B121: 03263 | C121: 16871 | D121: 16871|15.5
A122: 02113 | B122: 03266 | C122: 16921 | D122: 16921|15.5
A123: 02114 | B123: 03268 | C123: 16935 | D123: 16935|15.5
A124: 02116 | B124: 03269 | C124: 16936 | D124: 16936|15.5
A125: 02127 | B125: 03272 | C125: 16942 | D125: 16942|15.5
A126: 02203 | B126: 03273 | C126: 16950 | D126: 16950|15.5
A127: 02210 | B127: 03278 | C127: 17076 | D127: 17076|15.5
A128: 02269 | B128: 03279 | C128: 17211 | D128: 17211|15.5
A129: 02330 | B129: 03282 | C129: 17251 | D129: 17251|15.5
A130: 02332 | B130: 03284 | C130: 17353 | D130: 17353|15.5
A131: 02338 | B131: 03285 | C131: 17729 | D131: =_xlfn.CONCAT(C131,"|",$D$1) -> 17729|15.5
A132: 02341 | B132: 03287 | C132: 17768 | D132: 17768|15.5
A133: 02347 | B133: 03290 | C133: 17778 | D133: 17778|15.5
A134: 02364 | B134: 03307 | C134: 18455 | D134: 18455|15.5
A135: 02366 | B135: 03440 | C135: 18629 | D135: 18629|15.5
A136: 02367 | B136: 03441 | C136: 18630 | D136: 18630|15.5
A137: 02534 | B137: 03442 | C137: 18812 | D137: 18812|15.5
A138: 02536 | B138: 03443 | C138: 18829 | D138: 18829|15.5
A139: 02538 | B139: 03444 | C139: 18832 | D139: 18832|15.5
A140: 02540 | B140: 03445 | C140: 18833 | D140: 18833|15.5
A141: 02541 | B141: 03447 | C141: 20118 | D141: 20118|15.5
A142: 02542 | B142: 03450 | C142: 20128 | D142: 20128|15.5
A143: 02630 | B143: 03455 | C143: 20130 | D143: 20130|15.5
A144: 02631 | B144: 03456 | C144: 20661 | D144: 20661|15.5
A145: 02633 | B145: 03457 | C145: 20686 | D145: 20686|15.5
A146: 02635 | B146: 03462 | C146: 21557 | D146: 21557|15.5
A147: 02638 | B147: 03464 | C147: 21610 | D147: 21610|15.5
A148: 02639 | B148: 03465 | C148: 21626 | D148: 21626|15.5
A149: 02641 | B149: 03561 | C149: 21669 | D149: 21669|15.5
A150: 02642 | B150: 03574 | C150: 21824 | D150: 21824|15.5
A151: 02643 | B151: 03576 | C151: 21838 | D151: 21838|15.5
A152: 02645 | B152: 03579 | C152: 21866 | D152: 21866|15.5
A153: 02646 | B153: 03580 | C153: 21867 | D153: 21867|15.5
A154: 02647 | B154: 03582 | C154: 22438 | D154: 22438|15.5
A155: 02648 | B155: 03583 | C155: 22442 | D155: 22442|15.5
A156: 02650 | B156: 03586 | C156: 22509 | D156: 22509|15.5
A157: 02651 | B157: 03590 | C157: 22538 | D157: 22538|15.5
A158: 02652 | B158: 03592 | C158: 22729 | D158: 22729|15.5
A159: 02653 | B159: 03593 | C159: 22811 | D159: 22811|15.5
A160: 02655 | B160: 03595 | C160: 22830 | D160: 22830|15.5
A161: 02657 | B161: 03601 | C161: 23063 | D161: 23063|15.5
A162: 02659 | B162: 03602 | C162: 23079 | D162: 23079|15.5
A163: 02660 | B163: 03603 | C163: 23083 | D163: 23083|15.5
A164: 02662 | B164: 03605 | C164: 23085 | D164: 23085|15.5
A165: 02668 | B165: 03607 | C165: 23123 | D165: 23123|15.5
A166: 02669 | B166: 03609 | C166: 23180 | D166: 23180|15.5
A167: 02670 | B167: 03740 | C167: 23313 | D167: 23313|15.5
A168: 02671 | B168: 03745 | C168: 23316 | D168: 23316|15.5
A169: 02675 | B169: 03746 | C169: 23341 | D169: 23341|15.5
A170: 02702 | B170: 03750 | C170: 23389 | D170: 23389|15.5
A171: 02715 | B171: 03751 | C171: 23398 | D171: 23398|15.5
A172: 02717 | B172: 03752 | C172: 23407 | D172: 23407|15.5
A173: 02722 | B173: 03765 | C173: 23409 | D173: 23409|15.5
A174: 02739 | B174: 03768 | C174: 23413 | D174: 23413|15.5
A175: 02743 | B175: 03777 | C175: 23414 | D175: 23414|15.5
A176: 02744 | B176: 03779 | C176: 23420 | D176: 23420|15.5
A177: 02748 | B177: 03780 | C177: 23440 | D177: 23440|15.5
A178: 02769 | B178: 03781 | C178: 23443 | D178: 23443|15.5
A179: 02777 | B179: 03782 | C179: 23488 | D179: 23488|15.5
A180: 02779 | B180: 03809 | C180: 23872 | D180: 23872|15.5
A181: 02790 | B181: 03810 | C181: 23873 | D181: 23873|15.5
A182: 02801 | B182: 03812 | C182: 23881 | D182: 23881|15.5
A183: 02804 | B183: 03813 | C183: 23921 | D183: 23921|15.5
A184: 02812 | B184: 03814 | C184: 23942 | D184: 23942|15.5
A185: 02814 | B185: 03815 | C185: 23954 | D185: 23954|15.5
A186: 02816 | B186: 03816 | C186: 23960 | D186: 23960|15.5
A187: 02817 | B187: 03817 | C187: 24053 | D187: 24053|15.5
A188: 02829 | B188: 03818 | C188: 24067 | D188: 24067|15.5
A189: 02830 | B189: 03830 | C189: 24076 | D189: 24076|15.5
A190: 02835 | B190: 03832 | C190: 24088 | D190: 24088|15.5
A191: 02836 | B191: 03835 | C191: 24091 | D191: 24091|15.5
A192: 02837 | B192: 03836 | C192: 24120 | D192: 24120|15.5
A193: 02838 | B193: 03837 | C193: 24127 | D193: 24127|15.5
A194: 02839 | B194: 03845 | C194: 24128 | D194: 24128|15.5
A195: 02858 | B195: 03846 | C195: 24131 | D195: =_xlfn.CONCAT(C195,"|",$D$1) -> 24131|15.5
A196: 02859 | B196: 03849 | C196: 24137 | D196: 24137|15.5
A197: 02873 | B197: 03851 | C197: 24138 | D197: 24138|15.5
A198: 02876 | B198: 03852 | C198: 24162 | D198: 24162|15.5
A199: 02877 | B199: 03853 | C199: 24171 | D199: 24171|15.5
A200: 02878 | B200: 03855 | C200: 24217 | D200: 24217|15.5
... 14196 more rows

Sheet USPS
A1: weight | B1: KG | C1: 1 | D1: 2 | E1: 3 | F1: 4 | G1: 5 | H1: 6 | I1: 7 | J1: 8
A2: 1 | B2: =A2*0.028 -> 0.028 | C2: 3.76 | D2: 3.81 | E2: 3.83 | F2: 3.92 | G2: 3.97 | H2: 4.07 | I2: 4.14 | J2: 4.3
A3: 2 | B3: 0.056 | C3: 3.76 | D3: 3.81 | E3: 3.83 | F3: 3.92 | G3: 3.97 | H3: 4.07 | I3: 4.14 | J3: 4.3
A4: 3 | B4: 0.084 | C4: 3.76 | D4: 3.81 | E4: 3.83 | F4: 3.92 | G4: 3.97 | H4: 4.07 | I4: 4.14 | J4: 4.3
A5: 4 | B5: 0.112 | C5: 3.76 | D5: 3.81 | E5: 3.83 | F5: 3.92 | G5: 3.97 | H5: 4.07 | I5: 4.14 | J5: 4.3
A6: 5 | B6: 0.14 | C6: 4.33 | D6: 4.4 | E6: 4.44 | F6: 4.52 | G6: 4.57 | H6: 4.62 | I6: 4.71 | J6: 4.84
A7: 6 | B7: 0.168 | C7: 4.33 | D7: 4.4 | E7: 4.44 | F7: 4.52 | G7: 4.57 | H7: 4.62 | I7: 4.71 | J7: 4.84
A8: 7 | B8: 0.196 | C8: 4.33 | D8: 4.4 | E8: 4.44 | F8: 4.52 | G8: 4.57 | H8: 4.62 | I8: 4.71 | J8: 4.84
A9: 8 | B9: 0.224 | C9: 4.33 | D9: 4.4 | E9: 4.44 | F9: 4.52 | G9: 4.57 | H9: 4.62 | I9: 4.71 | J9: 4.84
A10: 9 | B10: 0.252 | C10: 4.91 | D10: 4.99 | E10: 5.06 | F10: 5.16 | G10: 5.3 | H10: 5.49 | I10: 5.62 | J10: 5.8
A11: 10 | B11: 0.28 | C11: 4.91 | D11: 4.99 | E11: 5.06 | F11: 5.16 | G11: 5.3 | H11: 5.49 | I11: 5.62 | J11: 5.8
A12: 11 | B12: 0.308 | C12: 4.91 | D12: 4.99 | E12: 5.06 | F12: 5.16 | G12: 5.3 | H12: 5.49 | I12: 5.62 | J12: 5.8
A13: 12 | B13: 0.336 | C13: 4.91 | D13: 4.99 | E13: 5.06 | F13: 5.16 | G13: 5.3 | H13: 5.49 | I13: 5.62 | J13: 5.8
A14: 13 | B14: 0.364 | C14: 5.96 | D14: 6.03 | E14: 6.14 | F14: 6.37 | G14: 6.53 | H14: 6.61 | I14: 6.69 | J14: 6.79
A15: 14 | B15: 0.392 | C15: 5.96 | D15: 6.03 | E15: 6.14 | F15: 6.37 | G15: 6.53 | H15: 6.61 | I15: 6.69 | J15: 6.79
A16: 15 | B16: 0.42 | C16: 5.96 | D16: 6.03 | E16: 6.14 | F16: 6.37 | G16: 6.53 | H16: 6.61 | I16: 6.69 | J16: 6.79
A17: 15.999 | B17: 0.447972 | C17: 5.96 | D17: 6.03 | E17: 6.14 | F17: 6.37 | G17: 6.53 | H17: 6.61 | I17: 6.69 | J17: 6.79
A18: 1 | B18: =A18*0.453 -> 0.45 | C18: 5.99 | D18: 6.05 | E18: 6.16 | F18: 6.48 | G18: 6.77 | H18: 7.66 | I18: 7.98 | J18: 8.76
A19: 2 | B19: 0.91 | C19: 6.08 | D19: 6.14 | E19: 6.35 | F19: 6.56 | G19: 7.38 | H19: 8.08 | I19: 8.77 | J19: 9.49
A20: 3 | B20: 1.36 | C20: 6.43 | D20: 6.49 | E20: 6.81 | F20: 6.84 | G20: 8.37 | H20: 9.34 | I20: 10.3 | J20: 11.26
A21: 4 | B21: 1.81 | C21: 6.71 | D21: 6.77 | E21: 6.92 | F21: 7.35 | G21: 9.07 | H21: 10.43 | I21: 11.3 | J21: 12.55
A22: 5 | B22: 2.27 | C22: 6.86 | D22: 6.91 | E22: 6.99 | F22: 7.58 | G22: 9.52 | H22: 10.96 | I22: 12.15 | J22: 13.48
A23: 6 | B23: 2.72 | C23: 7.05 | D23: 7.08 | E23: 7.4 | F23: 7.89 | G23: 10.19 | H23: 11.73 | I23: 13.31 | J23: 14.7
A24: 7 | B24: 3.17 | C24: 7.17 | D24: 7.23 | E24: 7.84 | F24: 8.77 | G24: 10.85 | H24: 12.49 | I24: 13.98 | J24: 15.74
A25: 8 | B25: 3.62 | C25: 7.33 | D25: 7.39 | E25: 8.01 | F25: 9.01 | G25: 11.27 | H25: 13.34 | I25: 14.6 | J25: 16.64
A26: 9 | B26: 4.08 | C26: 7.54 | D26: 7.6 | E26: 8.24 | F26: 9.28 | G26: 11.72 | H26: 13.91 | I26: 15.26 | J26: 17.5
A27: 10 | B27: 4.53 | C27: 7.78 | D27: 7.83 | E27: 8.5 | F27: 9.61 | G27: 12.2 | H27: 14.5 | I27: 15.97 | J27: 18.4
A28: 11 | B28: 4.98 | C28: 8.4 | D28: 8.46 | E28: 9.07 | F28: 10.23 | G28: 13.31 | H28: 15.63 | I28: 17.38 | J28: 20.07
A29: 12 | B29: 5.44 | C29: 8.67 | D29: 8.73 | E29: 9.35 | F29: 10.59 | G29: 13.85 | H29: 16.29 | I29: 18.18 | J29: 21.07
A30: 13 | B30: 5.89 | C30: 8.93 | D30: 9 | E30: 9.65 | F30: 10.94 | G30: 14.41 | H30: 17 | I30: 18.98 | J30: 22.08
A31: 14 | B31: 6.34 | C31: 9.18 | D31: 9.26 | E31: 9.92 | F31: 11.28 | G31: 14.97 | H31: 17.72 | I31: 19.81 | J31: 23.11
A32: 15 | B32: 6.80 | C32: 9.4 | D32: 9.49 | E32: 10.18 | F32: 11.61 | G32: 15.52 | H32: 18.44 | I32: 20.62 | J32: 24.12
A33: 16 | B33: 7.25 | C33: 9.6 | D33: 9.69 | E33: 10.42 | F33: 11.92 | G33: 16.07 | H33: 19.15 | I33: 21.43 | J33: 25.13
A34: 17 | B34: 7.70 | C34: 9.8 | D34: 9.9 | E34: 10.66 | F34: 12.23 | G34: 16.51 | H34: 19.69 | I34: 22.08 | J34: 25.96
A35: 18 | B35: 8.15 | C35: 10 | D35: 10.11 | E35: 10.91 | F35: 12.56 | G35: 17 | H35: 20.31 | I35: 22.79 | J35: 26.85
A36: 19 | B36: 8.61 | C36: 10.21 | D36: 10.33 | E36: 11.17 | F36: 12.86 | G36: 17.46 | H36: 20.92 | I36: 23.5 | J36: 27.74
A37: 20 | B37: 9.06 | C37: 10.53 | D37: 10.71 | E37: 11.61 | F37: 13.24 | G37: 18.29 | H37: 21.91 | I37: 25.21 | J37: 29.59

Sheet USPS-分区
A1: 邮编 | B1: 分区
A2: 5 | B2: 8
A3: 6 | B3: 8
A4: 7 | B4: 8
A5: 8 | B5: 8
A6: 9 | B6: 8
A7: 10 | B7: 8
A8: 11 | B8: 8
A9: 12 | B9: 8
A10: 13 | B10: 8
A11: 14 | B11: 8
A12: 15 | B12: 8
A13: 16 | B13: 8
A14: 17 | B14: 8
A15: 18 | B15: 8
A16: 19 | B16: 8
A17: 20 | B17: 8
A18: 21 | B18: 8
A19: 22 | B19: 8
A20: 23 | B20: 8
A21: 24 | B21: 8
A22: 25 | B22: 8
A23: 26 | B23: 8
A24: 27 | B24: 8
A25: 28 | B25: 8
A26: 29 | B26: 8
A27: 30 | B27: 8
A28: 31 | B28: 8
A29: 32 | B29: 8
A30: 33 | B30: 8
A31: 34 | B31: 8
A32: 35 | B32: 8
A33: 36 | B33: 8
A34: 37 | B34: 8
A35: 38 | B35: 8
A36: 39 | B36: 8
A37: 40 | B37: 8
A38: 41 | B38: 8
A39: 42 | B39: 8
A40: 43 | B40: 8
A41: 44 | B41: 8
A42: 45 | B42: 8
A43: 46 | B43: 8
A44: 47 | B44: 8
A45: 48 | B45: 8
A46: 49 | B46: 8
A47: 50 | B47: 8
A48: 51 | B48: 8
A49: 52 | B49: 8
A50: 53 | B50: 8
A51: 54 | B51: 8
A52: 55 | B52: 8
A53: 56 | B53: 8
A54: 57 | B54: 8
A55: 58 | B55: 8
A56: 59 | B56: 8
A57: 60 | B57: 8
A58: 61 | B58: 8
A59: 62 | B59: 8
A60: 63 | B60: 8
A61: 64 | B61: 8
A62: 65 | B62: 8
A63: 66 | B63: 8
A64: 67 | B64: 8
A65: 68 | B65: 8
A66: 69 | B66: 8
A67: 70 | B67: 8
A68: 71 | B68: 8
A69: 72 | B69: 8
A70: 73 | B70: 8
A71: 74 | B71: 8
A72: 75 | B72: 8
A73: 76 | B73: 8
A74: 77 | B74: 8
A75: 78 | B75: 8
A76: 79 | B76: 8
A77: 80 | B77: 8
A78: 81 | B78: 8
A79: 82 | B79: 8
A80: 83 | B80: 8
A81: 84 | B81: 8
A82: 85 | B82: 8
A83: 86 | B83: 8
A84: 87 | B84: 8
A85: 88 | B85: 8
A86: 89 | B86: 8
A87: 90 | B87: 8
A88: 91 | B88: 8
A89: 92 | B89: 8
A90: 93 | B90: 8
A91: 94 | B91: 8
A92: 95 | B92: 8
A93: 96 | B93: 8
A94: 97 | B94: 8
A95: 98 | B95: 8
A96: 99 | B96: 8
A97: 100 | B97: 8
A98: 101 | B98: 8
A99: 102 | B99: 8
A100: 103 | B100: 8
A101: 104 | B101: 8
A102: 105 | B102: 8
A103: 106 | B103: 8
A104: 107 | B104: 8
A105: 108 | B105: 8
A106: 109 | B106: 8
A107: 110 | B107: 8
A108: 111 | B108: 8
A109: 112 | B109: 8
A110: 113 | B110: 8
A111: 114 | B111: 8
A112: 115 | B112: 8
A113: 116 | B113: 8
A114: 117 | B114: 8
A115: 118 | B115: 8
A116: 119 | B116: 8
A117: 120 | B117: 8
A118: 121 | B118: 8
A119: 122 | B119: 8
A120: 123 | B120: 8
A121: 124 | B121: 8
A122: 125 | B122: 8
A123: 126 | B123: 8
A124: 127 | B124: 8
A125: 128 | B125: 8
A126: 129 | B126: 8
A127: 130 | B127: 8
A128: 131 | B128: 8
A129: 132 | B129: 8
A130: 133 | B130: 8
A131: 134 | B131: 8
A132: 135 | B132: 8
A133: 136 | B133: 8
A134: 137 | B134: 8
A135: 138 | B135: 8
A136: 139 | B136: 8
A137: 140 | B137: 8
A138: 141 | B138: 8
A139: 142 | B139: 8
A140: 143 | B140: 8
A141: 144 | B141: 8
A142: 145 | B142: 8
A143: 146 | B143: 8
A144: 147 | B144: 8
A145: 148 | B145: 8
A146: 149 | B146: 8
A147: 150 | B147: 8
A148: 151 | B148: 8
A149: 152 | B149: 8
A150: 153 | B150: 8
A151: 154 | B151: 8
A152: 155 | B152: 8
A153: 156 | B153: 8
A154: 157 | B154: 8
A155: 158 | B155: 8
A156: 159 | B156: 8
A157: 160 | B157: 8
A158: 161 | B158: 8
A159: 162 | B159: 8
A160: 163 | B160: 8
A161: 164 | B161: 8
A162: 165 | B162: 8
A163: 166 | B163: 8
A164: 167 | B164: 8
A165: 168 | B165: 8
A166: 169 | B166: 8
A167: 170 | B167: 8
A168: 171 | B168: 8
A169: 172 | B169: 8
A170: 173 | B170: 8
A171: 174 | B171: 8
A172: 175 | B172: 8
A173: 176 | B173: 8
A174: 177 | B174: 8
A175: 178 | B175: 8
A176: 179 | B176: 8
A177: 180 | B177: 8
A178: 181 | B178: 8
A179: 182 | B179: 8
A180: 183 | B180: 8
A181: 184 | B181: 8
A182: 185 | B182: 8
A183: 186 | B183: 8
A184: 187 | B184: 8
A185: 188 | B185: 8
A186: 189 | B186: 8
A187: 190 | B187: 8
A188: 191 | B188: 8
A189: 192 | B189: 8
A190: 193 | B190: 8
A191: 194 | B191: 8
A192: 195 | B192: 8
A193: 196 | B193: 8
A194: 197 | B194: 8
A195: 198 | B195: 8
A196: 199 | B196: 8
A197: 200 | B197: 8
A198: 201 | B198: 8
A199: 202 | B199: 8
A200: 203 | B200: 8
... 806 more rows

Sheet FEDEX-TEST
A1: lbs. | B1: 2 | C1: 3 | D1: 4 | E1: 5 | F1: 6 | G1: 7 | H1: 8
A2: 1 | B2: 7.24 | C2: 7.30 | D2: 7.35 | E2: 7.41 | F2: 7.48 | G2: 7.54 | H2: 7.59
A3: 2 | B3: 7.24 | C3: 7.30 | D3: 7.35 | E3: 7.41 | F3: 7.48 | G3: 7.54 | H3: 7.59
A4: 3 | B4: 7.24 | C4: 7.30 | D4: 7.35 | E4: 7.41 | F4: 7.48 | G4: 7.54 | H4: 7.59
A5: 4 | B5: 7.24 | C5: 7.30 | D5: 7.35 | E5: 7.41 | F5: 7.48 | G5: 7.54 | H5: 7.59
A6: 5 | B6: 7.24 | C6: 7.30 | D6: 7.35 | E6: 7.41 | F6: 7.48 | G6: 7.54 | H6: 7.59
A7: 6 | B7: 7.24 | C7: 7.30 | D7: 7.35 | E7: 7.41 | F7: 7.48 | G7: 7.54 | H7: 7.59
A8: 7 | B8: 7.24 | C8: 7.30 | D8: 7.35 | E8: 7.41 | F8: 7.48 | G8: 7.54 | H8: 7.59
A9: 8 | B9: 7.24 | C9: 7.30 | D9: 7.35 | E9: 7.41 | F9: 7.48 | G9: 7.54 | H9: 7.59
A10: 9 | B10: 7.24 | C10: 7.30 | D10: 7.35 | E10: 7.41 | F10: 7.48 | G10: 7.54 | H10: 7.59
A11: 10 | B11: 7.24 | C11: 7.30 | D11: 7.35 | E11: 7.41 | F11: 7.48 | G11: 7.54 | H11: 7.59
A12: 11 | B12: 7.24 | C12: 7.30 | D12: 7.35 | E12: 7.41 | F12: 7.48 | G12: 7.54 | H12: 7.59
A13: 12 | B13: 7.24 | C13: 7.30 | D13: 7.35 | E13: 7.41 | F13: 7.48 | G13: 7.54 | H13: 7.59
A14: 13 | B14: 7.24 | C14: 7.30 | D14: 7.35 | E14: 7.41 | F14: 7.48 | G14: 7.54 | H14: 7.59
A15: 14 | B15: 7.24 | C15: 7.30 | D15: 7.35 | E15: 7.41 | F15: 7.48 | G15: 7.54 | H15: 8.07
A16: 15 | B16: 7.24 | C16: 7.30 | D16: 7.35 | E16: 7.41 | F16: 7.48 | G16: 7.60 | H16: 8.39
A17: 16 | B17: 7.24 | C17: 7.30 | D17: 7.35 | E17: 7.41 | F17: 7.48 | G17: 8.00 | H17: 8.81
A18: 17 | B18: 7.24 | C18: 7.30 | D18: 7.35 | E18: 7.41 | F18: 7.48 | G18: 8.42 | H18: 8.82
A19: 18 | B19: 7.24 | C19: 7.30 | D19: 7.35 | E19: 7.41 | F19: 7.48 | G19: 8.67 | H19: 9.50
A20: 19 | B20: 7.24 | C20: 7.30 | D20: 7.35 | E20: 7.41 | F20: 7.48 | G20: 8.93 | H20: 9.96
A21: 20 | B21: 7.24 | C21: 7.30 | D21: 7.35 | E21: 7.41 | F21: 7.60 | G21: 9.27 | H21: 10.32
A22: 21 | B22: 7.24 | C22: 7.30 | D22: 7.35 | E22: 7.41 | F22: 7.48 | G22: 9.09 | H22: 10.16
A23: 22 | B23: 7.24 | C23: 7.30 | D23: 7.35 | E23: 7.41 | F23: 7.79 | G23: 9.43 | H23: 10.61
A24: 23 | B24: 7.24 | C24: 7.30 | D24: 7.35 | E24: 7.41 | F24: 8.09 | G24: 9.66 | H24: 11.02
A25: 24 | B25: 7.24 | C25: 7.30 | D25: 7.35 | E25: 7.41 | F25: 8.47 | G25: 9.98 | H25: 11.65
A26: 25 | B26: 7.24 | C26: 7.30 | D26: 7.35 | E26: 7.41 | F26: 8.72 | G26: 10.53 | H26: 12.01
A27: 26 | B27: 7.24 | C27: 7.30 | D27: 7.35 | E27: 7.41 | F27: 9.03 | G27: 10.96 | H27: 12.51
A28: 27 | B28: 7.24 | C28: 7.30 | D28: 7.35 | E28: 7.50 | F28: 9.40 | G28: 11.17 | H28: 12.71
A29: 28 | B29: 7.24 | C29: 7.30 | D29: 7.35 | E29: 7.94 | F29: 9.85 | G29: 11.66 | H29: 13.21
A30: 29 | B30: 7.24 | C30: 7.30 | D30: 7.35 | E30: 7.94 | F30: 10.14 | G30: 11.92 | H30: 13.56
A31: 30 | B31: 7.24 | C31: 7.30 | D31: 7.35 | E31: 8.25 | F31: 10.29 | G31: 11.99 | H31: 14.12
A32: 31 | B32: 7.24 | C32: 7.30 | D32: 7.35 | E32: 8.36 | F32: 10.59 | G32: 12.44 | H32: 14.57
A33: 32 | B33: 7.24 | C33: 7.30 | D33: 7.35 | E33: 8.36 | F33: 10.59 | G33: 12.44 | H33: 14.73
A34: 33 | B34: 7.24 | C34: 7.30 | D34: 7.35 | E34: 8.75 | F34: 11.28 | G34: 12.85 | H34: 15.13
A35: 34 | B35: 7.24 | C35: 7.30 | D35: 7.58 | E35: 9.06 | F35: 11.28 | G35: 13.23 | H35: 15.85
A36: 35 | B36: 7.24 | C36: 7.30 | D36: 7.84 | E36: 9.28 | F36: 11.47 | G36: 13.58 | H36: 15.96
A37: 36 | B37: 7.24 | C37: 7.30 | D37: 7.89 | E37: 9.50 | F37: 11.94 | G37: 14.03 | H37: 16.59
A38: 37 | B38: 7.24 | C38: 7.30 | D38: 7.97 | E38: 9.71 | F38: 11.99 | G38: 14.48 | H38: 16.75
A39: 38 | B39: 7.24 | C39: 7.30 | D39: 8.23 | E39: 9.95 | F39: 12.27 | G39: 14.55 | H39: 17.06
A40: 39 | B40: 7.24 | C40: 7.47 | D40: 8.58 | E40: 10.25 | F40: 12.83 | G40: 15.12 | H40: 17.42
A41: 40 | B41: 7.24 | C41: 7.51 | D41: 8.58 | E41: 10.25 | F41: 12.84 | G41: 15.12 | H41: 17.42
A42: 41 | B42: 7.24 | C42: 7.82 | D42: 8.83 | E42: 10.62 | F42: 13.38 | G42: 15.58 | H42: 18.08
A43: 42 | B43: 7.24 | C43: 7.85 | D43: 9.18 | E43: 10.65 | F43: 13.44 | G43: 15.85 | H43: 18.18
A44: 43 | B44: 7.24 | C44: 7.96 | D44: 9.19 | E44: 11.20 | F44: 14.17 | G44: 16.43 | H44: 18.66
A45: 44 | B45: 7.24 | C45: 8.09 | D45: 9.43 | E45: 11.39 | F45: 14.25 | G45: 16.92 | H45: 18.86
A46: 45 | B46: 7.24 | C46: 8.09 | D46: 9.43 | E46: 11.39 | F46: 14.25 | G46: 17.26 | H46: 18.99
A47: 46 | B47: 7.24 | C47: 8.16 | D47: 9.72 | E47: 11.61 | F47: 14.62 | G47: 17.45 | H47: 19.49
A48: 47 | B48: 7.24 | C48: 8.35 | D48: 9.88 | E48: 11.71 | F48: 14.83 | G48: 17.79 | H48: 19.81
A49: 48 | B49: 7.24 | C49: 8.36 | D49: 10.00 | E49: 12.13 | F49: 15.04 | G49: 17.95 | H49: 20.12
A50: 49 | B50: 7.24 | C50: 8.36 | D50: 10.00 | E50: 12.13 | F50: 15.16 | G50: 18.31 | H50: 20.25
A51: 50 | B51: 7.24 | C51: 8.36 | D51: 10.01 | E51: 12.14 | F51: 15.29 | G51: 18.47 | H51: 20.52
A52: 51 | B52: 7.24 | C52: 8.36 | D52: 10.05 | E52: 12.19 | F52: 15.49 | G52: 18.69 | H52: 21.01
A53: 52 | B53: 7.24 | C53: 8.36 | D53: 10.05 | E53: 12.19 | F53: 15.49 | G53: 18.69 | H53: 21.01
A54: 53 | B54: 7.24 | C54: 8.37 | D54: 10.07 | E54: 12.32 | F54: 15.49 | G54: 18.69 | H54: 21.21
A55: 54 | B55: 7.24 | C55: 8.37 | D55: 10.08 | E55: 12.34 | F55: 15.50 | G55: 18.72 | H55: 21.21
A56: 55 | B56: 7.24 | C56: 8.37 | D56: 10.08 | E56: 12.34 | F56: 15.50 | G56: 18.72 | H56: 21.21
A57: 56 | B57: 7.24 | C57: 8.37 | D57: 10.08 | E57: 12.34 | F57: 15.50 | G57: 18.72 | H57: 21.48
A58: 57 | B58: 7.24 | C58: 8.42 | D58: 10.09 | E58: 12.71 | F58: 15.51 | G58: 18.73 | H58: 21.70
A59: 58 | B59: 7.24 | C59: 8.42 | D59: 10.09 | E59: 12.72 | F59: 15.51 | G59: 18.73 | H59: 21.88
A60: 59 | B60: 7.24 | C60: 8.43 | D60: 10.16 | E60: 12.72 | F60: 15.61 | G60: 18.73 | H60: 22.25
A61: 60 | B61: 7.24 | C61: 8.76 | D61: 10.34 | E61: 13.19 | F61: 15.91 | G61: 18.79 | H61: 22.39
A62: 61 | B62: 7.24 | C62: 8.79 | D62: 10.43 | E62: 13.21 | F62: 15.91 | G62: 18.79 | H62: 22.39
A63: 62 | B63: 7.31 | C63: 9.41 | D63: 10.61 | E63: 13.59 | F63: 16.15 | G63: 19.07 | H63: 22.66
A64: 63 | B64: 7.31 | C64: 9.41 | D64: 10.71 | E64: 13.60 | F64: 16.26 | G64: 19.23 | H64: 22.80
A65: 64 | B65: 7.51 | C65: 9.42 | D65: 10.89 | E65: 13.60 | F65: 16.37 | G65: 19.23 | H65: 22.94
A66: 65 | B66: 7.58 | C66: 9.67 | D66: 10.89 | E66: 13.60 | F66: 16.51 | G66: 19.29 | H66: 22.97
A67: 66 | B67: 7.62 | C67: 9.76 | D67: 10.90 | E67: 13.60 | F67: 16.52 | G67: 19.35 | H67: 23.07
A68: 67 | B68: 7.62 | C68: 9.76 | D68: 10.90 | E68: 13.62 | F68: 16.66 | G68: 19.44 | H68: 23.30
A69: 68 | B69: 7.72 | C69: 9.95 | D69: 11.55 | E69: 13.92 | F69: 16.90 | G69: 19.73 | H69: 23.30
A70: 69 | B70: 7.88 | C70: 10.04 | D70: 11.66 | E70: 14.03 | F70: 17.00 | G70: 19.74 | H70: 23.41
A71: 70 | B71: 7.92 | C71: 10.18 | D71: 11.91 | E71: 14.71 | F71: 17.32 | G71: 19.74 | H71: 23.61
A72: 71 | B72: 7.92 | C72: 10.18 | D72: 12.10 | E72: 14.71 | F72: 17.45 | G72: 20.07 | H72: 23.62
A73: 72 | B73: 8.14 | C73: 10.18 | D73: 12.36 | E73: 14.72 | F73: 17.73 | G73: 20.92 | H73: 23.65
A74: 73 | B74: 8.19 | C74: 10.28 | D74: 12.36 | E74: 14.94 | F74: 17.92 | G74: 20.95 | H74: 23.65
A75: 74 | B75: 8.41 | C75: 10.28 | D75: 12.36 | E75: 14.94 | F75: 18.20 | G75: 20.95 | H75: 23.67
A76: 75 | B76: 8.73 | C76: 10.28 | D76: 12.36 | E76: 15.04 | F76: 18.21 | G76: 21.17 | H76: 23.67
A77: 76 | B77: 9.40 | C77: 10.86 | D77: 12.44 | E77: 15.28 | F77: 18.61 | G77: 21.50 | H77: 23.89
A78: 77 | B78: 9.76 | C78: 11.02 | D78: 12.58 | E78: 15.35 | F78: 18.72 | G78: 22.12 | H78: 23.89
A79: 78 | B79: 9.77 | C79: 11.44 | D79: 12.95 | E79: 15.52 | F79: 18.82 | G79: 22.28 | H79: 23.90
A80: 79 | B80: 10.22 | C80: 11.91 | D80: 13.27 | E80: 15.76 | F80: 19.22 | G80: 22.64 | H80: 24.29
A81: 80 | B81: 10.49 | C81: 12.14 | D81: 13.33 | E81: 16.14 | F81: 19.55 | G81: 22.95 | H81: 24.47
A82: 81 | B82: 10.76 | C82: 12.24 | D82: 13.66 | E82: 16.24 | F82: 19.80 | G82: 23.08 | H82: 24.55
A83: 82 | B83: 11.10 | C83: 12.54 | D83: 14.28 | E83: 16.66 | F83: 19.84 | G83: 23.68 | H83: 24.56
A84: 83 | B84: 11.10 | C84: 12.54 | D84: 14.28 | E84: 16.66 | F84: 19.90 | G84: 23.68 | H84: 24.56
A85: 84 | B85: 11.55 | C85: 13.04 | D85: 14.69 | E85: 16.83 | F85: 20.39 | G85: 23.97 | H85: 24.74
A86: 85 | B86: 11.86 | C86: 13.04 | D86: 14.71 | E86: 17.10 | F86: 20.52 | G86: 24.22 | H86: 25.02
A87: 86 | B87: 12.28 | C87: 13.76 | D87: 15.28 | E87: 17.42 | F87: 20.95 | G87: 24.90 | H87: 25.79
A88: 87 | B88: 12.54 | C88: 13.77 | D88: 15.28 | E88: 17.42 | F88: 21.23 | G88: 24.93 | H88: 25.82
A89: 88 | B89: 13.06 | C89: 14.07 | D89: 15.76 | E89: 17.98 | F89: 21.31 | G89: 24.95 | H89: 26.10
A90: 89 | B90: 13.64 | C90: 14.46 | D90: 16.07 | E90: 18.04 | F90: 21.78 | G90: 25.22 | H90: 26.65
A91: 90 | B91: 14.47 | C91: 15.10 | D91: 16.76 | E91: 18.57 | F91: 22.09 | G91: 25.80 | H91: 27.18
A92: 91 | B92: 14.47 | C92: 15.10 | D92: 16.76 | E92: 18.57 | F92: 22.09 | G92: 25.80 | H92: 27.18
A93: 92 | B93: 14.80 | C93: 15.24 | D93: 16.86 | E93: 18.75 | F93: 22.37 | G93: 25.80 | H93: 27.26
A94: 93 | B94: 14.99 | C94: 15.38 | D94: 17.18 | E94: 18.75 | F94: 22.37 | G94: 25.80 | H94: 27.26
A95: 94 | B95: 15.07 | C95: 15.79 | D95: 17.26 | E95: 18.99 | F95: 22.83 | G95: 25.81 | H95: 27.80
A96: 95 | B96: 15.28 | C96: 15.93 | D96: 17.38 | E96: 19.25 | F96: 22.91 | G96: 25.90 | H96: 28.10
A97: 96 | B97: 15.76 | C97: 16.04 | D97: 18.01 | E97: 19.45 | F97: 22.91 | G97: 25.90 | H97: 28.38
A98: 97 | B98: 16.28 | C98: 16.66 | D98: 18.27 | E98: 19.77 | F98: 23.39 | G98: 26.27 | H98: 28.94
A99: 98 | B99: 16.49 | C99: 16.76 | D99: 18.27 | E99: 20.00 | F99: 23.65 | G99: 26.28 | H99: 28.94
A100: 99 | B100: 16.72 | C100: 16.87 | D100: 18.61 | E100: 20.26 | F100: 23.72 | G100: 26.55 | H100: 29.24
A101: 100 | B101: 17.01 | C101: 17.15 | D101: 18.79 | E101: 20.37 | F101: 23.97 | G101: 26.56 | H101: 29.26
A102: 101 | B102: 17.12 | C102: 17.32 | D102: 18.79 | E102: 20.55 | F102: 24.19 | G102: 26.81 | H102: 29.53
A103: 102 | B103: 17.28 | C103: 17.32 | D103: 18.98 | E103: 20.56 | F103: 24.20 | G103: 26.81 | H103: 29.53
A104: 103 | B104: 17.51 | C104: 17.76 | D104: 19.36 | E104: 20.68 | F104: 24.27 | G104: 26.82 | H104: 29.53
A105: 104 | B105: 17.51 | C105: 17.77 | D105: 19.41 | E105: 20.70 | F105: 24.27 | G105: 26.82 | H105: 29.53
A106: 105 | B106: 18.14 | C106: 18.27 | D106: 19.82 | E106: 21.33 | F106: 24.87 | G106: 27.43 | H106: 30.26
A107: 106 | B107: 18.26 | C107: 18.28 | D107: 19.82 | E107: 21.33 | F107: 24.87 | G107: 27.43 | H107: 30.26
A108: 107 | B108: 18.36 | C108: 18.54 | D108: 20.10 | E108: 21.56 | F108: 24.87 | G108: 27.64 | H108: 30.50
A109: 108 | B109: 18.62 | C109: 18.74 | D109: 20.29 | E109: 21.58 | F109: 25.09 | G109: 27.65 | H109: 30.50
A110: 109 | B110: 19.18 | C110: 19.19 | D110: 20.53 | E110: 21.99 | F110: 25.30 | G110: 28.14 | H110: 31.06
A111: 110 | B111: 19.52 | C111: 19.65 | D111: 20.96 | E111: 22.41 | F111: 26.02 | G111: 28.67 | H111: 31.63
A112: 111 | B112: 19.52 | C112: 19.68 | D112: 21.44 | E112: 22.63 | F112: 26.02 | G112: 28.88 | H112: 32.00
A113: 112 | B113: 19.74 | C113: 20.09 | D113: 21.44 | E113: 22.63 | F113: 26.22 | G113: 28.88 | H113: 32.01
A114: 113 | B114: 19.75 | C114: 20.09 | D114: 21.68 | E114: 22.83 | F114: 26.22 | G114: 28.88 | H114: 32.29
A115: 114 | B115: 19.96 | C115: 20.52 | D115: 22.12 | E115: 23.27 | F115: 26.92 | G115: 29.60 | H115: 32.80
A116: 115 | B116: 20.56 | C116: 20.83 | D116: 22.13 | E116: 23.57 | F116: 26.92 | G116: 29.88 | H116: 32.81
A117: 116 | B117: 20.56 | C117: 20.83 | D117: 22.40 | E117: 23.57 | F117: 27.32 | G117: 30.26 | H117: 33.32
A118: 117 | B118: 20.58 | C118: 21.03 | D118: 22.62 | E118: 23.89 | F118: 27.32 | G118: 30.26 | H118: 33.53
A119: 118 | B119: 20.81 | C119: 21.28 | D119: 22.64 | E119: 23.95 | F119: 27.52 | G119: 30.26 | H119: 34.12
A120: 119 | B120: 21.43 | C120: 21.71 | D120: 23.32 | E120: 24.32 | F120: 27.53 | G120: 30.50 | H120: 34.12
A121: 120 | B121: 22.01 | C121: 22.02 | D121: 23.35 | E121: 24.48 | F121: 28.00 | G121: 30.90 | H121: 34.12
A122: 121 | B122: 22.01 | C122: 22.03 | D122: 23.35 | E122: 24.49 | F122: 28.18 | G122: 30.90 | H122: 34.12
A123: 122 | B123: 22.01 | C123: 22.45 | D123: 23.58 | E123: 24.71 | F123: 28.39 | G123: 31.38 | H123: 34.72
A124: 123 | B124: 22.20 | C124: 22.46 | D124: 24.29 | E124: 25.39 | F124: 28.63 | G124: 31.97 | H124: 35.20
A125: 124 | B125: 22.22 | C125: 22.69 | D125: 24.54 | E125: 25.39 | F125: 28.80 | G125: 31.97 | H125: 35.20
A126: 125 | B126: 22.42 | C126: 22.69 | D126: 24.54 | E126: 25.39 | F126: 28.80 | G126: 31.97 | H126: 35.20
A127: 126 | B127: 22.86 | C127: 22.92 | D127: 24.79 | E127: 25.39 | F127: 28.98 | G127: 31.98 | H127: 36.44
A128: 127 | B128: 22.87 | C128: 23.32 | D128: 25.27 | E128: 25.97 | F128: 29.65 | G128: 32.55 | H128: 36.44
A129: 128 | B129: 23.08 | C129: 23.32 | D129: 25.27 | E129: 25.97 | F129: 29.65 | G129: 32.55 | H129: 36.64
A130: 129 | B130: 23.53 | C130: 23.61 | D130: 25.28 | E130: 26.14 | F130: 29.65 | G130: 32.56 | H130: 36.99
A131: 130 | B131: 23.62 | C131: 23.62 | D131: 25.51 | E131: 26.16 | F131: 29.86 | G131: 32.97 | H131: 37.84
A132: 131 | B132: 23.75 | C132: 23.99 | D132: 26.00 | E132: 26.58 | F132: 30.30 | G132: 33.30 | H132: 38.02
A133: 132 | B133: 24.00 | C133: 24.00 | D133: 26.00 | E133: 26.75 | F133: 30.30 | G133: 33.30 | H133: 38.02
A134: 133 | B134: 24.20 | C134: 24.27 | D134: 26.01 | E134: 26.76 | F134: 30.47 | G134: 33.30 | H134: 38.02
A135: 134 | B135: 24.66 | C135: 24.69 | D135: 26.50 | E135: 27.24 | F135: 30.99 | G135: 33.85 | H135: 38.03
A136: 135 | B136: 24.85 | C136: 25.16 | D136: 26.99 | E136: 27.72 | F136: 31.37 | G136: 34.02 | H136: 38.21
A137: 136 | B137: 25.02 | C137: 25.16 | D137: 27.17 | E137: 27.96 | F137: 31.37 | G137: 34.56 | H137: 38.47
A138: 137 | B138: 25.03 | C138: 25.24 | D138: 27.90 | E138: 28.17 | F138: 31.37 | G138: 34.56 | H138: 38.47
A139: 138 | B139: 25.49 | C139: 25.88 | D139: 28.03 | E139: 28.39 | F139: 32.01 | G139: 34.84 | H139: 39.53
A140: 139 | B140: 25.97 | C140: 25.97 | D140: 28.04 | E140: 28.39 | F140: 32.02 | G140: 35.50 | H140: 39.54
A141: 140 | B141: 26.19 | C141: 26.38 | D141: 28.32 | E141: 28.85 | F141: 32.37 | G141: 35.50 | H141: 39.54
A142: 141 | B142: 26.19 | C142: 26.40 | D142: 28.57 | E142: 28.86 | F142: 32.37 | G142: 35.50 | H142: 39.92
A143: 142 | B143: 26.51 | C143: 26.51 | D143: 28.83 | E143: 29.31 | F143: 32.85 | G143: 35.65 | H143: 39.92
A144: 143 | B144: 26.51 | C144: 26.54 | D144: 28.83 | E144: 29.31 | F144: 32.85 | G144: 35.66 | H144: 39.92
A145: 144 | B145: 27.27 | C145: 27.64 | D145: 29.66 | E145: 30.23 | F145: 33.73 | G145: 36.93 | H145: 41.31
A146: 145 | B146: 27.27 | C146: 27.92 | D146: 29.67 | E146: 30.23 | F146: 34.24 | G146: 37.00 | H146: 41.31
A147: 146 | B147: 27.27 | C147: 27.92 | D147: 29.67 | E147: 30.24 | F147: 34.24 | G147: 37.01 | H147: 41.31
A148: 147 | B148: 27.60 | C148: 28.19 | D148: 30.19 | E148: 30.54 | F148: 34.47 | G148: 37.01 | H148: 41.70
A149: 148 | B149: 27.60 | C149: 28.36 | D149: 30.23 | E149: 30.54 | F149: 34.47 | G149: 37.01 | H149: 41.70
A150: 149 | B150: 27.60 | C150: 28.36 | D150: 30.64 | E150: 31.02 | F150: 34.59 | G150: 37.37 | H150: 42.10
A151: 150 | B151: 27.62 | C151: 28.36 | D151: 30.64 | E151: 31.46 | F151: 34.60 | G151: 37.37 | H151: 42.10

Sheet FEDEX-TEST附加费
A1: Ground费用名称 | B1: 收费标准(收费单位:美金）
A2: 商业偏远（ground） | B2: 2.5/件
A3: 商业超偏远（ground） | B3: 3.0/件
A4: Romote Zip（ground） | B4: 8.5/件
A5: 住宅附加费（ground） | B5: 3.5/件
A8: Home费用名称 | B8: 收费标准(收费单位:美金）
A9: 住宅偏远（home） | B9: 3.5/件
A10: 住宅超偏远（home） | B10: 4.5/件
A11: Romote Zip（home） | B11: 8.5/件
A12: 住宅附加费（home） | B12: 2.5/件
A14: MWT费用名称 | B14: 收费标准（收费单位：美金） | C14: 备注（收费单位：美金）
A15: 商业偏远 | B15: 26 | C15: 注意MWT存在分票情况，具体以账单为准
A16: 商业超偏远 | B16: 32.5 | C16: 注意MWT存在分票情况，具体以账单为准
A17: 住宅偏远 | B17: 38 | C17: 注意MWT存在分票情况，具体以账单为准
A18: 住宅超偏远 | B18: 51 | C18: 注意MWT存在分票情况，具体以账单为准
A19: 住宅附加费 | B19: 66 | C19: 注意MWT存在分票情况，具体以账单为准
A20: Romote Zip | B20: 94.5 | C20: 注意MWT存在分票情况，具体以账单为准
A21: 更改地址费 | B21: 88.5 | C21: 注意MWT存在分票情况，具体以账单为准
A23: 通用附加费 | B23: 收费标准(收费单位:美金) | C23: 备注
A24: Adult签名服务 | B24: 5.5/件
A25: Indirect签名服务 | B25: 4.0/件
A26: 超重附加费 | B26: 2区8.0/件 | C26: 单件超过50磅
B27: 3-4区8.5/件
B28: 5-6区9.5/件
B29: 7-8 区 10.5/件
A30: 超尺寸附加费 | B30: 2区5.5/件 | C30: 最长边超过120厘米（48英寸），第二长边超过75厘米（30英寸）,长+2*宽+2*高大于266厘米（105英寸），最低计费重量40磅
B31: 3-4区6.0/件
B32: 5-6区6.5/件
B33: 7-8 区7.0/件
A34: 超大附加费 | B34: 2区 37.5/件(Ground) | C34: 任意边长超过244厘米（98英寸）或长+2*（高+宽）超过330厘米（130英寸）小于419厘米（165英寸），单件最低计费90磅
B35: 3-4区 41.5/件(Ground)
B36: 5-6区 44.5/件(Ground)
B37: 7-8区48.0/件(Ground)
B38: 2区 44.5/件（Home)
B39: 3-4区 48.5/件（Home)
B40: 5-6区53.5/件（Home)
B41: 7-8区 56.5/件（Home)
A42: 更改地址费 | B42: 20.5/件
A43: 异形包装 | B43: 2区8.0/件 | C43: 包装为木箱，金属箱，蛇皮袋等非纸箱包装，桶装，条状等不规则形状
B44: 3-4区9.0/件
B45: 5-6区 9.5/件
B46: 7-8区9.5/件
A47: Unauthorized Package | B47: 814.5/件 | C47: 任何长度超过108英寸的包装，任何长度和周长超过165英寸的包装。任何重量超过150磅的包裹
A49: 联邦分区查询 | B49: https://www.fedex.com/ratetools/RateToolsMain.do
